ORGANISATION_NAME,DIRECTORATE,SECTION,DIVISION,VENDOR_NAME,COMPANY_NO,VENDOR_SITE_ID,CHARITY_NO,VCSE GRANT,PAYMENT_DATE,VOUCHER_NO,AMOUNT,IRRECOVERABLE VAT,COST_CENTRE_NAME,PROCUREMENT_CLASSIFICATION
Derby City Council,Communities & Place,Property Design & Maintenance,"Regeneration, Property & Housing",AAC WATERPROOFING LTD,N/A,473962,N/A,N/A,03-JAN-17,2693914,1184.40,0.00,Repair & Maintenance Works,N/A
Derby City Council,Communities & Place,Highways & Engineering,"Strategic Partnerships, Planning & Streetpride",AGGREGATE INDUSTRIES UK LTD,N/A,117850,N/A,N/A,03-JAN-17,2694346,663.60,0.00,Highways Maintenance Works,Building and Construction Machinery and
Derby City Council,Communities & Place,Highways & Engineering,"Strategic Partnerships, Planning & Streetpride",AGGREGATE INDUSTRIES UK LTD,N/A,117850,N/A,N/A,03-JAN-17,2694347,634.99,0.00,Highways Maintenance Works,Building and Construction Machinery and
Derby City Council,Communities & Place,Highways & Engineering,"Strategic Partnerships, Planning & Streetpride",AGGREGATE INDUSTRIES UK LTD,N/A,117850,N/A,N/A,03-JAN-17,2694353,1127.16,0.00,Highways Maintenance Works,Building and Construction Machinery and
Derby City Council,Communities & Place,Highways & Engineering,"Strategic Partnerships, Planning & Streetpride",AGGREGATE INDUSTRIES UK LTD,N/A,117850,N/A,N/A,03-JAN-17,2694354,494.84,0.00,Highways Maintenance Works,Building and Construction Machinery and
Derby City Council,Communities & Place,Highways & Engineering,"Strategic Partnerships, Planning & Streetpride",AGGREGATE INDUSTRIES UK LTD,N/A,117850,N/A,N/A,03-JAN-17,2694356,738.89,0.00,Highways Maintenance Works,Building and Construction Machinery and
Derby City Council,Communities & Place,Highways & Engineering,"Strategic Partnerships, Planning & Streetpride",AGGREGATE INDUSTRIES UK LTD,N/A,117850,N/A,N/A,03-JAN-17,2694361,732.48,0.00,Highways Maintenance Works,Building and Construction Machinery and
Derby City Council,Communities & Place,Grounds Maintenance & Cleansing,"Strategic Partnerships, Planning & Streetpride",AMA SUPPLIES LTD,N/A,285,N/A,N/A,03-JAN-17,2694572,452.61,0.00,Street Cleaning,Apparel and Luggage and Personal Care Pr
Derby City Council,Adults Health and Housing,Capital Expenditure ,Capital Expenditure ,AR CHOLERTON LTD,N/A,85,N/A,N/A,03-JAN-17,2694182,4494.94,0.00,Disabled Facilities Grant 96 Act,N/A
Derby City Council,Communities & Place,Strategic Housing,"Regeneration, Property & Housing",AR CHOLERTON LTD,N/A,85,N/A,N/A,03-JAN-17,2694182,-391.28,0.00,DFG Architect Fee Hold A/c,N/A
Derby City Council,Chief Executives,Capital Expenditure ,Capital Expenditure ,ARCADIS LLP,N/A,381425,N/A,N/A,03-JAN-17,2694138,7705.97,0.00,Our City Our River,Engineering and Research and Technology
Derby City Council,Organisation & Governance,Communication and Consultation,Strategic Services and Organisational Development,ARCH COMMUNICATIONS UK LTD,N/A,475432,N/A,N/A,03-JAN-17,2694101,4320.00,0.00,Corporate Communications,Management and Business Professionals an
Derby City Council,People Services - Children & Young People,Early Intervention & Integrated Safeguarding,Non-Schools,ARGOS BUSINESS SOLUTIONS,N/A,97,N/A,N/A,03-JAN-17,2693067,175.99,0.00,Leaving & After Care,Furniture and Furnishings
Derby City Council,People Services - Children & Young People,Early Intervention & Integrated Safeguarding,Non-Schools,ARGOS BUSINESS SOLUTIONS,N/A,97,N/A,N/A,03-JAN-17,2693067,399.99,0.00,Leaving & After Care,Furniture and Furnishings
Derby City Council,People Services - Children & Young People,Early Intervention & Integrated Safeguarding,Non-Schools,ARGOS BUSINESS SOLUTIONS,N/A,97,N/A,N/A,03-JAN-17,2693067,-119.68,0.00,Leaving & After Care,Furniture and Furnishings
Derby City Council,Communities & Place,Highways & Engineering,"Strategic Partnerships, Planning & Streetpride",ASHTEAD PLANT HIRE CO LTD,N/A,7462,N/A,N/A,03-JAN-17,2694379,485.10,0.00,Highways Maintenance Works,Material Handling and Conditioning and S
Derby City Council,Communities & Place,Highways & Engineering,"Strategic Partnerships, Planning & Streetpride",ASHTEAD PLANT HIRE CO LTD,N/A,7462,N/A,N/A,03-JAN-17,2694385,752.40,0.00,Highways Maintenance Works,Material Handling and Conditioning and S
Derby City Council,Communities & Place,Highways & Engineering,"Strategic Partnerships, Planning & Streetpride",ASHTEAD PLANT HIRE CO LTD,N/A,7462,N/A,N/A,03-JAN-17,2694388,455.54,0.00,Highways Maintenance Works,Material Handling and Conditioning and S
Derby City Council,Communities & Place,Highways & Engineering,"Strategic Partnerships, Planning & Streetpride",ASHTEAD PLANT HIRE CO LTD,N/A,7462,N/A,N/A,03-JAN-17,2694391,770.00,0.00,Highways Maintenance Works,Material Handling and Conditioning and S
Derby City Council,Communities & Place,Highways & Engineering,"Strategic Partnerships, Planning & Streetpride",ASHTEAD PLANT HIRE CO LTD,N/A,7462,N/A,N/A,03-JAN-17,2694394,504.60,0.00,Highways Maintenance Works,Material Handling and Conditioning and S
Derby City Council,Communities & Place,Highways & Engineering,"Strategic Partnerships, Planning & Streetpride",ASHTEAD PLANT HIRE CO LTD,N/A,7462,N/A,N/A,03-JAN-17,2694395,470.41,0.00,Highways Maintenance Works,Material Handling and Conditioning and S
Derby City Council,Communities & Place,Highways & Engineering,"Strategic Partnerships, Planning & Streetpride",ASHTEAD PLANT HIRE CO LTD,N/A,7462,N/A,N/A,03-JAN-17,2694395,-470.41,0.00,Highways Maintenance Works,Material Handling and Conditioning and S
Derby City Council,Communities & Place,Highways & Engineering,"Strategic Partnerships, Planning & Streetpride",ASHTEAD PLANT HIRE CO LTD,N/A,7462,N/A,N/A,03-JAN-17,2694395,426.01,0.00,Highways Maintenance Works,Material Handling and Conditioning and S
Derby City Council,Communities & Place,Highways & Engineering,"Strategic Partnerships, Planning & Streetpride",ASHTEAD PLANT HIRE CO LTD,N/A,7462,N/A,N/A,03-JAN-17,2694395,50.00,0.00,Highways Maintenance Works,Material Handling and Conditioning and S
Derby City Council,Communities & Place,Highways & Engineering,"Strategic Partnerships, Planning & Streetpride",ASHTEAD PLANT HIRE CO LTD,N/A,7462,N/A,N/A,03-JAN-17,2694395,-426.01,0.00,Highways Maintenance Works,Material Handling and Conditioning and S
Derby City Council,Communities & Place,Highways & Engineering,"Strategic Partnerships, Planning & Streetpride",ASHTEAD PLANT HIRE CO LTD,N/A,7462,N/A,N/A,03-JAN-17,2694395,420.41,0.00,Highways Maintenance Works,Material Handling and Conditioning and S
Derby City Council,Communities & Place,Highways & Engineering,"Strategic Partnerships, Planning & Streetpride",ASHTEAD PLANT HIRE CO LTD,N/A,7462,N/A,N/A,03-JAN-17,2694400,484.20,0.00,Highways Maintenance Works,Material Handling and Conditioning and S
Derby City Council,People Services - Children & Young People,Early Intervention & Integrated Safeguarding,Non-Schools,ASI SECURITY SYSTEMS LTD,N/A,106643,N/A,N/A,03-JAN-17,2693056,555.00,0.00,Chellaston Childrens Centre,Defense and Law Enforcement and Security
Derby City Council,Communities & Place,Community Safety and Integration,"Communities, Environment & Regulatory Services",ATLAS ENFORCEMENT LTD,N/A,11252,N/A,N/A,03-JAN-17,2693721,6944.00,0.00,City and Neighbourhoods Partnerships Core,Transportation and Storage and Mail Serv
Derby City Council,Communities & Place,Grounds Maintenance & Cleansing,"Strategic Partnerships, Planning & Streetpride",BANKS AMENITY PRODUCTS LTD,N/A,10208,N/A,N/A,03-JAN-17,2694018,1976.25,0.00,Grounds Maintenance Derby Homes,Mineral and Textile and Inedible Plant a
Derby City Council,Communities & Place,Grounds Maintenance & Cleansing,"Strategic Partnerships, Planning & Streetpride",BANKS AMENITY PRODUCTS LTD,N/A,10208,N/A,N/A,03-JAN-17,2694019,1976.25,0.00,Grounds Maintenance Derby Homes,Mineral and Textile and Inedible Plant a
Derby City Council,Communities & Place,Regeneration Projects,"Regeneration, Property & Housing",BH PR AND COMMUNICATIONS LTD,N/A,483,N/A,N/A,03-JAN-17,2694001,6985.02,0.00,Marble Hall,Management and Business Professionals an
Derby City Council,Communities & Place,Economic Regeneration,"Regeneration, Property & Housing",BH PR AND COMMUNICATIONS LTD,N/A,483,N/A,N/A,03-JAN-17,2694002,2000.00,0.00,Innovation Centre,Management and Business Professionals an
Derby City Council,Communities & Place,Culture & Business Development,"Leisure, Culture and Tourism",BLUEBELL DAIRY LTD,N/A,185439,N/A,N/A,03-JAN-17,2693756,436.80,0.00,Derby Live Catering - Derby Arena,N/A
Derby City Council,Organisation & Governance,Information Systems Support,Digital Services,BLUESKY INTERNATIONAL LTD,N/A,507,N/A,N/A,03-JAN-17,2693668,3375.00,0.00,Business Applications,Engineering and Research and Technology
Derby City Council,Communities & Place,Building Consultancy and Emergency Planning,"Communities, Environment & Regulatory Services",BRG INTERIM SOLUTIONS LIMITED,N/A,473663,N/A,N/A,03-JAN-17,2694137,678.60,0.00,Building Control,N/A
Derby City Council,Communities & Place,Traffic & Transportation,"Strategic Partnerships, Planning & Streetpride",BRISTOW AND SUTOR,N/A,557,N/A,N/A,03-JAN-17,2693711,3471.12,0.00,Parking Services,N/A
Derby City Council,Communities & Place,Traffic & Transportation,"Strategic Partnerships, Planning & Streetpride",BRISTOW AND SUTOR,N/A,557,N/A,N/A,03-JAN-17,2693711,-3471.12,0.00,Parking Services,N/A
Derby City Council,Communities & Place,Traffic & Transportation,"Strategic Partnerships, Planning & Streetpride",BRISTOW AND SUTOR,N/A,557,N/A,N/A,03-JAN-17,2693712,3865.84,0.00,Parking Services,N/A
Derby City Council,Communities & Place,Traffic & Transportation,"Strategic Partnerships, Planning & Streetpride",BRISTOW AND SUTOR,N/A,557,N/A,N/A,03-JAN-17,2693712,-3865.84,0.00,Parking Services,N/A
Derby City Council,Communities & Place,Traffic & Transportation,"Strategic Partnerships, Planning & Streetpride",BRISTOW AND SUTOR,N/A,557,N/A,N/A,03-JAN-17,2693713,4759.91,0.00,Parking Services,N/A
Derby City Council,Communities & Place,Traffic & Transportation,"Strategic Partnerships, Planning & Streetpride",BRISTOW AND SUTOR,N/A,557,N/A,N/A,03-JAN-17,2693713,-4759.91,0.00,Parking Services,N/A
Derby City Council,Organisation & Governance,"Information, Computing & Technology",Digital Services,BT PLC,N/A,5400,N/A,N/A,03-JAN-17,2694184,412.02,0.00,Computer Services,N/A
Derby City Council,Organisation & Governance,"Information, Computing & Technology",Digital Services,BT PLC,N/A,5400,N/A,N/A,03-JAN-17,2694184,412.02,0.00,Computer Services,N/A
Derby City Council,People Services - Adults and Health,Public Health,Public Health,BURTON HOSPITALS NHS FOUNDATION TRUST,N/A,38929,N/A,N/A,03-JAN-17,2694188,1851.81,0.00,Genitourinary Medicine Services (GUM) - Out Of Area,N/A
Derby City Council,People Services - Children & Young People,Non Delegated Schools Budget,Schools Block,BURY METROPOLITAN BOROUGH COUNCIL,N/A,483401,N/A,N/A,03-JAN-17,2681089,860.00,0.00,Pupil Premium Grant,N/A
Derby City Council,People Services - Children & Young People,Learning & Inclusion,Non-Schools,CACHE,N/A,943,N/A,N/A,03-JAN-17,2693576,595.00,0.00,Programme Delivery,Healthcare Services
Derby City Council,People Services - Adults and Health,Social Care Activities,Mental Health,CARITAS RECRUITMENT LTD,N/A,264432,N/A,N/A,03-JAN-17,2694145,1400.00,0.00,Safeguarding Adults,Healthcare Services
Derby City Council,Organisation & Governance,"Information, Computing & Technology",Digital Services,CDW LTD,N/A,465403,N/A,N/A,03-JAN-17,2694330,7000.00,0.00,Computer Services,Information Technology Broadcasting and
Derby City Council,Communities & Place,"Occupational Health, Safety, Markets & Bereavement Services","Communities, Environment & Regulatory Services",CORONA ENERGY,N/A,768,N/A,N/A,03-JAN-17,2688926,1174.57,0.00,Eagle Market Service Charge,Power Generation and Distribution Machin
Derby City Council,Communities & Place,"Occupational Health, Safety, Markets & Bereavement Services","Communities, Environment & Regulatory Services",CORONA ENERGY,N/A,768,N/A,N/A,03-JAN-17,2688923,542.50,0.00,Market Hall - Service Charge,Power Generation and Distribution Machin
Derby City Council,Communities & Place,"Occupational Health, Safety, Markets & Bereavement Services","Communities, Environment & Regulatory Services",CORONA ENERGY,N/A,768,N/A,N/A,03-JAN-17,2692972,3353.16,0.00,Crematorium,Power Generation and Distribution Machin
Derby City Council,Communities & Place,Leisure,"Leisure, Culture and Tourism",CORONA ENERGY,N/A,768,N/A,N/A,03-JAN-17,2686027,3381.82,0.00,Derby Multi Use Sports Arena,Power Generation and Distribution Machin
Derby City Council,Communities & Place,Strategic Asset Management and Estates,"Regeneration, Property & Housing",CORONA ENERGY,N/A,768,N/A,N/A,03-JAN-17,2688931,893.57,0.00,Surplus Properties,Power Generation and Distribution Machin
Derby City Council,Communities & Place,Regeneration Projects,"Regeneration, Property & Housing",CORONA ENERGY,N/A,768,N/A,N/A,03-JAN-17,2694000,504.73,0.00,Riverside Chambers,Power Generation and Distribution Machin
Derby City Council,Organisation & Governance,Facilities Management,Strategic Services and Organisational Development,CORONA ENERGY,N/A,768,N/A,N/A,03-JAN-17,2688930,1916.37,0.00,Council House,Power Generation and Distribution Machin
Derby City Council,People Services - Children & Young People,Early Intervention & Integrated Safeguarding,Non-Schools,DERBY CITY SUNDRY PAYMENTS,N/A,1155,N/A,N/A,03-JAN-17,2693627,2055.00,0.00,Legal Fees,N/A
Derby City Council,People Services - Adults and Health,"Adults, Health and Housing Obsolete","Adults, Health and Housing Obsolete",DERBY TEACHING HOSPITALS NHS FOUNDATION TRUST,N/A,1177,N/A,N/A,03-JAN-17,2685238,7303.48,0.00,Hospital Team,Education and Training Services
Derby City Council,People Services - Children & Young People,Commissioning,Non-Schools,DERBY TEACHING HOSPITALS NHS FOUNDATION TRUST,N/A,1177,N/A,N/A,03-JAN-17,2685227,18058.00,0.00,Camhs - Project,Education and Training Services
Derby City Council,People Services - Children & Young People,Specialist Services,Non-Schools,DERBY TEACHING HOSPITALS NHS FOUNDATION TRUST,N/A,1177,N/A,N/A,03-JAN-17,2685501,800.00,0.00,The Light House Residential,Education and Training Services
Derby City Council,Communities & Place,Refuse & Waste Management,"Strategic Partnerships, Planning & Streetpride",DERBYSHIRE COUNTY COUNCIL,N/A,1216,N/A,N/A,03-JAN-17,2694191,81847.11,0.00,Waste Disposal,Education and Training Services
Derby City Council,Communities & Place,Refuse & Waste Management,"Strategic Partnerships, Planning & Streetpride",DERBYSHIRE COUNTY COUNCIL,N/A,1216,N/A,N/A,03-JAN-17,2694191,88680.64,0.00,Waste Disposal,Education and Training Services
Derby City Council,Communities & Place,Refuse & Waste Management,"Strategic Partnerships, Planning & Streetpride",DERBYSHIRE COUNTY COUNCIL,N/A,1216,N/A,N/A,03-JAN-17,2694191,3183.81,0.00,Waste Disposal,Education and Training Services
Derby City Council,Communities & Place,Refuse & Waste Management,"Strategic Partnerships, Planning & Streetpride",DERBYSHIRE COUNTY COUNCIL,N/A,1216,N/A,N/A,03-JAN-17,2694191,22830.22,0.00,Waste Disposal,Education and Training Services
Derby City Council,Communities & Place,Refuse & Waste Management,"Strategic Partnerships, Planning & Streetpride",DERBYSHIRE COUNTY COUNCIL,N/A,1216,N/A,N/A,03-JAN-17,2694191,578909.11,0.00,Waste Disposal,Education and Training Services
Derby City Council,Communities & Place,Refuse & Waste Management,"Strategic Partnerships, Planning & Streetpride",DERBYSHIRE COUNTY COUNCIL,N/A,1216,N/A,N/A,03-JAN-17,2694191,1087.15,0.00,Waste Disposal,Education and Training Services
Derby City Council,Organisation & Governance,HR Casework,Governance and Assurance,DISCLOSURE AND BARRING SERVICE,N/A,146440,N/A,N/A,03-JAN-17,2694505,12760.00,0.00,HR Shared Services,N/A
Derby City Council,Organisation & Governance,HR Casework,Governance and Assurance,DISCLOSURE AND BARRING SERVICE,N/A,146440,N/A,N/A,03-JAN-17,2694506,11357.00,0.00,HR Shared Services,N/A
Derby City Council,Communities & Place,Economic Regeneration,"Regeneration, Property & Housing",DNLCC,N/A,246414,N/A,N/A,03-JAN-17,2694143,37445.75,0.00,Economic Regeneration,Public Utilities and Public Sector Relat
Derby City Council,Adults Health and Housing,Capital Expenditure ,Capital Expenditure ,E and M BUILDING SERVICES,N/A,124751,N/A,N/A,03-JAN-17,2694320,980.00,0.00,Disability Adaptions,Building and Construction and Maintenanc
Derby City Council,Communities & Place,General,"Strategic Partnerships, Planning & Streetpride",ENTERPRISE FLEX E RENT LTD,N/A,277434,N/A,N/A,03-JAN-17,2675851,13061.56,0.00,Fleet Hire,Transportation and Storage and Mail Serv
Derby City Council,Organisation & Governance,"Information, Computing & Technology",Digital Services,FGI LTD,N/A,107788,N/A,N/A,03-JAN-17,2692183,509.00,0.00,Computer Services,Education and Training Services
Derby City Council,Communities & Place,Grounds Maintenance & Cleansing,"Strategic Partnerships, Planning & Streetpride",GARFITTS INTERNATIONAL LTD,N/A,1974,N/A,N/A,03-JAN-17,2686065,423.31,0.00,Grounds Maintenance,Service Industry Machinery and Equipment
Derby City Council,Communities & Place,Grounds Maintenance & Cleansing,"Strategic Partnerships, Planning & Streetpride",GARFITTS INTERNATIONAL LTD,N/A,1974,N/A,N/A,03-JAN-17,2686065,79.83,0.00,Grounds Maintenance,Service Industry Machinery and Equipment
Derby City Council,Communities & Place,Building Consultancy and Emergency Planning,"Communities, Environment & Regulatory Services",GTM GO TRAFFIC MANAGEMENT,N/A,200402,N/A,N/A,03-JAN-17,2694156,838.00,0.00,Building Control,Defense and Law Enforcement and Security
Derby City Council,Communities & Place,Strategic Housing,"Regeneration, Property & Housing",GUINNESS NORTHERN COUNTIES,N/A,117863,N/A,N/A,03-JAN-17,2637385,28293.21,0.00,Bedford Street,N/A
Derby City Council,Communities & Place,Strategic Housing,"Regeneration, Property & Housing",GUINNESS NORTHERN COUNTIES,N/A,117863,N/A,N/A,03-JAN-17,2637385,-6780.93,0.00,Bedford Street,N/A
Derby City Council,Communities & Place,Traffic & Transportation,"Strategic Partnerships, Planning & Streetpride",GVA GRIMLEY LTD,N/A,100958,N/A,N/A,03-JAN-17,2694148,11843.00,0.00,Central Traffic Management,Management and Business Professionals an
Derby City Council,Adults Health and Housing,Capital Expenditure ,Capital Expenditure ,H AND R GROUNDWORKS AND LANDSCAPING LTD,N/A,471215,N/A,N/A,03-JAN-17,2693857,1550.00,0.00,Estates Pride - General,Environmental Services
Derby City Council,Adults Health and Housing,Capital Expenditure ,Capital Expenditure ,H AND R GROUNDWORKS AND LANDSCAPING LTD,N/A,471215,N/A,N/A,03-JAN-17,2693857,7950.00,0.00,Estates Pride - General,Environmental Services
Derby City Council,Communities & Place,Strategic Housing,"Regeneration, Property & Housing",HALL AND BENSON,N/A,186678,N/A,N/A,03-JAN-17,2694512,510.00,0.00,Homelessness Prevention Fund,N/A
Derby City Council,Communities & Place,Culture & Business Development,"Leisure, Culture and Tourism",HAWTHORN THEATRICAL LTD,N/A,39654,N/A,N/A,03-JAN-17,2692185,2209.50,0.00,Derby Live - Head Quarters,Electrical systems and Lighting and comp
Derby City Council,People Services - Children & Young People,Early Intervention & Integrated Safeguarding,Non-Schools,HILLBROOKE GUEST HOUSE,N/A,1900,N/A,N/A,03-JAN-17,2680380,455.00,0.00,MAT Team under 11's,Travel and Food and Lodging and Entertai
Derby City Council,People Services - Children & Young People,Early Intervention & Integrated Safeguarding,Non-Schools,HILLBROOKE GUEST HOUSE,N/A,1900,N/A,N/A,03-JAN-17,2688875,455.00,0.00,MAT Team under 11's,Travel and Food and Lodging and Entertai
Derby City Council,People Services - Children & Young People,Early Intervention & Integrated Safeguarding,Non-Schools,HILLBROOKE GUEST HOUSE,N/A,1900,N/A,N/A,03-JAN-17,2692130,455.00,0.00,MAT Team under 11's,Travel and Food and Lodging and Entertai
Derby City Council,People Services - Children & Young People,Early Intervention & Integrated Safeguarding,Non-Schools,HILLBROOKE GUEST HOUSE,N/A,1900,N/A,N/A,03-JAN-17,2692161,455.00,0.00,MAT Team under 11's,Travel and Food and Lodging and Entertai
Derby City Council,People Services - Children & Young People,Specialist Services,Non-Schools,INTEGRATE FAMILIES,N/A,187006,N/A,N/A,03-JAN-17,2694008,1620.00,0.00,Adoption Support Fund,N/A
Derby City Council,Organisation & Governance,Communication and Consultation,Strategic Services and Organisational Development,JIGSAW SYSTEMS LTD,N/A,15057,N/A,N/A,03-JAN-17,2694012,1276.00,0.00,Corporate Communications,Information Technology Broadcasting and
Derby City Council,Neighbourhoods,Capital Expenditure ,Capital Expenditure ,JOULES LTD,N/A,485409,N/A,N/A,03-JAN-17,2694155,23890.00,0.00,Building Frontage Enhancement Scheme,N/A
Derby City Council,Organisation & Governance,Facilities Management,Strategic Services and Organisational Development,K H PACKAGING AND DISPOSABLES LTD,N/A,2247,N/A,N/A,03-JAN-17,2693753,578.75,0.00,Cleaning Operating Account,Cleaning Equipment and Supplies
Derby City Council,Communities & Place,Leisure,"Leisure, Culture and Tourism",MAGFERN RECYCLING LTD,N/A,2558,N/A,N/A,03-JAN-17,2692951,420.00,0.00,Derby Multi Use Sports Arena,Environmental Services
Derby City Council,Communities & Place,Leisure,"Leisure, Culture and Tourism",MAGFERN RECYCLING LTD,N/A,2558,N/A,N/A,03-JAN-17,2692951,420.00,0.00,Derby Multi Use Sports Arena,Environmental Services
Derby City Council,Communities & Place,Grounds Maintenance & Cleansing,"Strategic Partnerships, Planning & Streetpride",MAGFERN RECYCLING LTD,N/A,2558,N/A,N/A,03-JAN-17,2694095,5144.10,0.00,Waste Transfer Station - London Road Depot,Environmental Services
Derby City Council,Communities & Place,Grounds Maintenance & Cleansing,"Strategic Partnerships, Planning & Streetpride",MAGFERN RECYCLING LTD,N/A,2558,N/A,N/A,03-JAN-17,2694093,1071.08,0.00,Markets - StreetPride,Environmental Services
Derby City Council,Communities & Place,Grounds Maintenance & Cleansing,"Strategic Partnerships, Planning & Streetpride",MAGFERN RECYCLING LTD,N/A,2558,N/A,N/A,03-JAN-17,2694174,2855.66,0.00,Waste Transfer Station - London Road Depot,Environmental Services
Derby City Council,Communities & Place,Grounds Maintenance & Cleansing,"Strategic Partnerships, Planning & Streetpride",MAGFERN RECYCLING LTD,N/A,2558,N/A,N/A,03-JAN-17,2694175,3412.95,0.00,Waste Transfer Station - London Road Depot,Environmental Services
Derby City Council,Communities & Place,Grounds Maintenance & Cleansing,"Strategic Partnerships, Planning & Streetpride",MAGFERN RECYCLING LTD,N/A,2558,N/A,N/A,03-JAN-17,2694177,3139.70,0.00,Waste Transfer Station - London Road Depot,Environmental Services
Derby City Council,Communities & Place,Grounds Maintenance & Cleansing,"Strategic Partnerships, Planning & Streetpride",MAGFERN RECYCLING LTD,N/A,2558,N/A,N/A,03-JAN-17,2694176,573.11,0.00,Grounds Maintenance,Environmental Services
Derby City Council,Communities & Place,Grounds Maintenance & Cleansing,"Strategic Partnerships, Planning & Streetpride",MAGFERN RECYCLING LTD,N/A,2558,N/A,N/A,03-JAN-17,2694178,997.75,0.00,Grounds Maintenance,Environmental Services
Derby City Council,Communities & Place,Grounds Maintenance & Cleansing,"Strategic Partnerships, Planning & Streetpride",MAGFERN RECYCLING LTD,N/A,2558,N/A,N/A,03-JAN-17,2694178,395.10,0.00,Grounds Maintenance,Environmental Services
Derby City Council,Communities & Place,Grounds Maintenance & Cleansing,"Strategic Partnerships, Planning & Streetpride",MAGFERN RECYCLING LTD,N/A,2558,N/A,N/A,03-JAN-17,2671647,528.14,0.00,Markets - StreetPride,Environmental Services
Derby City Council,Communities & Place,Grounds Maintenance & Cleansing,"Strategic Partnerships, Planning & Streetpride",MAGFERN RECYCLING LTD,N/A,2558,N/A,N/A,03-JAN-17,2694160,953.32,0.00,Markets - StreetPride,Environmental Services
Derby City Council,Communities & Place,Grounds Maintenance & Cleansing,"Strategic Partnerships, Planning & Streetpride",MAGFERN RECYCLING LTD,N/A,2558,N/A,N/A,03-JAN-17,2694169,986.12,0.00,Markets - StreetPride,Environmental Services
Derby City Council,Communities & Place,Grounds Maintenance & Cleansing,"Strategic Partnerships, Planning & Streetpride",MAGFERN RECYCLING LTD,N/A,2558,N/A,N/A,03-JAN-17,2694173,1080.05,0.00,Markets - StreetPride,Environmental Services
Derby City Council,Communities & Place,Grounds Maintenance & Cleansing,"Strategic Partnerships, Planning & Streetpride",MAGFERN RECYCLING LTD,N/A,2558,N/A,N/A,03-JAN-17,2694179,197.28,0.00,Grounds Maintenance Derby Homes,Environmental Services
Derby City Council,Communities & Place,Grounds Maintenance & Cleansing,"Strategic Partnerships, Planning & Streetpride",MAGFERN RECYCLING LTD,N/A,2558,N/A,N/A,03-JAN-17,2694179,42.24,0.00,Grounds Maintenance Derby Homes,Environmental Services
Derby City Council,Communities & Place,Grounds Maintenance & Cleansing,"Strategic Partnerships, Planning & Streetpride",MAGFERN RECYCLING LTD,N/A,2558,N/A,N/A,03-JAN-17,2694179,1147.60,0.00,Grounds Maintenance Derby Homes,Environmental Services
Derby City Council,Communities & Place,Grounds Maintenance & Cleansing,"Strategic Partnerships, Planning & Streetpride",MAGFERN RECYCLING LTD,N/A,2558,N/A,N/A,03-JAN-17,2694183,4042.08,0.00,Grounds Maintenance Derby Homes,Environmental Services
Derby City Council,Communities & Place,Grounds Maintenance & Cleansing,"Strategic Partnerships, Planning & Streetpride",MAGFERN RECYCLING LTD,N/A,2558,N/A,N/A,03-JAN-17,2694183,-4042.08,0.00,Grounds Maintenance Derby Homes,Environmental Services
Derby City Council,Communities & Place,Grounds Maintenance & Cleansing,"Strategic Partnerships, Planning & Streetpride",MAGFERN RECYCLING LTD,N/A,2558,N/A,N/A,03-JAN-17,2694183,3975.52,0.00,Grounds Maintenance Derby Homes,Environmental Services
Derby City Council,Communities & Place,Grounds Maintenance & Cleansing,"Strategic Partnerships, Planning & Streetpride",MAGFERN RECYCLING LTD,N/A,2558,N/A,N/A,03-JAN-17,2694183,66.56,0.00,Grounds Maintenance Derby Homes,Environmental Services
Derby City Council,Communities & Place,Grounds Maintenance & Cleansing,"Strategic Partnerships, Planning & Streetpride",MANSFIELD SAND COMPANY LTD,N/A,11790,N/A,N/A,03-JAN-17,2665067,900.00,0.00,Grounds Maintenance - Allestree Golf,Structures and Building and Construction
Derby City Council,Communities & Place,Grounds Maintenance & Cleansing,"Strategic Partnerships, Planning & Streetpride",MANSFIELD SAND COMPANY LTD,N/A,11790,N/A,N/A,03-JAN-17,2665067,-9.90,0.00,Grounds Maintenance - Allestree Golf,Structures and Building and Construction
Derby City Council,Organisation & Governance,Finance,Finance,MATRIX SCM LTD,N/A,123688,N/A,N/A,03-JAN-17,2694150,118695.65,0.00,Temporary Workers Control A/C,N/A
Derby City Council,Organisation & Governance,Finance,Finance,MATRIX SCM LTD,N/A,123688,N/A,N/A,03-JAN-17,2694150,3.15,0.00,Temporary Workers Control A/C,N/A
Derby City Council,Organisation & Governance,Finance,Finance,MATRIX SCM LTD,N/A,123688,N/A,N/A,03-JAN-17,2694150,-3.15,0.00,Temporary Workers Control A/C,N/A
Derby City Council,Communities & Place,Strategic Housing,"Regeneration, Property & Housing",MCCONNELLS (MIDLANDS) LTD,N/A,2917,N/A,N/A,03-JAN-17,2680800,497.67,0.00,Private Sector Housing,Editorial and Design and Graphic and Fin
Derby City Council,Communities & Place,Strategic Housing,"Regeneration, Property & Housing",MCCONNELLS (MIDLANDS) LTD,N/A,2917,N/A,N/A,03-JAN-17,2680800,93.53,0.00,Private Sector Housing,Editorial and Design and Graphic and Fin
Derby City Council,Communities & Place,Planning,"Strategic Partnerships, Planning & Streetpride",MCCONNELLS (MIDLANDS) LTD,N/A,2917,N/A,N/A,03-JAN-17,2693647,548.34,0.00,Our City Our River,Editorial and Design and Graphic and Fin
Derby City Council,Communities & Place,Planning,"Strategic Partnerships, Planning & Streetpride",MCCONNELLS (MIDLANDS) LTD,N/A,2917,N/A,N/A,03-JAN-17,2693647,12.00,0.00,Our City Our River,Editorial and Design and Graphic and Fin
Derby City Council,Communities & Place,Planning,"Strategic Partnerships, Planning & Streetpride",MCCONNELLS (MIDLANDS) LTD,N/A,2917,N/A,N/A,03-JAN-17,2693647,1.00,0.00,Our City Our River,Editorial and Design and Graphic and Fin
Derby City Council,Organisation & Governance,HR Casework,Governance and Assurance,MIDLAND HR,N/A,127170,N/A,N/A,03-JAN-17,2655147,907.00,0.00,HR Shared Services,Management and Business Professionals an
Derby City Council,Communities & Place,Community Safety and Integration,"Communities, Environment & Regulatory Services",MULTI FAITH CENTRE,N/A,9439,N/A,N/A,03-JAN-17,2693718,7909.00,0.00,Preventing Violent Extremism,Travel and Food and Lodging and Entertai
Derby City Council,Organisation & Governance,Performance and Intelligence,Strategic Services and Organisational Development,NINE DOTS DEVELOPMENT,N/A,471074,N/A,N/A,03-JAN-17,2694009,1800.00,0.00,Strategic Planning & Performance,Education and Training Services
Derby City Council,People Services - Children & Young People,Early Intervention & Integrated Safeguarding,Non-Schools,NON STOP RECRUITMENT LTD,N/A,205384,N/A,N/A,03-JAN-17,2656411,1391.94,0.00,Arboretum Under 11's Team,N/A
Derby City Council,People Services - Children & Young People,Early Intervention & Integrated Safeguarding,Non-Schools,NON STOP RECRUITMENT LTD,N/A,205384,N/A,N/A,03-JAN-17,2656411,-1391.94,0.00,Arboretum Under 11's Team,N/A
Derby City Council,People Services - Children & Young People,Early Intervention & Integrated Safeguarding,Non-Schools,NON STOP RECRUITMENT LTD,N/A,205384,N/A,N/A,03-JAN-17,2656411,-1391.94,0.00,Arboretum Under 11's Team,N/A
Derby City Council,People Services - Children & Young People,Early Intervention & Integrated Safeguarding,Non-Schools,NON STOP RECRUITMENT LTD,N/A,205384,N/A,N/A,03-JAN-17,2656411,1391.94,0.00,Arboretum Under 11's Team,N/A
Derby City Council,People Services - Children & Young People,Early Intervention & Integrated Safeguarding,Non-Schools,NON STOP RECRUITMENT LTD,N/A,205384,N/A,N/A,03-JAN-17,2693141,1387.50,0.00,Becket Team,N/A
Derby City Council,Communities & Place,Traffic & Transportation,"Strategic Partnerships, Planning & Streetpride",NON STOP RECRUITMENT LTD,N/A,205384,N/A,N/A,03-JAN-17,2656411,1391.94,0.00,Central Traffic Management,N/A
Derby City Council,Communities & Place,Traffic & Transportation,"Strategic Partnerships, Planning & Streetpride",NON STOP RECRUITMENT LTD,N/A,205384,N/A,N/A,03-JAN-17,2656411,-1391.94,0.00,Central Traffic Management,N/A
Derby City Council,Communities & Place,Traffic & Transportation,"Strategic Partnerships, Planning & Streetpride",NON STOP RECRUITMENT LTD,N/A,205384,N/A,N/A,03-JAN-17,2656411,1391.94,0.00,Central Traffic Management,N/A
Derby City Council,Communities & Place,General,"Strategic Partnerships, Planning & Streetpride",PACE FUELCARE,N/A,474148,N/A,N/A,03-JAN-17,2664271,33512.32,0.00,Fleet Hire,Fuels and Fuel Additives and Lubricants
Derby City Council,Communities & Place,General,"Strategic Partnerships, Planning & Streetpride",PACE FUELCARE,N/A,474148,N/A,N/A,03-JAN-17,2694013,28563.00,0.00,Fleet Hire,Fuels and Fuel Additives and Lubricants
Derby City Council,Communities & Place,General,"Strategic Partnerships, Planning & Streetpride",PACE FUELCARE,N/A,474148,N/A,N/A,03-JAN-17,2694013,4730.60,0.00,Fleet Hire,Fuels and Fuel Additives and Lubricants
Derby City Council,People Services - Children & Young People,Learning & Inclusion,Non-Schools,PAULINE ANDERSON LTD,N/A,265413,N/A,N/A,03-JAN-17,2694110,7000.00,0.00,Quality Standards & Performance,N/A
Derby City Council,People Services - Adults and Health,Learning Disability Support,Direct Services,PORTAKABIN LTD,N/A,4002,N/A,N/A,03-JAN-17,2693703,1237.19,0.00,Aspect,Structures and Building and Construction
Derby City Council,People Services - Children & Young People,Early Intervention & Integrated Safeguarding,Non-Schools,POSTURITE UK LTD,N/A,7572,N/A,N/A,03-JAN-17,2656290,832.50,0.00,First Contact Team,Furniture and Furnishings
Derby City Council,People Services - Children & Young People,Early Intervention & Integrated Safeguarding,Non-Schools,POSTURITE UK LTD,N/A,7572,N/A,N/A,03-JAN-17,2656290,89.97,0.00,First Contact Team,Furniture and Furnishings
Derby City Council,People Services - Children & Young People,Early Intervention & Integrated Safeguarding,Non-Schools,POSTURITE UK LTD,N/A,7572,N/A,N/A,03-JAN-17,2656290,-102.32,0.00,First Contact Team,Furniture and Furnishings
Derby City Council,People Services - Children & Young People,Early Intervention & Integrated Safeguarding,Non-Schools,POSTURITE UK LTD,N/A,7572,N/A,N/A,03-JAN-17,2671566,738.00,0.00,Integrated Service Managemet Locality 3/4,Furniture and Furnishings
Derby City Council,People Services - Children & Young People,Early Intervention & Integrated Safeguarding,Non-Schools,POSTURITE UK LTD,N/A,7572,N/A,N/A,03-JAN-17,2671566,90.00,0.00,Integrated Service Managemet Locality 3/4,Furniture and Furnishings
Derby City Council,People Services - Children & Young People,Early Intervention & Integrated Safeguarding,Non-Schools,POSTURITE UK LTD,N/A,7572,N/A,N/A,03-JAN-17,2671566,117.00,0.00,Integrated Service Managemet Locality 3/4,Furniture and Furnishings
Derby City Council,People Services - Children & Young People,Early Intervention & Integrated Safeguarding,Non-Schools,POSTURITE UK LTD,N/A,7572,N/A,N/A,03-JAN-17,2671566,-118.13,0.00,Integrated Service Managemet Locality 3/4,Furniture and Furnishings
Derby City Council,Communities & Place,"Occupational Health, Safety, Markets & Bereavement Services","Communities, Environment & Regulatory Services",POWERGEN A COMPANY OF E.ON,N/A,4011,N/A,N/A,03-JAN-17,2694163,771.58,0.00,Wholesale Market - Service Charge,N/A
Derby City Council,Organisation & Governance,Business Support,Strategic Services and Organisational Development,PREMIER PAPER GROUP LTD,N/A,178442,N/A,N/A,03-JAN-17,2694077,1025.20,0.00,DMC - Document Management Centre,Paper Materials and Products
Derby City Council,Organisation & Governance,Business Support,Strategic Services and Organisational Development,PREMIER PAPER GROUP LTD,N/A,178442,N/A,N/A,03-JAN-17,2694077,264.60,0.00,DMC - Document Management Centre,Paper Materials and Products
Derby City Council,Organisation & Governance,Business Support,Strategic Services and Organisational Development,PREMIER PAPER GROUP LTD,N/A,178442,N/A,N/A,03-JAN-17,2694077,103.78,0.00,DMC - Document Management Centre,Paper Materials and Products
Derby City Council,Adults Health and Housing,Capital Expenditure ,Capital Expenditure ,R L ELVIDGE,N/A,4385,N/A,N/A,03-JAN-17,2693876,90.00,0.00,Disability Adaptions,Building and Construction and Maintenanc
Derby City Council,Adults Health and Housing,Capital Expenditure ,Capital Expenditure ,R L ELVIDGE,N/A,4385,N/A,N/A,03-JAN-17,2693876,500.41,0.00,Disability Adaptions,Building and Construction and Maintenanc
Derby City Council,Adults Health and Housing,Capital Expenditure ,Capital Expenditure ,R L ELVIDGE,N/A,4385,N/A,N/A,03-JAN-17,2693877,90.00,0.00,Disability Adaptions,Building and Construction and Maintenanc
Derby City Council,Adults Health and Housing,Capital Expenditure ,Capital Expenditure ,R L ELVIDGE,N/A,4385,N/A,N/A,03-JAN-17,2693877,500.41,0.00,Disability Adaptions,Building and Construction and Maintenanc
Derby City Council,Communities & Place,"Environmental Protection, Licensing, Housing","Communities, Environment & Regulatory Services",REDACTED DATA,N/A,26296,N/A,N/A,03-JAN-17,2693077,1200.00,0.00,Burial/Crem N.A. Act 1948,Default
Derby City Council,Communities & Place,"Environmental Protection, Licensing, Housing","Communities, Environment & Regulatory Services",REDACTED DATA,N/A,26296,N/A,N/A,03-JAN-17,2693077,-268.00,0.00,Burial/Crem N.A. Act 1948,Default
Derby City Council,People Services - Adults and Health,Physical Support,Community Support,REDACTED DATA,N/A,480420,N/A,N/A,03-JAN-17,2694252,143.83,0.00,Central OP (over 65) Physical - DP/Mgd,N/A
Derby City Council,People Services - Adults and Health,Physical Support,Community Support,REDACTED DATA,N/A,480420,N/A,N/A,03-JAN-17,2694252,180.00,0.00,Central OP (over 65) Physical - DP/Mgd,N/A
Derby City Council,People Services - Adults and Health,Physical Support,Community Support,REDACTED DATA,N/A,480420,N/A,N/A,03-JAN-17,2694252,720.00,0.00,Central OP (over 65) Physical - DP/Mgd,N/A
Derby City Council,People Services - Adults and Health,Mental Health Support,Mental Health,REDACTED DATA,N/A,237424,N/A,N/A,03-JAN-17,2694236,488.15,0.00,Central/East MH Support OP (over 65) - DP/Mgd,N/A
Derby City Council,People Services - Adults and Health,Mental Health Support,Mental Health,REDACTED DATA,N/A,237424,N/A,N/A,03-JAN-17,2694236,-336.29,0.00,Central/East MH Support OP (over 65) - DP/Mgd,N/A
Derby City Council,People Services - Adults and Health,Mental Health Support,Mental Health,REDACTED DATA,N/A,237424,N/A,N/A,03-JAN-17,2694236,1242.56,0.00,Central/East MH Support OP (over 65) - DP/Mgd,N/A
Derby City Council,People Services - Adults and Health,Mental Health Support,Mental Health,REDACTED DATA,N/A,237424,N/A,N/A,03-JAN-17,2694236,-856.00,0.00,Central/East MH Support OP (over 65) - DP/Mgd,N/A
Derby City Council,People Services - Adults and Health,Mental Health Support,Mental Health,REDACTED DATA,N/A,237424,N/A,N/A,03-JAN-17,2694236,41.42,0.00,Central/East MH Support OP (over 65) - DP/Mgd,N/A
Derby City Council,People Services - Adults and Health,Learning Disability Support,Community Support,REDACTED DATA,N/A,473911,N/A,N/A,03-JAN-17,2694243,360.00,0.00,Central OP (over 65) LD - DP/Mgd,N/A
Derby City Council,People Services - Adults and Health,Learning Disability Support,Community Support,REDACTED DATA,N/A,473911,N/A,N/A,03-JAN-17,2694243,480.00,0.00,Central OP (over 65) LD - DP/Mgd,N/A
Derby City Council,People Services - Adults and Health,Learning Disability Support,Community Support,REDACTED DATA,N/A,473911,N/A,N/A,03-JAN-17,2694243,480.00,0.00,Central OP (over 65) LD - DP/Mgd,N/A
Derby City Council,People Services - Adults and Health,Learning Disability Support,Community Support,REDACTED DATA,N/A,473911,N/A,N/A,03-JAN-17,2694243,-131.79,0.00,Central OP (over 65) LD - DP/Mgd,N/A
Derby City Council,People Services - Adults and Health,Learning Disability Support,Community Support,REDACTED DATA,N/A,473911,N/A,N/A,03-JAN-17,2694243,-175.72,0.00,Central OP (over 65) LD - DP/Mgd,N/A
Derby City Council,People Services - Adults and Health,Learning Disability Support,Community Support,REDACTED DATA,N/A,473911,N/A,N/A,03-JAN-17,2694243,-175.72,0.00,Central OP (over 65) LD - DP/Mgd,N/A
Derby City Council,Adults Health and Housing,Capital Expenditure ,Capital Expenditure ,REDACTED DATA,N/A,2117,N/A,N/A,03-JAN-17,2693743,888.00,0.00,Healthy Housing Assistance,N/A
Derby City Council,People Services - Adults and Health,Learning Disability Support,Transitions and Ordinary Lives,REDACTED DATA,N/A,480416,N/A,N/A,03-JAN-17,2694231,125.84,0.00,Preparing for adulthood 18-24 LD ? DP/Mgd,N/A
Derby City Council,People Services - Adults and Health,Learning Disability Support,Transitions and Ordinary Lives,REDACTED DATA,N/A,480416,N/A,N/A,03-JAN-17,2694231,503.36,0.00,Preparing for adulthood 18-24 LD ? DP/Mgd,N/A
Derby City Council,People Services - Adults and Health,Learning Disability Support,Transitions and Ordinary Lives,REDACTED DATA,N/A,480416,N/A,N/A,03-JAN-17,2694231,503.36,0.00,Preparing for adulthood 18-24 LD ? DP/Mgd,N/A
Derby City Council,People Services - Adults and Health,Learning Disability Support,Transitions and Ordinary Lives,REDACTED DATA,N/A,480416,N/A,N/A,03-JAN-17,2694231,503.36,0.00,Preparing for adulthood 18-24 LD ? DP/Mgd,N/A
Derby City Council,People Services - Adults and Health,Learning Disability Support,Transitions and Ordinary Lives,REDACTED DATA,N/A,480416,N/A,N/A,03-JAN-17,2694231,503.36,0.00,Preparing for adulthood 18-24 LD ? DP/Mgd,N/A
Derby City Council,People Services - Adults and Health,Learning Disability Support,Community Support,REDACTED DATA,N/A,125823,N/A,N/A,03-JAN-17,2694230,1048.04,0.00,Central Adults (under 65) LD - DP/Mgd,N/A
Derby City Council,People Services - Adults and Health,Learning Disability Support,Community Support,REDACTED DATA,N/A,125823,N/A,N/A,03-JAN-17,2694230,1048.04,0.00,Central Adults (under 65) LD - DP/Mgd,N/A
Derby City Council,People Services - Adults and Health,Learning Disability Support,Community Support,REDACTED DATA,N/A,125823,N/A,N/A,03-JAN-17,2694230,1048.04,0.00,Central Adults (under 65) LD - DP/Mgd,N/A
Derby City Council,People Services - Adults and Health,Learning Disability Support,Community Support,REDACTED DATA,N/A,125823,N/A,N/A,03-JAN-17,2694230,-105.24,0.00,Central Adults (under 65) LD - DP/Mgd,N/A
Derby City Council,People Services - Adults and Health,Learning Disability Support,Community Support,REDACTED DATA,N/A,125823,N/A,N/A,03-JAN-17,2694230,-105.24,0.00,Central Adults (under 65) LD - DP/Mgd,N/A
Derby City Council,People Services - Adults and Health,Learning Disability Support,Community Support,REDACTED DATA,N/A,125823,N/A,N/A,03-JAN-17,2694230,-105.24,0.00,Central Adults (under 65) LD - DP/Mgd,N/A
Derby City Council,People Services - Adults and Health,Social Care Activities,Mental Health,REDACTED DATA,N/A,3131,N/A,N/A,03-JAN-17,2685314,2019.60,0.00,MH Central/East Staff Costs,Live Plant and Animal Material and Acces
Derby City Council,Adults Health and Housing,Capital Expenditure ,Capital Expenditure ,REDACTED DATA,N/A,474094,N/A,N/A,03-JAN-17,2670225,2181.77,0.00,Disabled Facilities Grant 96 Act,N/A
Derby City Council,Organisation & Governance,Legal Services,Governance and Assurance,REDACTED DATA,N/A,470964,N/A,N/A,03-JAN-17,2694102,650.00,0.00,Corporate Services - Legal,N/A
Derby City Council,People Services - Children & Young People,Early Intervention & Integrated Safeguarding,Non-Schools,REDACTED DATA,N/A,474203,N/A,N/A,03-JAN-17,2686991,143.57,0.00,Becket Team,N/A
Derby City Council,People Services - Children & Young People,Early Intervention & Integrated Safeguarding,Non-Schools,REDACTED DATA,N/A,474203,N/A,N/A,03-JAN-17,2686991,1148.56,0.00,Becket Team,N/A
Derby City Council,People Services - Adults and Health,Learning Disability Support,Community Support,REDACTED DATA,N/A,257433,N/A,N/A,03-JAN-17,2694228,192.00,0.00,Central Adults (under 65) LD - DP/Mgd,N/A
Derby City Council,People Services - Adults and Health,Learning Disability Support,Community Support,REDACTED DATA,N/A,257433,N/A,N/A,03-JAN-17,2694228,721.99,0.00,Central Adults (under 65) LD - DP/Mgd,N/A
Derby City Council,People Services - Adults and Health,Learning Disability Support,Community Support,REDACTED DATA,N/A,257433,N/A,N/A,03-JAN-17,2694228,2349.24,0.00,Central Adults (under 65) LD - DP/Mgd,N/A
Derby City Council,People Services - Adults and Health,Learning Disability Support,Community Support,REDACTED DATA,N/A,257433,N/A,N/A,03-JAN-17,2694228,2349.24,0.00,Central Adults (under 65) LD - DP/Mgd,N/A
Derby City Council,People Services - Adults and Health,Learning Disability Support,Community Support,REDACTED DATA,N/A,257433,N/A,N/A,03-JAN-17,2694228,2349.24,0.00,Central Adults (under 65) LD - DP/Mgd,N/A
Derby City Council,People Services - Adults and Health,Learning Disability Support,Community Support,REDACTED DATA,N/A,257433,N/A,N/A,03-JAN-17,2694228,2349.24,0.00,Central Adults (under 65) LD - DP/Mgd,N/A
Derby City Council,People Services - Adults and Health,Social Care Activities,Community Support,REDACTED DATA,N/A,12,N/A,N/A,03-JAN-17,2693761,588.19,0.00,Charging Income Holding Account,N/A
Derby City Council,People Services - Adults and Health,Physical Support,Community Support,REDACTED DATA,N/A,481402,N/A,N/A,03-JAN-17,2694227,171.96,0.00,West Adults (under 65) Physical - DP/Mgd,N/A
Derby City Council,People Services - Adults and Health,Physical Support,Community Support,REDACTED DATA,N/A,481402,N/A,N/A,03-JAN-17,2694227,687.84,0.00,West Adults (under 65) Physical - DP/Mgd,N/A
Derby City Council,People Services - Adults and Health,Physical Support,Community Support,REDACTED DATA,N/A,481402,N/A,N/A,03-JAN-17,2694227,687.84,0.00,West Adults (under 65) Physical - DP/Mgd,N/A
Derby City Council,People Services - Adults and Health,Physical Support,Community Support,REDACTED DATA,N/A,385489,N/A,N/A,03-JAN-17,2694234,609.16,0.00,South OP (over 65) Physical - DP/Mgd,N/A
Derby City Council,People Services - Adults and Health,Physical Support,Community Support,REDACTED DATA,N/A,385489,N/A,N/A,03-JAN-17,2694234,2436.64,0.00,South OP (over 65) Physical - DP/Mgd,N/A
Derby City Council,People Services - Adults and Health,Physical Support,Community Support,REDACTED DATA,N/A,385489,N/A,N/A,03-JAN-17,2694234,-19.56,0.00,South OP (over 65) Physical - DP/Mgd,N/A
Derby City Council,People Services - Adults and Health,Physical Support,Community Support,REDACTED DATA,N/A,385489,N/A,N/A,03-JAN-17,2694234,2436.64,0.00,South OP (over 65) Physical - DP/Mgd,N/A
Derby City Council,People Services - Adults and Health,Physical Support,Community Support,REDACTED DATA,N/A,385489,N/A,N/A,03-JAN-17,2694234,-19.56,0.00,South OP (over 65) Physical - DP/Mgd,N/A
Derby City Council,People Services - Adults and Health,Physical Support,Community Support,REDACTED DATA,N/A,385489,N/A,N/A,03-JAN-17,2694234,2436.64,0.00,South OP (over 65) Physical - DP/Mgd,N/A
Derby City Council,People Services - Adults and Health,Physical Support,Community Support,REDACTED DATA,N/A,385489,N/A,N/A,03-JAN-17,2694234,-19.56,0.00,South OP (over 65) Physical - DP/Mgd,N/A
Derby City Council,People Services - Adults and Health,Physical Support,Community Support,REDACTED DATA,N/A,385489,N/A,N/A,03-JAN-17,2694234,2436.64,0.00,South OP (over 65) Physical - DP/Mgd,N/A
Derby City Council,People Services - Adults and Health,Physical Support,Community Support,REDACTED DATA,N/A,385489,N/A,N/A,03-JAN-17,2694234,-19.56,0.00,South OP (over 65) Physical - DP/Mgd,N/A
Derby City Council,People Services - Adults and Health,Physical Support,Community Support,REDACTED DATA,N/A,385489,N/A,N/A,03-JAN-17,2694234,-4.89,0.00,South OP (over 65) Physical - DP/Mgd,N/A
Derby City Council,Communities & Place,Grounds Maintenance & Cleansing,"Strategic Partnerships, Planning & Streetpride",REGAL PAINTS LTD,N/A,4447,N/A,N/A,03-JAN-17,2694142,3450.00,0.00,Grounds Maintenance,Chemicals including Bio Chemicals and Ga
Derby City Council,People Services - Children & Young People,Specialist Services,Non-Schools,REMEDI,N/A,49769,N/A,N/A,03-JAN-17,2694509,29950.00,0.00,YOS - Youth Justice Grant,Education and Training Services
Derby City Council,Communities & Place,Leisure,"Leisure, Culture and Tourism",RILEY AND CO MANSFIELD LTD,N/A,27009,N/A,N/A,03-JAN-17,2693730,2670.00,0.00,Derby Multi Use Sports Arena,Building and Construction and Maintenanc
Derby City Council,Communities & Place,Leisure,"Leisure, Culture and Tourism",RILEY AND CO MANSFIELD LTD,N/A,27009,N/A,N/A,03-JAN-17,2693730,390.00,0.00,Derby Multi Use Sports Arena,Building and Construction and Maintenanc
Derby City Council,Organisation & Governance,"Information, Computing & Technology",Digital Services,RISUAL LTD,N/A,229390,N/A,N/A,03-JAN-17,2679598,685.00,0.00,ICT Transformation Savings,Information Technology Broadcasting and
Derby City Council,Organisation & Governance,"Information, Computing & Technology",Digital Services,RISUAL LTD,N/A,229390,N/A,N/A,03-JAN-17,2679598,80.00,0.00,ICT Transformation Savings,Information Technology Broadcasting and
Derby City Council,Organisation & Governance,"Information, Computing & Technology",Digital Services,RISUAL LTD,N/A,229390,N/A,N/A,03-JAN-17,2679614,3425.00,0.00,ICT Transformation Savings,Information Technology Broadcasting and
Derby City Council,Organisation & Governance,"Information, Computing & Technology",Digital Services,RISUAL LTD,N/A,229390,N/A,N/A,03-JAN-17,2679614,400.00,0.00,ICT Transformation Savings,Information Technology Broadcasting and
Derby City Council,Organisation & Governance,Democracy,Governance and Assurance,ROYAL MAIL GROUP PLC,N/A,4194,N/A,N/A,03-JAN-17,2665272,1143.73,0.00,Registration Of Electors,Transportation and Storage and Mail Serv
Derby City Council,Communities & Place,Regeneration Projects,"Regeneration, Property & Housing",ROYAL MAIL GROUP PLC,N/A,4194,N/A,N/A,03-JAN-17,2686042,787.00,0.00,Friargate Studios,Transportation and Storage and Mail Serv
Derby City Council,Organisation & Governance,Business Support,Strategic Services and Organisational Development,ROYAL MAIL GROUP PLC,N/A,4194,N/A,N/A,03-JAN-17,2682399,4417.33,0.00,DMC - Document Management Centre,Transportation and Storage and Mail Serv
Derby City Council,Organisation & Governance,Business Support,Strategic Services and Organisational Development,ROYAL MAIL GROUP PLC,N/A,4194,N/A,N/A,03-JAN-17,2682399,850.00,0.00,DMC - Document Management Centre,Transportation and Storage and Mail Serv
Derby City Council,Communities & Place,Property Design & Maintenance,"Regeneration, Property & Housing",S S SYSTEMS LTD,N/A,188339,N/A,N/A,03-JAN-17,2694282,637.45,0.00,Repair & Maintenance Works,Defense and Law Enforcement and Security
Derby City Council,Communities & Place,Property Design & Maintenance,"Regeneration, Property & Housing",S S SYSTEMS LTD,N/A,188339,N/A,N/A,03-JAN-17,2694286,540.00,0.00,Repair & Maintenance Works,Defense and Law Enforcement and Security
Derby City Council,Communities & Place,Property Design & Maintenance,"Regeneration, Property & Housing",S S SYSTEMS LTD,N/A,188339,N/A,N/A,03-JAN-17,2694290,659.88,0.00,Repair & Maintenance Works,Defense and Law Enforcement and Security
Derby City Council,Communities & Place,Property Design & Maintenance,"Regeneration, Property & Housing",S S SYSTEMS LTD,N/A,188339,N/A,N/A,03-JAN-17,2694281,992.93,0.00,Rechargeable Work,Defense and Law Enforcement and Security
Derby City Council,People Services - Children & Young People,Learning & Inclusion,Non-Schools,SCARVA POTTERY SUPPLIES,N/A,343396,N/A,N/A,03-JAN-17,2692125,9.41,0.00,Programme Delivery,Industrial Production and Manufacturing
Derby City Council,People Services - Children & Young People,Learning & Inclusion,Non-Schools,SCARVA POTTERY SUPPLIES,N/A,343396,N/A,N/A,03-JAN-17,2692125,33.19,0.00,Programme Delivery,Industrial Production and Manufacturing
Derby City Council,People Services - Children & Young People,Learning & Inclusion,Non-Schools,SCARVA POTTERY SUPPLIES,N/A,343396,N/A,N/A,03-JAN-17,2692125,9.13,0.00,Programme Delivery,Industrial Production and Manufacturing
Derby City Council,People Services - Children & Young People,Learning & Inclusion,Non-Schools,SCARVA POTTERY SUPPLIES,N/A,343396,N/A,N/A,03-JAN-17,2692125,28.31,0.00,Programme Delivery,Industrial Production and Manufacturing
Derby City Council,People Services - Children & Young People,Learning & Inclusion,Non-Schools,SCARVA POTTERY SUPPLIES,N/A,343396,N/A,N/A,03-JAN-17,2692125,31.15,0.00,Programme Delivery,Industrial Production and Manufacturing
Derby City Council,People Services - Children & Young People,Learning & Inclusion,Non-Schools,SCARVA POTTERY SUPPLIES,N/A,343396,N/A,N/A,03-JAN-17,2692125,22.25,0.00,Programme Delivery,Industrial Production and Manufacturing
Derby City Council,People Services - Children & Young People,Learning & Inclusion,Non-Schools,SCARVA POTTERY SUPPLIES,N/A,343396,N/A,N/A,03-JAN-17,2692125,28.31,0.00,Programme Delivery,Industrial Production and Manufacturing
Derby City Council,People Services - Children & Young People,Learning & Inclusion,Non-Schools,SCARVA POTTERY SUPPLIES,N/A,343396,N/A,N/A,03-JAN-17,2692125,11.75,0.00,Programme Delivery,Industrial Production and Manufacturing
Derby City Council,People Services - Children & Young People,Learning & Inclusion,Non-Schools,SCARVA POTTERY SUPPLIES,N/A,343396,N/A,N/A,03-JAN-17,2692125,12.83,0.00,Programme Delivery,Industrial Production and Manufacturing
Derby City Council,People Services - Children & Young People,Learning & Inclusion,Non-Schools,SCARVA POTTERY SUPPLIES,N/A,343396,N/A,N/A,03-JAN-17,2692125,13.85,0.00,Programme Delivery,Industrial Production and Manufacturing
Derby City Council,People Services - Children & Young People,Learning & Inclusion,Non-Schools,SCARVA POTTERY SUPPLIES,N/A,343396,N/A,N/A,03-JAN-17,2692125,23.26,0.00,Programme Delivery,Industrial Production and Manufacturing
Derby City Council,People Services - Children & Young People,Learning & Inclusion,Non-Schools,SCARVA POTTERY SUPPLIES,N/A,343396,N/A,N/A,03-JAN-17,2692125,15.40,0.00,Programme Delivery,Industrial Production and Manufacturing
Derby City Council,People Services - Children & Young People,Learning & Inclusion,Non-Schools,SCARVA POTTERY SUPPLIES,N/A,343396,N/A,N/A,03-JAN-17,2692125,11.96,0.00,Programme Delivery,Industrial Production and Manufacturing
Derby City Council,People Services - Children & Young People,Learning & Inclusion,Non-Schools,SCARVA POTTERY SUPPLIES,N/A,343396,N/A,N/A,03-JAN-17,2692125,24.48,0.00,Programme Delivery,Industrial Production and Manufacturing
Derby City Council,People Services - Children & Young People,Learning & Inclusion,Non-Schools,SCARVA POTTERY SUPPLIES,N/A,343396,N/A,N/A,03-JAN-17,2692125,26.67,0.00,Programme Delivery,Industrial Production and Manufacturing
Derby City Council,People Services - Children & Young People,Learning & Inclusion,Non-Schools,SCARVA POTTERY SUPPLIES,N/A,343396,N/A,N/A,03-JAN-17,2692125,24.76,0.00,Programme Delivery,Industrial Production and Manufacturing
Derby City Council,People Services - Children & Young People,Learning & Inclusion,Non-Schools,SCARVA POTTERY SUPPLIES,N/A,343396,N/A,N/A,03-JAN-17,2692125,13.83,0.00,Programme Delivery,Industrial Production and Manufacturing
Derby City Council,People Services - Children & Young People,Learning & Inclusion,Non-Schools,SCARVA POTTERY SUPPLIES,N/A,343396,N/A,N/A,03-JAN-17,2692125,14.14,0.00,Programme Delivery,Industrial Production and Manufacturing
Derby City Council,People Services - Children & Young People,Learning & Inclusion,Non-Schools,SCARVA POTTERY SUPPLIES,N/A,343396,N/A,N/A,03-JAN-17,2692125,9.90,0.00,Programme Delivery,Industrial Production and Manufacturing
Derby City Council,People Services - Children & Young People,Learning & Inclusion,Non-Schools,SCARVA POTTERY SUPPLIES,N/A,343396,N/A,N/A,03-JAN-17,2692125,38.67,0.00,Programme Delivery,Industrial Production and Manufacturing
Derby City Council,People Services - Children & Young People,Learning & Inclusion,Non-Schools,SCARVA POTTERY SUPPLIES,N/A,343396,N/A,N/A,03-JAN-17,2692125,33.41,0.00,Programme Delivery,Industrial Production and Manufacturing
Derby City Council,People Services - Children & Young People,Learning & Inclusion,Non-Schools,SCARVA POTTERY SUPPLIES,N/A,343396,N/A,N/A,03-JAN-17,2692125,20.46,0.00,Programme Delivery,Industrial Production and Manufacturing
Derby City Council,People Services - Children & Young People,Learning & Inclusion,Non-Schools,SCARVA POTTERY SUPPLIES,N/A,343396,N/A,N/A,03-JAN-17,2692125,55.56,0.00,Programme Delivery,Industrial Production and Manufacturing
Derby City Council,People Services - Children & Young People,Learning & Inclusion,Non-Schools,SCARVA POTTERY SUPPLIES,N/A,343396,N/A,N/A,03-JAN-17,2692125,108.00,0.00,Programme Delivery,Industrial Production and Manufacturing
Derby City Council,People Services - Children & Young People,Learning & Inclusion,Non-Schools,SCARVA POTTERY SUPPLIES,N/A,343396,N/A,N/A,03-JAN-17,2692125,9.54,0.00,Programme Delivery,Industrial Production and Manufacturing
Derby City Council,People Services - Children & Young People,Learning & Inclusion,Non-Schools,SCARVA POTTERY SUPPLIES,N/A,343396,N/A,N/A,03-JAN-17,2692125,17.09,0.00,Programme Delivery,Industrial Production and Manufacturing
Derby City Council,People Services - Children & Young People,Learning & Inclusion,Non-Schools,SCARVA POTTERY SUPPLIES,N/A,343396,N/A,N/A,03-JAN-17,2692125,8.50,0.00,Programme Delivery,Industrial Production and Manufacturing
Derby City Council,People Services - Children & Young People,Learning & Inclusion,Non-Schools,SCARVA POTTERY SUPPLIES,N/A,343396,N/A,N/A,03-JAN-17,2692125,9.98,0.00,Programme Delivery,Industrial Production and Manufacturing
Derby City Council,People Services - Children & Young People,Learning & Inclusion,Non-Schools,SCARVA POTTERY SUPPLIES,N/A,343396,N/A,N/A,03-JAN-17,2692125,6.64,0.00,Programme Delivery,Industrial Production and Manufacturing
Derby City Council,People Services - Children & Young People,Learning & Inclusion,Non-Schools,SCARVA POTTERY SUPPLIES,N/A,343396,N/A,N/A,03-JAN-17,2692125,24.78,0.00,Programme Delivery,Industrial Production and Manufacturing
Derby City Council,People Services - Children & Young People,Learning & Inclusion,Non-Schools,SCARVA POTTERY SUPPLIES,N/A,343396,N/A,N/A,03-JAN-17,2692125,-82.55,0.00,Programme Delivery,Industrial Production and Manufacturing
Derby City Council,Communities & Place,Leisure,"Leisure, Culture and Tourism",SEVERN TRENT WATER LTD,N/A,4717,N/A,N/A,03-JAN-17,2685240,1948.80,0.00,Moorways Sport Centre DSO,Public Utilities and Public Sector Relat
Derby City Council,Communities & Place,Libraries,"Leisure, Culture and Tourism",SEVERN TRENT WATER LTD,N/A,4717,N/A,N/A,03-JAN-17,2689005,654.96,0.00,Mickleover Branch Library,Public Utilities and Public Sector Relat
Derby City Council,Communities & Place,Leisure,"Leisure, Culture and Tourism",SEVERN TRENT WATER LTD,N/A,100479,N/A,N/A,03-JAN-17,2694154,1088.72,0.00,Springwood Centre DSO,Public Utilities and Public Sector Relat
Derby City Council,People Services - Children & Young People,Early Intervention & Integrated Safeguarding,Non-Schools,SEVERN TRENT WATER LTD,N/A,4717,N/A,N/A,03-JAN-17,2692086,868.70,0.00,Administrative Team Locality 3&4,Public Utilities and Public Sector Relat
Derby City Council,People Services - Children & Young People,Specialist Services,Non-Schools,SEVERN TRENT WATER LTD,N/A,4717,N/A,N/A,03-JAN-17,2686459,769.89,0.00,19 Cricklewood Road,Public Utilities and Public Sector Relat
Derby City Council,Communities & Place,Leisure,"Leisure, Culture and Tourism",SOUTHERN ELECTRIC,N/A,4489,N/A,N/A,03-JAN-17,2694323,417.17,0.00,Markeaton Park & Mundy Play Centre,N/A
Derby City Council,Communities & Place,Leisure,"Leisure, Culture and Tourism",SOUTHERN ELECTRIC,N/A,4489,N/A,N/A,03-JAN-17,2694323,-417.17,0.00,Markeaton Park & Mundy Play Centre,N/A
Derby City Council,Communities & Place,General,"Strategic Partnerships, Planning & Streetpride",SOUTHERN ELECTRIC,N/A,4489,N/A,N/A,03-JAN-17,2693773,1209.40,0.00,Stores Road Depot,N/A
Derby City Council,Communities & Place,Refuse & Waste Management,"Strategic Partnerships, Planning & Streetpride",SOUTHERN ELECTRIC,N/A,4489,N/A,N/A,03-JAN-17,2694323,208.59,0.00,Waste Disposal,N/A
Derby City Council,Communities & Place,Grounds Maintenance & Cleansing,"Strategic Partnerships, Planning & Streetpride",SOUTHERN ELECTRIC,N/A,4489,N/A,N/A,03-JAN-17,2694323,208.58,0.00,Grounds Maintenance,N/A
Derby City Council,People Services - Children & Young People,Non Delegated Schools Budget,Schools Block,ST GEORGES CATHOLIC VOLUNTARY ACADEMY,N/A,263403,N/A,N/A,03-JAN-17,2692219,1763.00,0.00,General Primary Costs,N/A
Derby City Council,People Services - Children & Young People,Learning & Inclusion,Non-Schools,ST JOHN FISHER CATHOLIC VOLUNTARY ACADEMY,N/A,127300,N/A,N/A,03-JAN-17,2693767,1500.00,0.00,16-18 Apprenticeships,N/A
Derby City Council,Communities & Place,Culture & Business Development,"Leisure, Culture and Tourism",STADIUM TM,N/A,171365,N/A,N/A,03-JAN-17,2685577,1466.40,0.00,Derby Live - Presented,Management and Business Professionals an
Derby City Council,Communities & Place,Culture & Business Development,"Leisure, Culture and Tourism",STADIUM TM,N/A,171365,N/A,N/A,03-JAN-17,2685577,-340.40,0.00,Derby Live - Presented,Management and Business Professionals an
Derby City Council,Communities & Place,Culture & Business Development,"Leisure, Culture and Tourism",STAGE ELECTRICS PARTNERSHIP LTD,N/A,4618,N/A,N/A,03-JAN-17,2680801,964.50,0.00,Derby Live - Presented,Electrical systems and Lighting and comp
Derby City Council,Organisation & Governance,Finance,Finance,SUBSIDENCE MANAGEMENT LTD,N/A,68331,N/A,N/A,03-JAN-17,2694153,538.00,0.00,Vat On Sols Fees Insurance,Management and Business Professionals an
Derby City Council,Communities & Place,Highways & Engineering,"Strategic Partnerships, Planning & Streetpride",TARBY CONSTRUCTION LTD,N/A,194477,N/A,N/A,03-JAN-17,2694501,520.00,0.00,Highways Maintenance Works,Structures and Building and Construction
Derby City Council,Communities & Place,Highways & Engineering,"Strategic Partnerships, Planning & Streetpride",TARBY CONSTRUCTION LTD,N/A,194477,N/A,N/A,03-JAN-17,2694501,420.00,0.00,Highways Maintenance Works,Structures and Building and Construction
Derby City Council,Communities & Place,Highways & Engineering,"Strategic Partnerships, Planning & Streetpride",TARBY CONSTRUCTION LTD,N/A,194477,N/A,N/A,03-JAN-17,2694501,220.00,0.00,Highways Maintenance Works,Structures and Building and Construction
Derby City Council,Communities & Place,Highways & Engineering,"Strategic Partnerships, Planning & Streetpride",TARBY CONSTRUCTION LTD,N/A,194477,N/A,N/A,03-JAN-17,2694501,147.00,0.00,Highways Maintenance Works,Structures and Building and Construction
Derby City Council,Communities & Place,Highways & Engineering,"Strategic Partnerships, Planning & Streetpride",TARBY CONSTRUCTION LTD,N/A,194477,N/A,N/A,03-JAN-17,2694501,2000.00,0.00,Highways Maintenance Works,Structures and Building and Construction
Derby City Council,Communities & Place,Highways & Engineering,"Strategic Partnerships, Planning & Streetpride",TARBY CONSTRUCTION LTD,N/A,194477,N/A,N/A,03-JAN-17,2694501,400.00,0.00,Highways Maintenance Works,Structures and Building and Construction
Derby City Council,Communities & Place,Highways & Engineering,"Strategic Partnerships, Planning & Streetpride",TARBY CONSTRUCTION LTD,N/A,194477,N/A,N/A,03-JAN-17,2694501,758.50,0.00,Highways Maintenance Works,Structures and Building and Construction
Derby City Council,Communities & Place,Highways & Engineering,"Strategic Partnerships, Planning & Streetpride",TARBY CONSTRUCTION LTD,N/A,194477,N/A,N/A,03-JAN-17,2694502,1115.00,0.00,Highways Maintenance Works,Structures and Building and Construction
Derby City Council,Communities & Place,Highways & Engineering,"Strategic Partnerships, Planning & Streetpride",TARBY CONSTRUCTION LTD,N/A,194477,N/A,N/A,03-JAN-17,2694502,1300.00,0.00,Highways Maintenance Works,Structures and Building and Construction
Derby City Council,Communities & Place,Highways & Engineering,"Strategic Partnerships, Planning & Streetpride",TARBY CONSTRUCTION LTD,N/A,194477,N/A,N/A,03-JAN-17,2694502,4720.00,0.00,Highways Maintenance Works,Structures and Building and Construction
Derby City Council,Communities & Place,Culture & Business Development,"Leisure, Culture and Tourism",THE OLD BELL DERBY LTD,N/A,216385,N/A,N/A,03-JAN-17,2685316,9851.67,0.00,Derby Live - Sales and Information Centre,N/A
Derby City Council,People Services - Children & Young People,Early Intervention & Integrated Safeguarding,Non-Schools,THE RIVERSIDE GROUP LTD,N/A,90997,N/A,N/A,03-JAN-17,2693024,1069.88,0.00,Locality 3&4 - Reception Central Team,Healthcare Services
Derby City Council,People Services - Children & Young People,Early Intervention & Integrated Safeguarding,Non-Schools,THE RIVERSIDE GROUP LTD,N/A,90997,N/A,N/A,03-JAN-17,2693025,536.76,0.00,Locality 3&4 - Reception Central Team,Healthcare Services
Derby City Council,Communities & Place,Strategic Housing,"Regeneration, Property & Housing",THE RIVERSIDE GROUP LTD,N/A,90997,N/A,N/A,03-JAN-17,2665309,102716.47,0.00,Derby Housing PFI Project,Healthcare Services
Derby City Council,Communities & Place,Strategic Housing,"Regeneration, Property & Housing",THE RIVERSIDE GROUP LTD,N/A,90997,N/A,N/A,03-JAN-17,2692016,106140.35,0.00,Derby Housing PFI Project,Healthcare Services
Derby City Council,Communities & Place,Regeneration Projects,"Regeneration, Property & Housing",THOMAS LISTER LTD,N/A,103118,N/A,N/A,03-JAN-17,2680958,5075.50,0.00,Regeneration Fund Associated Costs,Management and Business Professionals an
Derby City Council,Communities & Place,Regeneration Projects,"Regeneration, Property & Housing",THOMAS LISTER LTD,N/A,103118,N/A,N/A,03-JAN-17,2680979,3250.00,0.00,Regeneration Fund Associated Costs,Management and Business Professionals an
Derby City Council,People Services - Children & Young People,Early Intervention & Integrated Safeguarding,Non-Schools,UK LANGUAGE SOLUTIONS LTD,N/A,127119,N/A,N/A,03-JAN-17,2642080,464.00,0.00,Arboretum Under 11's Team,Editorial and Design and Graphic and Fin
Derby City Council,People Services - Children & Young People,Early Intervention & Integrated Safeguarding,Non-Schools,UK LANGUAGE SOLUTIONS LTD,N/A,127119,N/A,N/A,03-JAN-17,2692182,466.25,0.00,Becket Team,Editorial and Design and Graphic and Fin
Derby City Council,Communities & Place,Libraries,"Leisure, Culture and Tourism",ULVERSCROFT LARGE PRINT BOOKS,N/A,5055,N/A,N/A,03-JAN-17,2693076,526.40,0.00,City Book Fund,Published Products
Derby City Council,Adults Health and Housing,Capital Expenditure ,Capital Expenditure ,WATERMAN ASPEN LTD,N/A,5381,N/A,N/A,03-JAN-17,2693645,4308.48,0.00,Community Energy Savings Project (CESP),Management and Business Professionals an
Derby City Council,Communities & Place,Highways & Engineering,"Strategic Partnerships, Planning & Streetpride",WOLSELEY UK LTD,N/A,5259,N/A,N/A,03-JAN-17,2694412,1125.04,0.00,Highways Maintenance Works,Structures and Building and Construction
Derby City Council,People Services - Children & Young People,Directorate Budgets,Non-Schools,AB DEVELOPMENT AND CONSULTANCY SOLUTIONS LTD,N/A,382417,N/A,N/A,05-JAN-17,2694559,852.60,0.00,Central Budget,N/A
Derby City Council,People Services - Adults and Health,Social Care Activities,Home First,ALERT IT CARE ALARMS,N/A,178392,N/A,N/A,05-JAN-17,2694114,244.80,0.00,Carelink Services Adults - HRA Funded,Medical Equipment and Accessories and Su
Derby City Council,People Services - Adults and Health,Social Care Activities,Home First,ALERT IT CARE ALARMS,N/A,178392,N/A,N/A,05-JAN-17,2694114,10.50,0.00,Carelink Services Adults - HRA Funded,Medical Equipment and Accessories and Su
Derby City Council,People Services - Adults and Health,Social Care Activities,Home First,ALERT IT CARE ALARMS,N/A,178392,N/A,N/A,05-JAN-17,2694114,163.20,0.00,Carelink,Medical Equipment and Accessories and Su
Derby City Council,Communities & Place,General,"Strategic Partnerships, Planning & Streetpride",ALLSTAR BUSINESS SOLUTIONS LTD,N/A,135370,N/A,N/A,05-JAN-17,2694477,12043.72,0.00,Fleet Hire,Fuels and Fuel Additives and Lubricants
Derby City Council,Communities & Place,Grounds Maintenance & Cleansing,"Strategic Partnerships, Planning & Streetpride",ARDEN WINCH & CO LTD,N/A,95,N/A,N/A,05-JAN-17,2666024,965.64,0.00,Building Cleaning Derby Homes,Cleaning Equipment and Supplies
Derby City Council,Communities & Place,Grounds Maintenance & Cleansing,"Strategic Partnerships, Planning & Streetpride",ARDEN WINCH & CO LTD,N/A,95,N/A,N/A,05-JAN-17,2670126,636.30,0.00,Building Cleaning Derby Homes,Cleaning Equipment and Supplies
Derby City Council,Communities & Place,Grounds Maintenance & Cleansing,"Strategic Partnerships, Planning & Streetpride",ARDEN WINCH & CO LTD,N/A,94,N/A,N/A,05-JAN-17,2686877,1562.54,0.00,Building Cleaning Derby Homes,Cleaning Equipment and Supplies
Derby City Council,Communities & Place,Highways & Engineering,"Strategic Partnerships, Planning & Streetpride",ARRIVING LTD,N/A,217400,N/A,N/A,05-JAN-17,2694468,595.00,0.00,Highways Maintenance Works,Commercial and Military and Private Vehi
Derby City Council,People Services - Adults and Health,Public Health,Public Health,ASDA STORES LTD,N/A,187667,N/A,N/A,05-JAN-17,2694753,1294.00,0.00,Substance Misuse Pharmacy Based Services,N/A
Derby City Council,People Services - Adults and Health,Public Health,Public Health,ASDA STORES LTD,N/A,187667,N/A,N/A,05-JAN-17,2694753,708.00,0.00,Substance Misuse Pharmacy Based Services,N/A
Derby City Council,People Services - Adults and Health,Public Health,Public Health,ASDA STORES LTD,N/A,187667,N/A,N/A,05-JAN-17,2694771,470.00,0.00,Substance Misuse Pharmacy Based Services,N/A
Derby City Council,People Services - Adults and Health,Public Health,Public Health,ASDA STORES LTD,N/A,187667,N/A,N/A,05-JAN-17,2694771,690.00,0.00,Substance Misuse Pharmacy Based Services,N/A
Derby City Council,Communities & Place,Libraries,"Leisure, Culture and Tourism",ASKEWS LIBRARY SERVICES,N/A,16893,N/A,N/A,05-JAN-17,2694801,688.11,0.00,City Book Fund,Published Products
Derby City Council,Communities & Place,Leisure,"Leisure, Culture and Tourism",ATLOW CONTRACTING LTD,N/A,423402,N/A,N/A,05-JAN-17,2694625,322.29,0.00,Outdoor Amenities,Environmental Services
Derby City Council,Communities & Place,Leisure,"Leisure, Culture and Tourism",ATLOW CONTRACTING LTD,N/A,423402,N/A,N/A,05-JAN-17,2694625,520.28,0.00,Outdoor Amenities,Environmental Services
Derby City Council,Communities & Place,Leisure,"Leisure, Culture and Tourism",ATLOW CONTRACTING LTD,N/A,423402,N/A,N/A,05-JAN-17,2694625,315.46,0.00,Outdoor Amenities,Environmental Services
Derby City Council,People Services - Adults and Health,Public Health,Public Health,B J WILSON LTD,N/A,187650,N/A,N/A,05-JAN-17,2694772,124.00,0.00,Substance Misuse Pharmacy Based Services,Healthcare Services
Derby City Council,People Services - Adults and Health,Public Health,Public Health,B J WILSON LTD,N/A,187650,N/A,N/A,05-JAN-17,2694772,378.00,0.00,Substance Misuse Pharmacy Based Services,Healthcare Services
Derby City Council,Neighbourhoods,Capital Expenditure ,Capital Expenditure ,BALFOUR BEATTY CIVIL ENGINEERING LTD,N/A,116647,N/A,N/A,05-JAN-17,2664339,56973.47,0.00,T12 Phase 2,Management and Business Professionals an
Derby City Council,Communities & Place,Grounds Maintenance & Cleansing,"Strategic Partnerships, Planning & Streetpride",BANKS AMENITY PRODUCTS LTD,N/A,10208,N/A,N/A,05-JAN-17,2694846,1976.25,0.00,Grounds Maintenance Derby Homes,Mineral and Textile and Inedible Plant a
Derby City Council,People Services - Adults and Health,Public Health,Public Health,BOOTS UK LTD,N/A,187675,N/A,N/A,05-JAN-17,2694774,348.00,0.00,Substance Misuse Pharmacy Based Services,N/A
Derby City Council,People Services - Adults and Health,Public Health,Public Health,BOOTS UK LTD,N/A,187675,N/A,N/A,05-JAN-17,2694774,158.00,0.00,Substance Misuse Pharmacy Based Services,N/A
Derby City Council,Communities & Place,Traffic & Transportation,"Strategic Partnerships, Planning & Streetpride",BRISTOW AND SUTOR,N/A,557,N/A,N/A,05-JAN-17,2693710,6357.92,0.00,Parking Services,N/A
Derby City Council,Communities & Place,Traffic & Transportation,"Strategic Partnerships, Planning & Streetpride",BRISTOW AND SUTOR,N/A,557,N/A,N/A,05-JAN-17,2693710,-6357.92,0.00,Parking Services,N/A
Derby City Council,Organisation & Governance,"Information, Computing & Technology",Digital Services,BT PLC,N/A,421,N/A,N/A,05-JAN-17,2491565,19792.50,0.00,Computer Services,N/A
Derby City Council,Organisation & Governance,"Information, Computing & Technology",Digital Services,BYTES SOFTWARE SERVICES LTD,N/A,144360,N/A,N/A,05-JAN-17,2694333,98878.95,0.00,Computer Services,Information Technology Broadcasting and
Derby City Council,People Services - Children & Young People,Specialist Services,Non-Schools,CAMBIAN HEALTHCARE LTD,N/A,24789,N/A,N/A,05-JAN-17,2694861,19375.00,0.00,Police Escorts,N/A
Derby City Council,Communities & Place,General,"Strategic Partnerships, Planning & Streetpride",CAR ACCIDENT REPAIR SERVICE LTD,N/A,106099,N/A,N/A,05-JAN-17,2694403,94.95,0.00,Fleet Hire,Transportation and Storage and Mail Serv
Derby City Council,Communities & Place,General,"Strategic Partnerships, Planning & Streetpride",CAR ACCIDENT REPAIR SERVICE LTD,N/A,106099,N/A,N/A,05-JAN-17,2694403,258.00,0.00,Fleet Hire,Transportation and Storage and Mail Serv
Derby City Council,Communities & Place,General,"Strategic Partnerships, Planning & Streetpride",CAR ACCIDENT REPAIR SERVICE LTD,N/A,106099,N/A,N/A,05-JAN-17,2694403,95.00,0.00,Fleet Hire,Transportation and Storage and Mail Serv
Derby City Council,People Services - Adults and Health,Learning Disability Support,Transitions and Ordinary Lives,CARE FIRST LTD,N/A,420408,N/A,N/A,05-JAN-17,2694686,550.00,0.00,Ordinary Lives LD - DP/Mgd,N/A
Derby City Council,People Services - Adults and Health,Social Care Activities,Mental Health,CARITAS RECRUITMENT LTD,N/A,264432,N/A,N/A,05-JAN-17,2694144,800.00,0.00,Safeguarding Adults,Healthcare Services
Derby City Council,People Services - Adults and Health,Social Care Activities,Mental Health,CARITAS RECRUITMENT LTD,N/A,264432,N/A,N/A,05-JAN-17,2694146,1200.00,0.00,Safeguarding Adults,Healthcare Services
Derby City Council,People Services - Adults and Health,Social Care Activities,Mental Health,CARITAS RECRUITMENT LTD,N/A,264432,N/A,N/A,05-JAN-17,2694147,800.00,0.00,Safeguarding Adults,Healthcare Services
Derby City Council,People Services - Adults and Health,Social Care Activities,Mental Health,CARITAS RECRUITMENT LTD,N/A,264432,N/A,N/A,05-JAN-17,2694701,2000.00,0.00,Safeguarding Adults,Healthcare Services
Derby City Council,Chief Executives,Capital Expenditure ,Capital Expenditure ,CDW LTD,N/A,465403,N/A,N/A,05-JAN-17,2694328,14061.50,0.00,ICT Stabilisation - Hardware Renewal,Information Technology Broadcasting and
Derby City Council,Chief Executives,Capital Expenditure ,Capital Expenditure ,CDW LTD,N/A,465403,N/A,N/A,05-JAN-17,2694328,227.75,0.00,ICT Stabilisation - Hardware Renewal,Information Technology Broadcasting and
Derby City Council,Organisation & Governance,"Information, Computing & Technology",Digital Services,CDW LTD,N/A,465403,N/A,N/A,05-JAN-17,2631776,4000.00,0.00,Computer Services,Information Technology Broadcasting and
Derby City Council,Organisation & Governance,"Information, Computing & Technology",Digital Services,CDW LTD,N/A,465403,N/A,N/A,05-JAN-17,2694328,14061.50,0.00,Computer Services,Information Technology Broadcasting and
Derby City Council,Organisation & Governance,"Information, Computing & Technology",Digital Services,CDW LTD,N/A,465403,N/A,N/A,05-JAN-17,2694328,227.75,0.00,Computer Services,Information Technology Broadcasting and
Derby City Council,Organisation & Governance,"Information, Computing & Technology",Digital Services,CDW LTD,N/A,465403,N/A,N/A,05-JAN-17,2694328,-14061.50,0.00,Computer Services,Information Technology Broadcasting and
Derby City Council,Organisation & Governance,"Information, Computing & Technology",Digital Services,CDW LTD,N/A,465403,N/A,N/A,05-JAN-17,2694328,-227.75,0.00,Computer Services,Information Technology Broadcasting and
Derby City Council,Communities & Place,Leisure,"Leisure, Culture and Tourism",CDW LTD,N/A,465403,N/A,N/A,05-JAN-17,2644293,469.75,0.00,NHS Pilot,Information Technology Broadcasting and
Derby City Council,Communities & Place,Leisure,"Leisure, Culture and Tourism",CDW LTD,N/A,465403,N/A,N/A,05-JAN-17,2644293,9.11,0.00,NHS Pilot,Information Technology Broadcasting and
Derby City Council,Resources,Employee Deductions,Employee Deductions,CHILD MAINTENANCE SERVICE,N/A,247456,N/A,N/A,05-JAN-17,2694581,678.57,0.00,Attatchment Of Earnings,Financial and Insurance Services
Derby City Council,Resources,Employee Deductions,Employee Deductions,CHILD SUPPORT AGENCY CLIENT FUND ACCOUNT,N/A,1125,N/A,N/A,05-JAN-17,2694582,3141.99,0.00,Attatchment Of Earnings,N/A
Derby City Council,Organisation & Governance,Customer Management,Strategic Services and Organisational Development,CIVICA UK LTD,N/A,44729,N/A,N/A,05-JAN-17,2692135,14000.00,0.00,Derby Direct,Engineering and Research and Technology
Derby City Council,People Services - Children & Young People,Early Intervention & Integrated Safeguarding,Non-Schools,CTC PSYCHOLOGICAL SERVICES,N/A,8185,N/A,N/A,05-JAN-17,2694105,653.90,0.00,Legal Fees,Healthcare Services
Derby City Council,People Services - Adults and Health,Public Health,Public Health,DAY NIGHT LTD,N/A,187651,N/A,N/A,05-JAN-17,2694747,1258.00,0.00,Substance Misuse Pharmacy Based Services,N/A
Derby City Council,People Services - Adults and Health,Public Health,Public Health,DAY NIGHT LTD,N/A,187651,N/A,N/A,05-JAN-17,2694747,2144.00,0.00,Substance Misuse Pharmacy Based Services,N/A
Derby City Council,People Services - Adults and Health,Public Health,Public Health,DAY NIGHT LTD,N/A,187651,N/A,N/A,05-JAN-17,2694750,990.00,0.00,Substance Misuse Pharmacy Based Services,N/A
Derby City Council,People Services - Adults and Health,Public Health,Public Health,DAY NIGHT LTD,N/A,187651,N/A,N/A,05-JAN-17,2694750,1356.00,0.00,Substance Misuse Pharmacy Based Services,N/A
Derby City Council,People Services - Adults and Health,Public Health,Public Health,DAY NIGHT LTD,N/A,187651,N/A,N/A,05-JAN-17,2694775,1178.00,0.00,Substance Misuse Pharmacy Based Services,N/A
Derby City Council,People Services - Adults and Health,Public Health,Public Health,DAY NIGHT LTD,N/A,187651,N/A,N/A,05-JAN-17,2694775,1436.00,0.00,Substance Misuse Pharmacy Based Services,N/A
Derby City Council,Communities & Place,General,"Strategic Partnerships, Planning & Streetpride",DAYS RENTAL LTD,N/A,104744,N/A,N/A,05-JAN-17,2686070,585.20,0.00,Fleet Hire,Transportation and Storage and Mail Serv
Derby City Council,People Services - Adults and Health,Public Health,Public Health,DEAN AND SMEDLEY LTD,N/A,187653,N/A,N/A,05-JAN-17,2694765,224.00,0.00,Substance Misuse Pharmacy Based Services,N/A
Derby City Council,People Services - Adults and Health,Public Health,Public Health,DEAN AND SMEDLEY LTD,N/A,187653,N/A,N/A,05-JAN-17,2694765,348.00,0.00,Substance Misuse Pharmacy Based Services,N/A
Derby City Council,Communities & Place,Strategic Housing,"Regeneration, Property & Housing",DERBY CITY COUNCIL NNDR,N/A,1150,N/A,N/A,05-JAN-17,2695374,1149.50,0.00,Private Sector Housing,N/A
Derby City Council,People Services - Children & Young People,Early Intervention & Integrated Safeguarding,Non-Schools,DERBY CITY SUNDRY PAYMENTS,N/A,1155,N/A,N/A,05-JAN-17,2694641,2055.00,0.00,Legal Fees,N/A
Derby City Council,Communities & Place,"Environmental Protection, Licensing, Housing","Communities, Environment & Regulatory Services",DERBY HOMES LTD,N/A,1175,N/A,N/A,05-JAN-17,2686854,2794.00,0.00,Env Health Work In Deflt A/c,Default
Derby City Council,Communities & Place,"Environmental Protection, Licensing, Housing","Communities, Environment & Regulatory Services",DERBY HOMES LTD,N/A,1175,N/A,N/A,05-JAN-17,2686854,163.90,0.00,Env Health Work In Deflt A/c,Default
Derby City Council,Communities & Place,"Occupational Health, Safety, Markets & Bereavement Services","Communities, Environment & Regulatory Services",DERBY TIMBER SUPPLIES,N/A,1192,N/A,N/A,05-JAN-17,2694869,555.00,0.00,Cemeteries,Mineral and Textile and Inedible Plant a
Derby City Council,Communities & Place,"Occupational Health, Safety, Markets & Bereavement Services","Communities, Environment & Regulatory Services",DERBY TIMBER SUPPLIES,N/A,1192,N/A,N/A,05-JAN-17,2694874,450.00,0.00,Cemeteries,Mineral and Textile and Inedible Plant a
Derby City Council,Communities & Place,"Occupational Health, Safety, Markets & Bereavement Services","Communities, Environment & Regulatory Services",DERBY TIMBER SUPPLIES,N/A,1192,N/A,N/A,05-JAN-17,2694874,64.80,0.00,Cemeteries,Mineral and Textile and Inedible Plant a
Derby City Council,People Services - Adults and Health,Public Health,Public Health,DERBYSHIRE COMMUNITY HEALTH SERVICE NHS TRUST,N/A,109973,N/A,N/A,05-JAN-17,2694490,9753.75,0.00,Controlled Drugs Costs,Education and Training Services
Derby City Council,Communities & Place,Strategic Housing,"Regeneration, Property & Housing",DERBYSHIRE COUNTY COUNCIL,N/A,1216,N/A,N/A,05-JAN-17,2694467,3000.00,0.00,Healthy Housing Hub,Education and Training Services
Derby City Council,People Services - Adults and Health,Public Health,Public Health,DERWENT VALLEY MEDICAL PRACTICE,N/A,408402,N/A,N/A,05-JAN-17,2695499,736.00,0.00,Healthcare Services - Health Checks,Healthcare Services
Derby City Council,Organisation & Governance,Governance and Assurance,Governance and Assurance,DILYS JONES ASSOCIATES LTD,N/A,126576,N/A,N/A,05-JAN-17,2694489,1800.00,0.00,Information Security Team,Education and Training Services
Derby City Council,People Services - Children & Young People,Commissioning,Non-Schools,DMR SERVICES,N/A,235403,N/A,N/A,05-JAN-17,2694345,560.00,0.00,Family Group Conferencing,Healthcare Services
Derby City Council,People Services - Children & Young People,Commissioning,Non-Schools,DMR SERVICES,N/A,235403,N/A,N/A,05-JAN-17,2694348,560.00,0.00,Family Group Conferencing,Healthcare Services
Derby City Council,People Services - Children & Young People,Commissioning,Non-Schools,DMR SERVICES,N/A,235403,N/A,N/A,05-JAN-17,2694350,560.00,0.00,Family Group Conferencing,Healthcare Services
Derby City Council,People Services - Adults and Health,Public Health,Public Health,DR MOSS & PARTNERS,N/A,407399,N/A,N/A,05-JAN-17,2695560,255.80,0.00,Healthcare Services - Contraceptive Implants,N/A
Derby City Council,People Services - Adults and Health,Public Health,Public Health,DR MOSS & PARTNERS,N/A,407399,N/A,N/A,05-JAN-17,2695560,63.95,0.00,Healthcare Services - Contraceptive Implants,N/A
Derby City Council,People Services - Adults and Health,Public Health,Public Health,DR MOSS & PARTNERS,N/A,407399,N/A,N/A,05-JAN-17,2695560,246.30,0.00,Healthcare Services - Contraceptive Implants,N/A
Derby City Council,People Services - Adults and Health,Public Health,Public Health,DR MOSS & PARTNERS,N/A,407399,N/A,N/A,05-JAN-17,2695573,319.75,0.00,Healthcare Services - Contraceptive Implants,N/A
Derby City Council,People Services - Adults and Health,Public Health,Public Health,DR MOSS & PARTNERS,N/A,407399,N/A,N/A,05-JAN-17,2695573,328.40,0.00,Healthcare Services - Contraceptive Implants,N/A
Derby City Council,People Services - Adults and Health,Public Health,Public Health,DR MOSS & PARTNERS,N/A,407399,N/A,N/A,05-JAN-17,2695560,243.90,0.00,Healthcare Services - Intra-uterine Contraception Devices and Intra-uterine Syst,N/A
Derby City Council,People Services - Adults and Health,Public Health,Public Health,DR MOSS & PARTNERS,N/A,407399,N/A,N/A,05-JAN-17,2695560,650.40,0.00,Healthcare Services - Intra-uterine Contraception Devices and Intra-uterine Syst,N/A
Derby City Council,People Services - Adults and Health,Public Health,Public Health,DR MOSS & PARTNERS,N/A,407399,N/A,N/A,05-JAN-17,2695494,928.00,0.00,Healthcare Services - Health Checks,N/A
Derby City Council,People Services - Adults and Health,Public Health,Public Health,DR YOUNG AND PARTNERS,N/A,409402,N/A,N/A,05-JAN-17,2695562,319.75,0.00,Healthcare Services - Contraceptive Implants,N/A
Derby City Council,People Services - Adults and Health,Public Health,Public Health,DR YOUNG AND PARTNERS,N/A,409402,N/A,N/A,05-JAN-17,2695562,127.90,0.00,Healthcare Services - Contraceptive Implants,N/A
Derby City Council,People Services - Adults and Health,Public Health,Public Health,DR YOUNG AND PARTNERS,N/A,409402,N/A,N/A,05-JAN-17,2695562,82.10,0.00,Healthcare Services - Contraceptive Implants,N/A
Derby City Council,People Services - Adults and Health,Public Health,Public Health,DR YOUNG AND PARTNERS,N/A,409402,N/A,N/A,05-JAN-17,2695562,325.20,0.00,Healthcare Services - Intra-uterine Contraception Devices and Intra-uterine Syst,N/A
Derby City Council,People Services - Adults and Health,Public Health,Public Health,DR YOUNG AND PARTNERS,N/A,409402,N/A,N/A,05-JAN-17,2695562,162.60,0.00,Healthcare Services - Intra-uterine Contraception Devices and Intra-uterine Syst,N/A
Derby City Council,People Services - Adults and Health,Public Health,Public Health,DR YOUNG AND PARTNERS,N/A,409402,N/A,N/A,05-JAN-17,2695486,544.00,0.00,Healthcare Services - Health Checks,N/A
Derby City Council,People Services - Adults and Health,Public Health,Public Health,DR YOUNG AND PARTNERS,N/A,409402,N/A,N/A,05-JAN-17,2695486,256.00,0.00,Healthcare Services - Health Checks,N/A
Derby City Council,Organisation & Governance,Facilities Management,Strategic Services and Organisational Development,ELIOR UK PLC,N/A,153344,N/A,N/A,05-JAN-17,2694636,3705.43,0.00,Elior Relish Contract,Travel and Food and Lodging and Entertai
Derby City Council,Communities & Place,General,"Strategic Partnerships, Planning & Streetpride",ESSENTIAL FLEET SERVICES LTD,N/A,268411,N/A,N/A,05-JAN-17,2694655,10157.93,0.00,Fleet Hire,Transportation and Storage and Mail Serv
Derby City Council,Organisation & Governance,Business Support,Strategic Services and Organisational Development,FDM LTD,N/A,106623,N/A,N/A,05-JAN-17,2694659,2484.43,0.00,DMC - Document Management Centre,Paper Materials and Products
Derby City Council,Organisation & Governance,Democracy,Governance and Assurance,FINANCIAL DATA MANAGEMENT LTD,N/A,1559,N/A,N/A,05-JAN-17,2694872,1376.18,0.00,Conduct Of Elections,N/A
Derby City Council,Organisation & Governance,Business Support,Strategic Services and Organisational Development,FINANCIAL DATA MANAGEMENT LTD,N/A,1559,N/A,N/A,05-JAN-17,2694883,1220.43,0.00,DMC - Document Management Centre,N/A
Derby City Council,People Services - Children & Young People,Early Intervention & Integrated Safeguarding,Non-Schools,FORENSIC TESTING SERVICE LTD,N/A,382398,N/A,N/A,05-JAN-17,2694104,995.20,0.00,Legal Fees,N/A
Derby City Council,People Services - Adults and Health,Public Health,Public Health,FRIAR GATE SURGERY,N/A,408399,N/A,N/A,05-JAN-17,2695490,544.00,0.00,Healthcare Services - Health Checks,N/A
Derby City Council,Communities & Place,"Occupational Health, Safety, Markets & Bereavement Services","Communities, Environment & Regulatory Services",GRANART LTD,N/A,1720,N/A,N/A,05-JAN-17,2694397,819.00,0.00,Crematorium,Politics and Civic Affairs Services
Derby City Council,People Services - Adults and Health,Public Health,Public Health,HABIB AHMED TA MEDINA CHEMIST,N/A,187659,N/A,N/A,05-JAN-17,2694757,646.00,0.00,Substance Misuse Pharmacy Based Services,N/A
Derby City Council,People Services - Adults and Health,Public Health,Public Health,HABIB AHMED TA MEDINA CHEMIST,N/A,187659,N/A,N/A,05-JAN-17,2694757,640.00,0.00,Substance Misuse Pharmacy Based Services,N/A
Derby City Council,Communities & Place,"Occupational Health, Safety, Markets & Bereavement Services","Communities, Environment & Regulatory Services",HOBSON HEALTH LTD,N/A,65298,N/A,N/A,05-JAN-17,2694611,750.00,0.00,Occupational Health,Healthcare Services
Derby City Council,People Services - Adults and Health,Social Care Activities,Direct Services,HOLDSWORTH FOOD SERVICE,N/A,1913,N/A,N/A,05-JAN-17,2671594,321.32,0.00,Bramblebrook House,Food Beverage and Tobacco Products
Derby City Council,People Services - Adults and Health,Social Care Activities,Direct Services,HOLDSWORTH FOOD SERVICE,N/A,1913,N/A,N/A,05-JAN-17,2671594,157.71,0.00,Bramblebrook House,Food Beverage and Tobacco Products
Derby City Council,Organisation & Governance,Customer Management,Strategic Services and Organisational Development,HOPE CENTRE,N/A,113608,N/A,N/A,05-JAN-17,2694036,3400.00,0.00,Local Assistance,N/A
Derby City Council,Neighbourhoods,Capital Expenditure ,Capital Expenditure ,IMPERIAL COMMERCIALS LTD,N/A,2286,N/A,N/A,05-JAN-17,2694822,63000.00,0.00,New Vehicle Fleet,Service Industry Machinery and Equipment
Derby City Council,Organisation & Governance,Communication and Consultation,Strategic Services and Organisational Development,JOHN E WRIGHT & CO LTD,N/A,2189,N/A,N/A,05-JAN-17,2694599,440.00,0.00,Corporate Communications,Printing and Photographic and Audio and
Derby City Council,Organisation & Governance,Communication and Consultation,Strategic Services and Organisational Development,JOHN E WRIGHT & CO LTD,N/A,2189,N/A,N/A,05-JAN-17,2694599,510.00,0.00,Corporate Communications,Printing and Photographic and Audio and
Derby City Council,Organisation & Governance,Communication and Consultation,Strategic Services and Organisational Development,JOHN E WRIGHT & CO LTD,N/A,2189,N/A,N/A,05-JAN-17,2694599,470.00,0.00,Corporate Communications,Printing and Photographic and Audio and
Derby City Council,Organisation & Governance,Communication and Consultation,Strategic Services and Organisational Development,JOHN E WRIGHT & CO LTD,N/A,2189,N/A,N/A,05-JAN-17,2694600,300.00,0.00,Corporate Communications,Printing and Photographic and Audio and
Derby City Council,Organisation & Governance,Communication and Consultation,Strategic Services and Organisational Development,JOHN E WRIGHT & CO LTD,N/A,2189,N/A,N/A,05-JAN-17,2694600,200.00,0.00,Corporate Communications,Printing and Photographic and Audio and
Derby City Council,Organisation & Governance,Communication and Consultation,Strategic Services and Organisational Development,JOHN E WRIGHT & CO LTD,N/A,2189,N/A,N/A,05-JAN-17,2694600,200.00,0.00,Corporate Communications,Printing and Photographic and Audio and
Derby City Council,Organisation & Governance,Communication and Consultation,Strategic Services and Organisational Development,JOHN E WRIGHT & CO LTD,N/A,2189,N/A,N/A,05-JAN-17,2694600,50.00,0.00,Corporate Communications,Printing and Photographic and Audio and
Derby City Council,Organisation & Governance,Communication and Consultation,Strategic Services and Organisational Development,JOHN E WRIGHT & CO LTD,N/A,2189,N/A,N/A,05-JAN-17,2694601,22.50,0.00,Corporate Communications,Printing and Photographic and Audio and
Derby City Council,Organisation & Governance,Communication and Consultation,Strategic Services and Organisational Development,JOHN E WRIGHT & CO LTD,N/A,2189,N/A,N/A,05-JAN-17,2694601,75.00,0.00,Corporate Communications,Printing and Photographic and Audio and
Derby City Council,Organisation & Governance,Communication and Consultation,Strategic Services and Organisational Development,JOHN E WRIGHT & CO LTD,N/A,2189,N/A,N/A,05-JAN-17,2694601,80.00,0.00,Corporate Communications,Printing and Photographic and Audio and
Derby City Council,Organisation & Governance,Communication and Consultation,Strategic Services and Organisational Development,JOHN E WRIGHT & CO LTD,N/A,2189,N/A,N/A,05-JAN-17,2694601,300.00,0.00,Corporate Communications,Printing and Photographic and Audio and
Derby City Council,Organisation & Governance,Communication and Consultation,Strategic Services and Organisational Development,JOHN E WRIGHT & CO LTD,N/A,2189,N/A,N/A,05-JAN-17,2694601,205.00,0.00,Corporate Communications,Printing and Photographic and Audio and
Derby City Council,Communities & Place,Highways & Engineering,"Strategic Partnerships, Planning & Streetpride",JOHN GREGORY AND SONS TIMBER MERCHANTS LTD,N/A,7621,N/A,N/A,05-JAN-17,2694371,287.50,0.00,Highways Maintenance Works,Mineral and Textile and Inedible Plant a
Derby City Council,Communities & Place,Highways & Engineering,"Strategic Partnerships, Planning & Streetpride",JOHN GREGORY AND SONS TIMBER MERCHANTS LTD,N/A,7621,N/A,N/A,05-JAN-17,2694371,975.00,0.00,Highways Maintenance Works,Mineral and Textile and Inedible Plant a
Derby City Council,People Services - Children & Young People,Learning & Inclusion,Non-Schools,LINK IT UK LTD,N/A,2405,N/A,N/A,05-JAN-17,2694608,997.55,0.00,Blue Sky Derby,Management and Business Professionals an
Derby City Council,People Services - Adults and Health,Public Health,Public Health,MACKLIN STREET SURGERY,N/A,406411,N/A,N/A,05-JAN-17,2695563,191.85,0.00,Healthcare Services - Contraceptive Implants,Healthcare Services
Derby City Council,People Services - Adults and Health,Public Health,Public Health,MACKLIN STREET SURGERY,N/A,406411,N/A,N/A,05-JAN-17,2695563,127.90,0.00,Healthcare Services - Contraceptive Implants,Healthcare Services
Derby City Council,People Services - Adults and Health,Public Health,Public Health,MACKLIN STREET SURGERY,N/A,406411,N/A,N/A,05-JAN-17,2695563,164.20,0.00,Healthcare Services - Contraceptive Implants,Healthcare Services
Derby City Council,People Services - Adults and Health,Public Health,Public Health,MACKLIN STREET SURGERY,N/A,406411,N/A,N/A,05-JAN-17,2695563,487.80,0.00,Healthcare Services - Intra-uterine Contraception Devices and Intra-uterine Syst,Healthcare Services
Derby City Council,People Services - Adults and Health,Public Health,Public Health,MACKLIN STREET SURGERY,N/A,406411,N/A,N/A,05-JAN-17,2695563,650.40,0.00,Healthcare Services - Intra-uterine Contraception Devices and Intra-uterine Syst,Healthcare Services
Derby City Council,Communities & Place,Grounds Maintenance & Cleansing,"Strategic Partnerships, Planning & Streetpride",MAGFERN RECYCLING LTD,N/A,2558,N/A,N/A,05-JAN-17,2694798,3211.29,0.00,Waste Transfer Station - London Road Depot,Environmental Services
Derby City Council,Communities & Place,Grounds Maintenance & Cleansing,"Strategic Partnerships, Planning & Streetpride",MAGFERN RECYCLING LTD,N/A,2558,N/A,N/A,05-JAN-17,2694833,1354.61,0.00,Waste Transfer Station - London Road Depot,Environmental Services
Derby City Council,Communities & Place,Grounds Maintenance & Cleansing,"Strategic Partnerships, Planning & Streetpride",MAGFERN RECYCLING LTD,N/A,2558,N/A,N/A,05-JAN-17,2694827,776.35,0.00,Markets - StreetPride,Environmental Services
Derby City Council,Adults Health and Housing,Capital Expenditure ,Capital Expenditure ,MANOR ELECTRICAL SERVICES,N/A,18973,N/A,N/A,05-JAN-17,2694487,618.00,0.00,Healthy Housing Assistance,Laboratory and Measuring and Observing a
Derby City Council,Neighbourhoods,Capital Expenditure ,Capital Expenditure ,MCCONNELLS (MIDLANDS) LTD,N/A,2917,N/A,N/A,05-JAN-17,2693646,445.90,0.00,Network Management - Local Traffic Management,Editorial and Design and Graphic and Fin
Derby City Council,Organisation & Governance,Business Support,Strategic Services and Organisational Development,MERCIA IMAGE LTD,N/A,2944,N/A,N/A,05-JAN-17,2694702,1127.00,0.00,DMC - Document Management Centre,Printing and Photographic and Audio and
Derby City Council,Organisation & Governance,Business Support,Strategic Services and Organisational Development,MERCIA IMAGE LTD,N/A,2944,N/A,N/A,05-JAN-17,2694704,4118.00,0.00,DMC - Document Management Centre,Printing and Photographic and Audio and
Derby City Council,Organisation & Governance,Business Support,Strategic Services and Organisational Development,MERCIA IMAGE LTD,N/A,2944,N/A,N/A,05-JAN-17,2694707,425.00,0.00,DMC - Document Management Centre,Printing and Photographic and Audio and
Derby City Council,Organisation & Governance,Business Support,Strategic Services and Organisational Development,MERCIA IMAGE LTD,N/A,2944,N/A,N/A,05-JAN-17,2694709,976.00,0.00,DMC - Document Management Centre,Printing and Photographic and Audio and
Derby City Council,Organisation & Governance,Business Support,Strategic Services and Organisational Development,MERCIA IMAGE LTD,N/A,2944,N/A,N/A,05-JAN-17,2694860,886.00,0.00,DMC - Document Management Centre,Printing and Photographic and Audio and
Derby City Council,Organisation & Governance,Business Support,Strategic Services and Organisational Development,MERCIA IMAGE LTD,N/A,2944,N/A,N/A,05-JAN-17,2694860,-886.00,0.00,DMC - Document Management Centre,Printing and Photographic and Audio and
Derby City Council,Organisation & Governance,Business Support,Strategic Services and Organisational Development,MERCIA IMAGE LTD,N/A,2944,N/A,N/A,05-JAN-17,2694860,234.00,0.00,DMC - Document Management Centre,Printing and Photographic and Audio and
Derby City Council,Organisation & Governance,Business Support,Strategic Services and Organisational Development,MERCIA IMAGE LTD,N/A,2944,N/A,N/A,05-JAN-17,2694860,652.00,0.00,DMC - Document Management Centre,Printing and Photographic and Audio and
Derby City Council,Organisation & Governance,Business Support,Strategic Services and Organisational Development,MERCIA IMAGE LTD,N/A,2944,N/A,N/A,05-JAN-17,2694864,6695.00,0.00,DMC - Document Management Centre,Printing and Photographic and Audio and
Derby City Council,People Services - Adults and Health,Public Health,Public Health,N LAD LTD,N/A,189363,N/A,N/A,05-JAN-17,2694770,408.00,0.00,Substance Misuse Pharmacy Based Services,N/A
Derby City Council,People Services - Adults and Health,Public Health,Public Health,N LAD LTD,N/A,189363,N/A,N/A,05-JAN-17,2694770,576.00,0.00,Substance Misuse Pharmacy Based Services,N/A
Derby City Council,People Services - Adults and Health,Integrated Commissioning,Commissioning,NHS SOUTHERN DERBYSHIRE CCG,N/A,158329,N/A,N/A,05-JAN-17,2694859,512.77,0.00,DICES,Education and Training Services
Derby City Council,Communities & Place,General,"Strategic Partnerships, Planning & Streetpride",PACE FUELCARE,N/A,474148,N/A,N/A,05-JAN-17,2694823,2406.50,0.00,Fleet Hire,Fuels and Fuel Additives and Lubricants
Derby City Council,Communities & Place,General,"Strategic Partnerships, Planning & Streetpride",PACE FUELCARE,N/A,474148,N/A,N/A,05-JAN-17,2694823,12.50,0.00,Fleet Hire,Fuels and Fuel Additives and Lubricants
Derby City Council,People Services - Children & Young People,Specialist Services,Non-Schools,PATHWAY CARE SOLUTIONS LTD,N/A,84951,N/A,N/A,05-JAN-17,2672171,14309.43,0.00,Agency Residential,Politics and Civic Affairs Services
Derby City Council,Communities & Place,Regeneration Projects,"Regeneration, Property & Housing",POWERGEN A COMPANY OF E.ON,N/A,4012,N/A,N/A,05-JAN-17,2694657,2474.96,0.00,Estates - Kings Chambers,N/A
Derby City Council,People Services - Children & Young People,Learning & Inclusion,Non-Schools,QUALITRAIN LTD,N/A,470660,N/A,N/A,05-JAN-17,2694462,3447.50,0.00,Wider Family Learning,Education and Training Services
Derby City Council,People Services - Children & Young People,Learning & Inclusion,Non-Schools,QUALITRAIN LTD,N/A,470660,N/A,N/A,05-JAN-17,2694463,3940.00,0.00,Wider Family Learning,Education and Training Services
Derby City Council,People Services - Children & Young People,Learning & Inclusion,Non-Schools,QUALITRAIN LTD,N/A,470660,N/A,N/A,05-JAN-17,2694465,3447.50,0.00,Wider Family Learning,Education and Training Services
Derby City Council,People Services - Adults and Health,"Adults, Health and Housing Obsolete","Adults, Health and Housing Obsolete",REDACTED DATA,N/A,78329,N/A,N/A,05-JAN-17,2694187,5892.62,0.00,MH-IS-PB Direct Payments,N/A
Derby City Council,Communities & Place,Leisure,"Leisure, Culture and Tourism",ROSPA,N/A,7951,N/A,N/A,05-JAN-17,2693748,695.00,0.00,Derby Multi Use Sports Arena,Musical Instruments and Games and Toys a
Derby City Council,Organisation & Governance,Business Support,Strategic Services and Organisational Development,ROYAL MAIL GROUP PLC,N/A,4194,N/A,N/A,05-JAN-17,2689013,7366.17,0.00,DMC - Document Management Centre,Transportation and Storage and Mail Serv
Derby City Council,Organisation & Governance,Facilities Management,Strategic Services and Organisational Development,SEVERN TRENT WATER LTD,N/A,4717,N/A,N/A,05-JAN-17,2693660,2047.72,0.00,Council House,Public Utilities and Public Sector Relat
Derby City Council,Organisation & Governance,Facilities Management,Strategic Services and Organisational Development,SOUTHERN ELECTRIC,N/A,4489,N/A,N/A,05-JAN-17,2694168,15009.05,0.00,Council House,N/A
Derby City Council,Communities & Place,Culture & Business Development,"Leisure, Culture and Tourism",SPEKTRIX LTD,N/A,122388,N/A,N/A,05-JAN-17,2694716,3865.67,0.00,Leisure & Culture Marketing,Engineering and Research and Technology
Derby City Council,Communities & Place,Culture & Business Development,"Leisure, Culture and Tourism",STAGE ELECTRICS PARTNERSHIP LTD,N/A,4618,N/A,N/A,05-JAN-17,2693084,763.85,0.00,Derby Live - Head Quarters,Electrical systems and Lighting and comp
Derby City Council,Communities & Place,Culture & Business Development,"Leisure, Culture and Tourism",STAGE ELECTRICS PARTNERSHIP LTD,N/A,4618,N/A,N/A,05-JAN-17,2693084,17.25,0.00,Derby Live - Head Quarters,Electrical systems and Lighting and comp
Derby City Council,Organisation & Governance,Customer Management,Strategic Services and Organisational Development,THE PADLEY GROUP,N/A,7450,N/A,N/A,05-JAN-17,2694042,1100.00,0.00,Local Assistance,N/A
Derby City Council,People Services - Adults and Health,Social Care Activities,Home First,TUNSTALL HEALTHCARE UK LTD,N/A,124620,N/A,N/A,05-JAN-17,2694876,104.40,0.00,Carelink Services Adults - HRA Funded,Defense and Law Enforcement and Security
Derby City Council,People Services - Adults and Health,Social Care Activities,Home First,TUNSTALL HEALTHCARE UK LTD,N/A,124620,N/A,N/A,05-JAN-17,2694876,1744.20,0.00,Carelink Services Adults - HRA Funded,Defense and Law Enforcement and Security
Derby City Council,People Services - Adults and Health,Social Care Activities,Home First,TUNSTALL HEALTHCARE UK LTD,N/A,124620,N/A,N/A,05-JAN-17,2694876,252.00,0.00,Carelink Services Adults - HRA Funded,Defense and Law Enforcement and Security
Derby City Council,People Services - Adults and Health,Social Care Activities,Home First,TUNSTALL HEALTHCARE UK LTD,N/A,124620,N/A,N/A,05-JAN-17,2694879,1620.00,0.00,Carelink Services Adults - HRA Funded,Defense and Law Enforcement and Security
Derby City Council,People Services - Adults and Health,Social Care Activities,Home First,TUNSTALL HEALTHCARE UK LTD,N/A,124620,N/A,N/A,05-JAN-17,2694876,69.60,0.00,Carelink,Defense and Law Enforcement and Security
Derby City Council,People Services - Adults and Health,Social Care Activities,Home First,TUNSTALL HEALTHCARE UK LTD,N/A,124620,N/A,N/A,05-JAN-17,2694876,1162.80,0.00,Carelink,Defense and Law Enforcement and Security
Derby City Council,People Services - Adults and Health,Social Care Activities,Home First,TUNSTALL HEALTHCARE UK LTD,N/A,124620,N/A,N/A,05-JAN-17,2694876,168.00,0.00,Carelink,Defense and Law Enforcement and Security
Derby City Council,People Services - Adults and Health,Social Care Activities,Home First,TUNSTALL HEALTHCARE UK LTD,N/A,124620,N/A,N/A,05-JAN-17,2694879,1080.00,0.00,Carelink,Defense and Law Enforcement and Security
Derby City Council,Neighbourhoods,Capital Expenditure ,Capital Expenditure ,VIEWTEC SIGNS LTD,N/A,247424,N/A,N/A,05-JAN-17,2693720,753.49,0.00,Network Management - Local Traffic Management,Structures and Building and Construction
Derby City Council,People Services - Adults and Health,Public Health,Public Health,VILLAGE SURGERY,N/A,411403,N/A,N/A,05-JAN-17,2695500,2320.00,0.00,Healthcare Services - Health Checks,N/A
Derby City Council,People Services - Adults and Health,Public Health,Public Health,WELFARE PHARMACY,N/A,194498,N/A,N/A,05-JAN-17,2694777,968.00,0.00,Substance Misuse Pharmacy Based Services,N/A
Derby City Council,People Services - Adults and Health,Public Health,Public Health,WELFARE PHARMACY,N/A,194498,N/A,N/A,05-JAN-17,2694777,1946.00,0.00,Substance Misuse Pharmacy Based Services,N/A
Derby City Council,People Services - Adults and Health,Public Health,Public Health,WELFARE PHARMACY,N/A,194498,N/A,N/A,05-JAN-17,2694786,737.49,0.00,Substance Misuse Pharmacy Based Services,N/A
Derby City Council,People Services - Adults and Health,Public Health,Public Health,WILSON STREET SURGERY,N/A,254482,N/A,N/A,05-JAN-17,2695493,800.00,0.00,Healthcare Services - Health Checks,Healthcare Services
Derby City Council,Communities & Place,Traffic & Transportation,"Strategic Partnerships, Planning & Streetpride",75 TAXIS LTD,N/A,112973,N/A,N/A,10-JAN-17,2695873,1848.00,0.00,Passenger Transport Procurement & Operations,Transportation and Storage and Mail Serv
Derby City Council,Communities & Place,Traffic & Transportation,"Strategic Partnerships, Planning & Streetpride",75 TAXIS LTD,N/A,112973,N/A,N/A,10-JAN-17,2695879,1408.00,0.00,Passenger Transport Procurement & Operations,Transportation and Storage and Mail Serv
Derby City Council,Communities & Place,Traffic & Transportation,"Strategic Partnerships, Planning & Streetpride",75 TAXIS LTD,N/A,112973,N/A,N/A,10-JAN-17,2695880,1980.00,0.00,Passenger Transport Procurement & Operations,Transportation and Storage and Mail Serv
Derby City Council,Communities & Place,Traffic & Transportation,"Strategic Partnerships, Planning & Streetpride",75 TAXIS LTD,N/A,112973,N/A,N/A,10-JAN-17,2695945,104.32,0.00,Passenger Transport Procurement & Operations,Transportation and Storage and Mail Serv
Derby City Council,Communities & Place,Traffic & Transportation,"Strategic Partnerships, Planning & Streetpride",75 TAXIS LTD,N/A,112973,N/A,N/A,10-JAN-17,2695945,973.68,0.00,Passenger Transport Procurement & Operations,Transportation and Storage and Mail Serv
Derby City Council,Communities & Place,Traffic & Transportation,"Strategic Partnerships, Planning & Streetpride",75 TAXIS LTD,N/A,112973,N/A,N/A,10-JAN-17,2695948,2240.00,0.00,Passenger Transport Procurement & Operations,Transportation and Storage and Mail Serv
Derby City Council,Communities & Place,Traffic & Transportation,"Strategic Partnerships, Planning & Streetpride",75 TAXIS LTD,N/A,112973,N/A,N/A,10-JAN-17,2695949,1186.65,0.00,Passenger Transport Procurement & Operations,Transportation and Storage and Mail Serv
Derby City Council,Communities & Place,Traffic & Transportation,"Strategic Partnerships, Planning & Streetpride",75 TAXIS LTD,N/A,112973,N/A,N/A,10-JAN-17,2695955,664.00,0.00,Passenger Transport Procurement & Operations,Transportation and Storage and Mail Serv
Derby City Council,Communities & Place,Traffic & Transportation,"Strategic Partnerships, Planning & Streetpride",75 TAXIS LTD,N/A,112973,N/A,N/A,10-JAN-17,2695969,648.00,0.00,Passenger Transport Procurement & Operations,Transportation and Storage and Mail Serv
Derby City Council,Communities & Place,Property Design & Maintenance,"Regeneration, Property & Housing",ABBACAS CONSULTING LTD,N/A,188279,N/A,N/A,10-JAN-17,2699913,2632.24,0.00,Property Maintenance,N/A
Derby City Council,Communities & Place,Property Design & Maintenance,"Regeneration, Property & Housing",ABBEY GLASS DERBY LTD,N/A,187834,N/A,N/A,10-JAN-17,2699888,2757.60,0.00,Repair & Maintenance Works,N/A
Derby City Council,Communities & Place,Property Design & Maintenance,"Regeneration, Property & Housing",ADT FIRE AND SECURITY PLC,N/A,188268,N/A,N/A,10-JAN-17,2699916,1346.34,0.00,Repair & Maintenance Works,National Defense and Public Order and Se
Derby City Council,Communities & Place,Highways & Engineering,"Strategic Partnerships, Planning & Streetpride",AECOM INFRASTRUCTURE AND ENVIRONMENT UK LTD,N/A,244421,N/A,N/A,10-JAN-17,2671312,18676.38,0.00,Engineering Section,Engineering and Research and Technology
Derby City Council,Communities & Place,Highways & Engineering,"Strategic Partnerships, Planning & Streetpride",AECOM INFRASTRUCTURE AND ENVIRONMENT UK LTD,N/A,244421,N/A,N/A,10-JAN-17,2671312,7421.35,0.00,Engineering Section,Engineering and Research and Technology
Derby City Council,Communities & Place,Highways & Engineering,"Strategic Partnerships, Planning & Streetpride",AECOM INFRASTRUCTURE AND ENVIRONMENT UK LTD,N/A,244421,N/A,N/A,10-JAN-17,2694574,24090.90,0.00,Engineering Section,Engineering and Research and Technology
Derby City Council,Communities & Place,Highways & Engineering,"Strategic Partnerships, Planning & Streetpride",AGGREGATE INDUSTRIES UK LTD,N/A,117850,N/A,N/A,10-JAN-17,2695726,585.16,0.00,Highways Maintenance Works,Building and Construction Machinery and
Derby City Council,Communities & Place,Highways & Engineering,"Strategic Partnerships, Planning & Streetpride",AGGREGATE INDUSTRIES UK LTD,N/A,117850,N/A,N/A,10-JAN-17,2695727,1158.60,0.00,Highways Maintenance Works,Building and Construction Machinery and
Derby City Council,Communities & Place,Highways & Engineering,"Strategic Partnerships, Planning & Streetpride",AGGREGATE INDUSTRIES UK LTD,N/A,117850,N/A,N/A,10-JAN-17,2695732,561.75,0.00,Highways Maintenance Works,Building and Construction Machinery and
Derby City Council,Communities & Place,Highways & Engineering,"Strategic Partnerships, Planning & Streetpride",AGGREGATE INDUSTRIES UK LTD,N/A,117850,N/A,N/A,10-JAN-17,2695733,2585.90,0.00,Highways Maintenance Works,Building and Construction Machinery and
Derby City Council,Communities & Place,Highways & Engineering,"Strategic Partnerships, Planning & Streetpride",AGGREGATE INDUSTRIES UK LTD,N/A,117850,N/A,N/A,10-JAN-17,2695735,1708.37,0.00,Highways Maintenance Works,Building and Construction Machinery and
Derby City Council,People Services - Adults and Health,Physical Support,Community Support,ALLIED HEALTHCARE UK LTD,N/A,388447,N/A,N/A,10-JAN-17,2697537,810.88,0.00,South Adults (under 65) Physical - DP/Mgd,N/A
Derby City Council,People Services - Adults and Health,Physical Support,Community Support,ALLIED HEALTHCARE UK LTD,N/A,388447,N/A,N/A,10-JAN-17,2697537,810.88,0.00,South Adults (under 65) Physical - DP/Mgd,N/A
Derby City Council,People Services - Adults and Health,Physical Support,Community Support,ALLIED HEALTHCARE UK LTD,N/A,388447,N/A,N/A,10-JAN-17,2697671,581.44,0.00,South Adults (under 65) Physical - DP/Mgd,N/A
Derby City Council,People Services - Adults and Health,Physical Support,Community Support,ALLIED HEALTHCARE UK LTD,N/A,388447,N/A,N/A,10-JAN-17,2697671,581.44,0.00,South Adults (under 65) Physical - DP/Mgd,N/A
Derby City Council,People Services - Adults and Health,Physical Support,Community Support,ALLIED HEALTHCARE UK LTD,N/A,388447,N/A,N/A,10-JAN-17,2697789,1451.88,0.00,South Adults (under 65) Physical - DP/Mgd,N/A
Derby City Council,People Services - Adults and Health,Physical Support,Community Support,ALLIED HEALTHCARE UK LTD,N/A,388447,N/A,N/A,10-JAN-17,2697789,1451.88,0.00,South Adults (under 65) Physical - DP/Mgd,N/A
Derby City Council,People Services - Adults and Health,Physical Support,Community Support,ALLIED HEALTHCARE UK LTD,N/A,388447,N/A,N/A,10-JAN-17,2697901,1019.76,0.00,South Adults (under 65) Physical - DP/Mgd,N/A
Derby City Council,People Services - Adults and Health,Physical Support,Community Support,ALLIED HEALTHCARE UK LTD,N/A,388447,N/A,N/A,10-JAN-17,2697901,1301.56,0.00,South Adults (under 65) Physical - DP/Mgd,N/A
Derby City Council,People Services - Adults and Health,Physical Support,Community Support,ALLIED HEALTHCARE UK LTD,N/A,388447,N/A,N/A,10-JAN-17,2697598,162.66,0.00,South OP (over 65) Physical - DP/Mgd,N/A
Derby City Council,People Services - Adults and Health,Physical Support,Community Support,ALLIED HEALTHCARE UK LTD,N/A,388447,N/A,N/A,10-JAN-17,2697598,356.62,0.00,South OP (over 65) Physical - DP/Mgd,N/A
Derby City Council,People Services - Adults and Health,Physical Support,Community Support,ALLIED HEALTHCARE UK LTD,N/A,388447,N/A,N/A,10-JAN-17,2697730,1018.40,0.00,South OP (over 65) Physical - DP/Mgd,N/A
Derby City Council,People Services - Adults and Health,Physical Support,Community Support,ALLIED HEALTHCARE UK LTD,N/A,388447,N/A,N/A,10-JAN-17,2697967,658.32,0.00,East OP (over 65) Physical - DP/Mgd,N/A
Derby City Council,Communities & Place,Property Design & Maintenance,"Regeneration, Property & Housing",ATKINS LTD FAITHFUL AND GOULD,N/A,187856,N/A,N/A,10-JAN-17,2699893,8745.00,0.00,Property Maintenance,Management and Business Professionals an
Derby City Council,Communities & Place,Property Design & Maintenance,"Regeneration, Property & Housing",ATKINS LTD FAITHFUL AND GOULD,N/A,187856,N/A,N/A,10-JAN-17,2699982,7950.00,0.00,Property Maintenance,Management and Business Professionals an
Derby City Council,Communities & Place,Property Design & Maintenance,"Regeneration, Property & Housing",ATKINS LTD FAITHFUL AND GOULD,N/A,187856,N/A,N/A,10-JAN-17,2699921,2062.78,0.00,Condition Surveys - Corporate,Management and Business Professionals an
Derby City Council,Communities & Place,Highways & Engineering,"Strategic Partnerships, Planning & Streetpride",AVERY WEIGH LTD,N/A,648,N/A,N/A,10-JAN-17,2694369,431.20,0.00,Highways Maintenance - General,Office Equipment and Accessories and Sup
Derby City Council,People Services - Adults and Health,Physical Support,Community Support,BARRINGTON ANGLIN,N/A,266458,N/A,N/A,10-JAN-17,2697251,744.20,0.00,East OP (over 65) Physical - DP/Mgd,N/A
Derby City Council,People Services - Adults and Health,Physical Support,Community Support,BARRINGTON ANGLIN,N/A,266458,N/A,N/A,10-JAN-17,2697251,-145.32,0.00,East OP (over 65) Physical - DP/Mgd,N/A
Derby City Council,People Services - Children & Young People,Non Delegated Schools Budget,Schools Block,BISHOP LONSDALE CE AIDED PRIMARY SCHOOL AND NURSERY,N/A,11152,N/A,N/A,10-JAN-17,2694717,417.00,0.00,General Primary Costs,N/A
Derby City Council,People Services - Children & Young People,Non Delegated Schools Budget,Schools Block,BISHOP LONSDALE CE AIDED PRIMARY SCHOOL AND NURSERY,N/A,11152,N/A,N/A,10-JAN-17,2694717,327.00,0.00,High Needs Contingency,N/A
Derby City Council,People Services - Adults and Health,Physical Support,Community Support,BLAYCARE DOMILICIALRY SERVICES,N/A,388448,N/A,N/A,10-JAN-17,2697617,1087.80,0.00,Central Adults (under 65) Physical - DP/Mgd,N/A
Derby City Council,People Services - Adults and Health,Physical Support,Community Support,BLAYCARE DOMILICIALRY SERVICES,N/A,388448,N/A,N/A,10-JAN-17,2697801,443.08,0.00,Central Adults (under 65) Physical - DP/Mgd,N/A
Derby City Council,People Services - Adults and Health,Physical Support,Community Support,BLAYCARE DOMILICIALRY SERVICES,N/A,388448,N/A,N/A,10-JAN-17,2697801,443.08,0.00,Central Adults (under 65) Physical - DP/Mgd,N/A
Derby City Council,People Services - Adults and Health,Physical Support,Community Support,BLAYCARE DOMILICIALRY SERVICES,N/A,388448,N/A,N/A,10-JAN-17,2697915,744.60,0.00,Central Adults (under 65) Physical - DP/Mgd,N/A
Derby City Council,People Services - Adults and Health,Physical Support,Community Support,BLAYCARE DOMILICIALRY SERVICES,N/A,388448,N/A,N/A,10-JAN-17,2697618,598.16,0.00,West Adults (under 65) Physical - DP/Mgd,N/A
Derby City Council,People Services - Adults and Health,Physical Support,Community Support,BLAYCARE DOMILICIALRY SERVICES,N/A,388448,N/A,N/A,10-JAN-17,2697917,1019.76,0.00,West Adults (under 65) Physical - DP/Mgd,N/A
Derby City Council,People Services - Adults and Health,Physical Support,Community Support,BLAYCARE DOMILICIALRY SERVICES,N/A,388448,N/A,N/A,10-JAN-17,2697982,1331.12,0.00,West Adults (under 65) Physical - DP/Mgd,N/A
Derby City Council,People Services - Adults and Health,Physical Support,Community Support,BLAYCARE DOMILICIALRY SERVICES,N/A,388448,N/A,N/A,10-JAN-17,2697556,1239.56,0.00,Central OP (over 65) Physical - DP/Mgd,N/A
Derby City Council,People Services - Adults and Health,Physical Support,Community Support,BLAYCARE DOMILICIALRY SERVICES,N/A,388448,N/A,N/A,10-JAN-17,2697556,1373.16,0.00,Central OP (over 65) Physical - DP/Mgd,N/A
Derby City Council,People Services - Adults and Health,Physical Support,Community Support,BLAYCARE DOMILICIALRY SERVICES,N/A,388448,N/A,N/A,10-JAN-17,2697623,702.36,0.00,Central OP (over 65) Physical - DP/Mgd,N/A
Derby City Council,People Services - Adults and Health,Physical Support,Community Support,BLAYCARE DOMILICIALRY SERVICES,N/A,388448,N/A,N/A,10-JAN-17,2697623,702.36,0.00,Central OP (over 65) Physical - DP/Mgd,N/A
Derby City Council,People Services - Adults and Health,Physical Support,Community Support,BLAYCARE DOMILICIALRY SERVICES,N/A,388448,N/A,N/A,10-JAN-17,2697624,827.44,0.00,Central OP (over 65) Physical - DP/Mgd,N/A
Derby City Council,People Services - Adults and Health,Physical Support,Community Support,BLAYCARE DOMILICIALRY SERVICES,N/A,388448,N/A,N/A,10-JAN-17,2697689,779.00,0.00,Central OP (over 65) Physical - DP/Mgd,N/A
Derby City Council,People Services - Adults and Health,Physical Support,Community Support,BLAYCARE DOMILICIALRY SERVICES,N/A,388448,N/A,N/A,10-JAN-17,2697690,806.12,0.00,Central OP (over 65) Physical - DP/Mgd,N/A
Derby City Council,People Services - Adults and Health,Physical Support,Community Support,BLAYCARE DOMILICIALRY SERVICES,N/A,388448,N/A,N/A,10-JAN-17,2697751,702.36,0.00,Central OP (over 65) Physical - DP/Mgd,N/A
Derby City Council,People Services - Adults and Health,Physical Support,Community Support,BLAYCARE DOMILICIALRY SERVICES,N/A,388448,N/A,N/A,10-JAN-17,2697751,702.36,0.00,Central OP (over 65) Physical - DP/Mgd,N/A
Derby City Council,People Services - Adults and Health,Physical Support,Community Support,BLAYCARE DOMILICIALRY SERVICES,N/A,388448,N/A,N/A,10-JAN-17,2697752,864.68,0.00,Central OP (over 65) Physical - DP/Mgd,N/A
Derby City Council,People Services - Adults and Health,Physical Support,Community Support,BLAYCARE DOMILICIALRY SERVICES,N/A,388448,N/A,N/A,10-JAN-17,2697805,632.36,0.00,Central OP (over 65) Physical - DP/Mgd,N/A
Derby City Council,People Services - Adults and Health,Physical Support,Community Support,BLAYCARE DOMILICIALRY SERVICES,N/A,388448,N/A,N/A,10-JAN-17,2697856,557.80,0.00,Central OP (over 65) Physical - DP/Mgd,N/A
Derby City Council,People Services - Adults and Health,Physical Support,Community Support,BLAYCARE DOMILICIALRY SERVICES,N/A,388448,N/A,N/A,10-JAN-17,2697857,779.00,0.00,Central OP (over 65) Physical - DP/Mgd,N/A
Derby City Council,People Services - Adults and Health,Physical Support,Community Support,BLAYCARE DOMILICIALRY SERVICES,N/A,388448,N/A,N/A,10-JAN-17,2697857,779.00,0.00,Central OP (over 65) Physical - DP/Mgd,N/A
Derby City Council,People Services - Adults and Health,Physical Support,Community Support,BLAYCARE DOMILICIALRY SERVICES,N/A,388448,N/A,N/A,10-JAN-17,2697858,915.08,0.00,Central OP (over 65) Physical - DP/Mgd,N/A
Derby City Council,People Services - Adults and Health,Physical Support,Community Support,BLAYCARE DOMILICIALRY SERVICES,N/A,388448,N/A,N/A,10-JAN-17,2697921,379.20,0.00,Central OP (over 65) Physical - DP/Mgd,N/A
Derby City Council,People Services - Adults and Health,Physical Support,Community Support,BLAYCARE DOMILICIALRY SERVICES,N/A,388448,N/A,N/A,10-JAN-17,2697921,6.68,0.00,Central OP (over 65) Physical - DP/Mgd,N/A
Derby City Council,People Services - Adults and Health,Physical Support,Community Support,BLAYCARE DOMILICIALRY SERVICES,N/A,388448,N/A,N/A,10-JAN-17,2697921,337.82,0.00,Central OP (over 65) Physical - DP/Mgd,N/A
Derby City Council,People Services - Adults and Health,Physical Support,Community Support,BLAYCARE DOMILICIALRY SERVICES,N/A,388448,N/A,N/A,10-JAN-17,2697922,655.80,0.00,Central OP (over 65) Physical - DP/Mgd,N/A
Derby City Council,People Services - Adults and Health,Physical Support,Community Support,BLAYCARE DOMILICIALRY SERVICES,N/A,388448,N/A,N/A,10-JAN-17,2697923,696.33,0.00,Central OP (over 65) Physical - DP/Mgd,N/A
Derby City Council,People Services - Adults and Health,Physical Support,Community Support,BLAYCARE DOMILICIALRY SERVICES,N/A,388448,N/A,N/A,10-JAN-17,2697988,704.38,0.00,Central OP (over 65) Physical - DP/Mgd,N/A
Derby City Council,People Services - Adults and Health,Physical Support,Community Support,BLAYCARE DOMILICIALRY SERVICES,N/A,388448,N/A,N/A,10-JAN-17,2697988,704.38,0.00,Central OP (over 65) Physical - DP/Mgd,N/A
Derby City Council,People Services - Adults and Health,Physical Support,Community Support,BLAYCARE DOMILICIALRY SERVICES,N/A,388448,N/A,N/A,10-JAN-17,2697989,889.72,0.00,Central OP (over 65) Physical - DP/Mgd,N/A
Derby City Council,People Services - Adults and Health,Physical Support,Community Support,BLAYCARE DOMILICIALRY SERVICES,N/A,388448,N/A,N/A,10-JAN-17,2697560,582.00,0.00,West OP (over 65) Physical - DP/Mgd,N/A
Derby City Council,People Services - Adults and Health,Physical Support,Community Support,BLAYCARE DOMILICIALRY SERVICES,N/A,388448,N/A,N/A,10-JAN-17,2697561,915.08,0.00,West OP (over 65) Physical - DP/Mgd,N/A
Derby City Council,People Services - Adults and Health,Physical Support,Community Support,BLAYCARE DOMILICIALRY SERVICES,N/A,388448,N/A,N/A,10-JAN-17,2697561,915.08,0.00,West OP (over 65) Physical - DP/Mgd,N/A
Derby City Council,People Services - Adults and Health,Physical Support,Community Support,BLAYCARE DOMILICIALRY SERVICES,N/A,388448,N/A,N/A,10-JAN-17,2697562,1396.08,0.00,West OP (over 65) Physical - DP/Mgd,N/A
Derby City Council,People Services - Adults and Health,Physical Support,Community Support,BLAYCARE DOMILICIALRY SERVICES,N/A,388448,N/A,N/A,10-JAN-17,2697562,1396.08,0.00,West OP (over 65) Physical - DP/Mgd,N/A
Derby City Council,People Services - Adults and Health,Physical Support,Community Support,BLAYCARE DOMILICIALRY SERVICES,N/A,388448,N/A,N/A,10-JAN-17,2697631,759.40,0.00,West OP (over 65) Physical - DP/Mgd,N/A
Derby City Council,People Services - Adults and Health,Physical Support,Community Support,BLAYCARE DOMILICIALRY SERVICES,N/A,388448,N/A,N/A,10-JAN-17,2697632,1000.76,0.00,West OP (over 65) Physical - DP/Mgd,N/A
Derby City Council,People Services - Adults and Health,Physical Support,Community Support,BLAYCARE DOMILICIALRY SERVICES,N/A,388448,N/A,N/A,10-JAN-17,2697632,1587.56,0.00,West OP (over 65) Physical - DP/Mgd,N/A
Derby City Council,People Services - Adults and Health,Physical Support,Community Support,BLAYCARE DOMILICIALRY SERVICES,N/A,388448,N/A,N/A,10-JAN-17,2697633,1153.88,0.00,West OP (over 65) Physical - DP/Mgd,N/A
Derby City Council,People Services - Adults and Health,Physical Support,Community Support,BLAYCARE DOMILICIALRY SERVICES,N/A,388448,N/A,N/A,10-JAN-17,2697633,1485.56,0.00,West OP (over 65) Physical - DP/Mgd,N/A
Derby City Council,People Services - Adults and Health,Physical Support,Community Support,BLAYCARE DOMILICIALRY SERVICES,N/A,388448,N/A,N/A,10-JAN-17,2697634,1346.44,0.00,West OP (over 65) Physical - DP/Mgd,N/A
Derby City Council,People Services - Adults and Health,Physical Support,Community Support,BLAYCARE DOMILICIALRY SERVICES,N/A,388448,N/A,N/A,10-JAN-17,2697634,1346.44,0.00,West OP (over 65) Physical - DP/Mgd,N/A
Derby City Council,People Services - Adults and Health,Physical Support,Community Support,BLAYCARE DOMILICIALRY SERVICES,N/A,388448,N/A,N/A,10-JAN-17,2697634,2136.96,0.00,West OP (over 65) Physical - DP/Mgd,N/A
Derby City Council,People Services - Adults and Health,Physical Support,Community Support,BLAYCARE DOMILICIALRY SERVICES,N/A,388448,N/A,N/A,10-JAN-17,2697695,673.24,0.00,West OP (over 65) Physical - DP/Mgd,N/A
Derby City Council,People Services - Adults and Health,Physical Support,Community Support,BLAYCARE DOMILICIALRY SERVICES,N/A,388448,N/A,N/A,10-JAN-17,2697812,1000.76,0.00,West OP (over 65) Physical - DP/Mgd,N/A
Derby City Council,People Services - Adults and Health,Physical Support,Community Support,BLAYCARE DOMILICIALRY SERVICES,N/A,388448,N/A,N/A,10-JAN-17,2697812,1000.76,0.00,West OP (over 65) Physical - DP/Mgd,N/A
Derby City Council,People Services - Adults and Health,Physical Support,Community Support,BLAYCARE DOMILICIALRY SERVICES,N/A,388448,N/A,N/A,10-JAN-17,2697860,175.59,0.00,West OP (over 65) Physical - DP/Mgd,N/A
Derby City Council,People Services - Adults and Health,Physical Support,Community Support,BLAYCARE DOMILICIALRY SERVICES,N/A,388448,N/A,N/A,10-JAN-17,2697860,303.37,0.00,West OP (over 65) Physical - DP/Mgd,N/A
Derby City Council,People Services - Adults and Health,Physical Support,Community Support,BLAYCARE DOMILICIALRY SERVICES,N/A,388448,N/A,N/A,10-JAN-17,2697860,614.31,0.00,West OP (over 65) Physical - DP/Mgd,N/A
Derby City Council,People Services - Adults and Health,Physical Support,Community Support,BLAYCARE DOMILICIALRY SERVICES,N/A,388448,N/A,N/A,10-JAN-17,2697860,668.55,0.00,West OP (over 65) Physical - DP/Mgd,N/A
Derby City Council,People Services - Adults and Health,Physical Support,Community Support,BLAYCARE DOMILICIALRY SERVICES,N/A,388448,N/A,N/A,10-JAN-17,2697862,212.72,0.00,West OP (over 65) Physical - DP/Mgd,N/A
Derby City Council,People Services - Adults and Health,Physical Support,Community Support,BLAYCARE DOMILICIALRY SERVICES,N/A,388448,N/A,N/A,10-JAN-17,2697862,779.00,0.00,West OP (over 65) Physical - DP/Mgd,N/A
Derby City Council,People Services - Adults and Health,Physical Support,Community Support,BLAYCARE DOMILICIALRY SERVICES,N/A,388448,N/A,N/A,10-JAN-17,2697863,575.32,0.00,West OP (over 65) Physical - DP/Mgd,N/A
Derby City Council,People Services - Adults and Health,Physical Support,Community Support,BLAYCARE DOMILICIALRY SERVICES,N/A,388448,N/A,N/A,10-JAN-17,2697871,1673.62,0.00,West OP (over 65) Physical - DP/Mgd,N/A
Derby City Council,People Services - Adults and Health,Physical Support,Community Support,BLAYCARE DOMILICIALRY SERVICES,N/A,388448,N/A,N/A,10-JAN-17,2697871,0.02,0.00,West OP (over 65) Physical - DP/Mgd,N/A
Derby City Council,People Services - Adults and Health,Physical Support,Community Support,BLAYCARE DOMILICIALRY SERVICES,N/A,388448,N/A,N/A,10-JAN-17,2697927,728.44,0.00,West OP (over 65) Physical - DP/Mgd,N/A
Derby City Council,People Services - Adults and Health,Physical Support,Community Support,BLAYCARE DOMILICIALRY SERVICES,N/A,388448,N/A,N/A,10-JAN-17,2697927,1049.08,0.00,West OP (over 65) Physical - DP/Mgd,N/A
Derby City Council,People Services - Adults and Health,Sensory Support,Community Support,BLAYCARE DOMILICIALRY SERVICES,N/A,388448,N/A,N/A,10-JAN-17,2697998,385.44,0.00,Central OP (over 65) Sensory - DP/Mgd,N/A
Derby City Council,People Services - Adults and Health,Sensory Support,Community Support,BLAYCARE DOMILICIALRY SERVICES,N/A,388448,N/A,N/A,10-JAN-17,2697998,385.44,0.00,Central OP (over 65) Sensory - DP/Mgd,N/A
Derby City Council,People Services - Adults and Health,Sensory Support,Community Support,BLAYCARE DOMILICIALRY SERVICES,N/A,388448,N/A,N/A,10-JAN-17,2697872,868.52,0.00,West OP (over 65) Sensory - DP/Mgd,N/A
Derby City Council,People Services - Adults and Health,Mental Health Support,Mental Health,BLAYCARE DOMILICIALRY SERVICES,N/A,388448,N/A,N/A,10-JAN-17,2697567,1021.96,0.00,West/South MH Support Adults (under 65) - DP/Mgd,N/A
Derby City Council,People Services - Adults and Health,Mental Health Support,Mental Health,BLAYCARE DOMILICIALRY SERVICES,N/A,388448,N/A,N/A,10-JAN-17,2697567,1021.96,0.00,West/South MH Support Adults (under 65) - DP/Mgd,N/A
Derby City Council,People Services - Adults and Health,Mental Health Support,Mental Health,BLAYCARE DOMILICIALRY SERVICES,N/A,388448,N/A,N/A,10-JAN-17,2697704,596.80,0.00,West/South MH Support Adults (under 65) - DP/Mgd,N/A
Derby City Council,People Services - Adults and Health,Mental Health Support,Mental Health,BLAYCARE DOMILICIALRY SERVICES,N/A,388448,N/A,N/A,10-JAN-17,2697643,613.49,0.00,West/South MH Support OP (over 65) - DP/Mgd,N/A
Derby City Council,Communities & Place,Building Consultancy and Emergency Planning,"Communities, Environment & Regulatory Services",BRG INTERIM SOLUTIONS LIMITED,N/A,473663,N/A,N/A,10-JAN-17,2694956,795.60,0.00,Building Control,N/A
Derby City Council,Communities & Place,"Occupational Health, Safety, Markets & Bereavement Services","Communities, Environment & Regulatory Services",BRITISH GAS BUSINESS,N/A,265414,N/A,N/A,10-JAN-17,2685526,766.87,0.00,Wholesale Market - Service Charge,N/A
Derby City Council,Organisation & Governance,"Information, Computing & Technology",Digital Services,BT PLC,N/A,5400,N/A,N/A,10-JAN-17,2695013,1512.69,0.00,Computer Services,N/A
Derby City Council,Communities & Place,Traffic & Transportation,"Strategic Partnerships, Planning & Streetpride",BT PLC,N/A,5400,N/A,N/A,10-JAN-17,2695015,4530.24,0.00,Network Management,N/A
Derby City Council,Organisation & Governance,"Information, Computing & Technology",Digital Services,BYTES SOFTWARE SERVICES LTD,N/A,144360,N/A,N/A,10-JAN-17,2694946,119980.76,0.00,Computer Services,Information Technology Broadcasting and
Derby City Council,Organisation & Governance,"Information, Computing & Technology",Digital Services,BYTES SOFTWARE SERVICES LTD,N/A,144360,N/A,N/A,10-JAN-17,2694946,163.44,0.00,Computer Services,Information Technology Broadcasting and
Derby City Council,Organisation & Governance,Benefits and Exchequer Services,Finance,CAPITA SOFTWARE SERVICES,N/A,7907,N/A,N/A,10-JAN-17,2685130,4000.00,0.00,Housing Benefits & C Tax Support Admin,Information Technology Broadcasting and
Derby City Council,People Services - Adults and Health,Learning Disability Support,Community Support,CARERS TRUST EAST MIDLANDS,N/A,388457,N/A,N/A,10-JAN-17,2697771,1175.68,0.00,South Adults (under 65) LD - DP/Mgd,N/A
Derby City Council,People Services - Adults and Health,Learning Disability Support,Community Support,CARERS TRUST EAST MIDLANDS,N/A,388457,N/A,N/A,10-JAN-17,2697771,-53.44,0.00,South Adults (under 65) LD - DP/Mgd,N/A
Derby City Council,People Services - Adults and Health,Learning Disability Support,Community Support,CARERS TRUST EAST MIDLANDS,N/A,388457,N/A,N/A,10-JAN-17,2697882,1095.52,0.00,South Adults (under 65) LD - DP/Mgd,N/A
Derby City Council,People Services - Adults and Health,Learning Disability Support,Community Support,CARERS TRUST EAST MIDLANDS,N/A,388457,N/A,N/A,10-JAN-17,2698008,881.76,0.00,South Adults (under 65) LD - DP/Mgd,N/A
Derby City Council,Communities & Place,Traffic & Transportation,"Strategic Partnerships, Planning & Streetpride",CHADS CARS LTD,N/A,112982,N/A,N/A,10-JAN-17,2695872,650.00,0.00,Passenger Transport Procurement & Operations,Transportation and Storage and Mail Serv
Derby City Council,Communities & Place,Traffic & Transportation,"Strategic Partnerships, Planning & Streetpride",CHADS CARS LTD,N/A,112982,N/A,N/A,10-JAN-17,2695878,1080.00,0.00,Passenger Transport Procurement & Operations,Transportation and Storage and Mail Serv
Derby City Council,Communities & Place,Traffic & Transportation,"Strategic Partnerships, Planning & Streetpride",CHELLASTON CARS UK LTD,N/A,112984,N/A,N/A,10-JAN-17,2695961,770.00,0.00,Passenger Transport Procurement & Operations,N/A
Derby City Council,Organisation & Governance,Finance,Finance,CIPFA BUSINESS,N/A,124324,N/A,N/A,10-JAN-17,2685322,6864.00,0.00,Finance Department - Accountancy,Education and Training Services
Derby City Council,Communities & Place,Property Design & Maintenance,"Regeneration, Property & Housing",CITY ELECTRICAL FACTORS LTD,N/A,188346,N/A,N/A,10-JAN-17,2699882,2235.36,0.00,Repair & Maintenance Works,Electrical systems and Lighting and comp
Derby City Council,Communities & Place,Property Design & Maintenance,"Regeneration, Property & Housing",CLYMAC LTD,N/A,187927,N/A,N/A,10-JAN-17,2699863,865.20,0.00,Repair & Maintenance Works,Electrical systems and Lighting and comp
Derby City Council,Communities & Place,Traffic & Transportation,"Strategic Partnerships, Planning & Streetpride",COMMUNITY TRANSPORT FOR TOWN AND COUNTY,N/A,180369,N/A,N/A,10-JAN-17,2695875,1162.26,0.00,Passenger Transport Procurement & Operations,N/A
Derby City Council,Communities & Place,Traffic & Transportation,"Strategic Partnerships, Planning & Streetpride",COMMUNITY TRANSPORT FOR TOWN AND COUNTY,N/A,180369,N/A,N/A,10-JAN-17,2695973,457.20,0.00,Passenger Transport Procurement & Operations,N/A
Derby City Council,Communities & Place,Traffic & Transportation,"Strategic Partnerships, Planning & Streetpride",CROWN CARS Derby LTD,N/A,112999,N/A,N/A,10-JAN-17,2695905,603.00,0.00,Passenger Transport Procurement & Operations,N/A
Derby City Council,Communities & Place,Traffic & Transportation,"Strategic Partnerships, Planning & Streetpride",CROWN CARS Derby LTD,N/A,112999,N/A,N/A,10-JAN-17,2695916,520.00,0.00,Passenger Transport Procurement & Operations,N/A
Derby City Council,Communities & Place,Traffic & Transportation,"Strategic Partnerships, Planning & Streetpride",CROWN CARS Derby LTD,N/A,112999,N/A,N/A,10-JAN-17,2695920,780.00,0.00,Passenger Transport Procurement & Operations,N/A
Derby City Council,Communities & Place,Traffic & Transportation,"Strategic Partnerships, Planning & Streetpride",CROWN CARS Derby LTD,N/A,112999,N/A,N/A,10-JAN-17,2695974,1078.00,0.00,Passenger Transport Procurement & Operations,N/A
Derby City Council,Communities & Place,Traffic & Transportation,"Strategic Partnerships, Planning & Streetpride",CROWN CARS Derby LTD,N/A,112999,N/A,N/A,10-JAN-17,2695980,770.00,0.00,Passenger Transport Procurement & Operations,N/A
Derby City Council,People Services - Children & Young People,Non Delegated Schools Budget,Schools Block,DCET TA MERRILL ACADEMY,N/A,142334,N/A,N/A,10-JAN-17,2695551,750.00,0.00,Pupil Premium Grant,N/A
Derby City Council,Communities & Place,Leisure,"Leisure, Culture and Tourism",DE LAGE LANDEN LEASING LTD,N/A,249529,N/A,N/A,10-JAN-17,2695014,7539.26,0.00,Derby Multi Use Sports Arena,Sports and Recreational Equipment and Su
Derby City Council,Communities & Place,Traffic & Transportation,"Strategic Partnerships, Planning & Streetpride",DERBY CARZ,N/A,277415,N/A,N/A,10-JAN-17,2695886,537.00,0.00,Passenger Transport Procurement & Operations,N/A
Derby City Council,Communities & Place,Leisure,"Leisure, Culture and Tourism",DERBY PARKS VOLUNTEERS,N/A,381422,N/A,N/A,10-JAN-17,2694990,620.00,0.00,Outdoor Amenities,Industrial Manufacturing and Processing
Derby City Council,People Services - Adults and Health,Integrated Commissioning,Commissioning,DERBYSHIRE CARE SERVICES,N/A,1207,N/A,N/A,10-JAN-17,2695417,3028.33,0.00,Extra Care - Handyside Court,N/A
Derby City Council,Communities & Place,Community Safety and Integration,"Communities, Environment & Regulatory Services",DERBYSHIRE COUNTY COUNCIL,N/A,1216,N/A,N/A,10-JAN-17,2693997,2000.00,0.00,City and Neighbourhoods Partnerships Core,Education and Training Services
Derby City Council,Organisation & Governance,Finance,Finance,DERBYSHIRE COUNTY COUNCIL,N/A,1216,N/A,N/A,10-JAN-17,2578613,151699.21,0.00,Compensatory Added Years,Education and Training Services
Derby City Council,Organisation & Governance,Finance,Finance,DERBYSHIRE COUNTY COUNCIL,N/A,1216,N/A,N/A,10-JAN-17,2671614,150799.28,0.00,Compensatory Added Years,Education and Training Services
Derby City Council,People Services - Adults and Health,Public Health,Public Health,DERBYSHIRE COUNTY COUNCIL,N/A,1216,N/A,N/A,10-JAN-17,2694804,7500.00,0.00,Staff costs & overheads,Education and Training Services
Derby City Council,Communities & Place,General,"Strategic Partnerships, Planning & Streetpride",DERBYSHIRE COUNTY COUNCIL,N/A,1216,N/A,N/A,10-JAN-17,2694471,1262.53,0.00,Fleet Hire,Education and Training Services
Derby City Council,Communities & Place,Refuse & Waste Management,"Strategic Partnerships, Planning & Streetpride",DERBYSHIRE COUNTY COUNCIL,N/A,9786,N/A,N/A,10-JAN-17,2692101,2035.53,0.00,Waste Disposal,Education and Training Services
Derby City Council,Communities & Place,Traffic & Transportation,"Strategic Partnerships, Planning & Streetpride",DERBYSHIRE COUNTY COUNCIL,N/A,1216,N/A,N/A,10-JAN-17,2695418,1939.50,0.00,Derby Bus Station Holding Account,Education and Training Services
Derby City Council,People Services - Children & Young People,Specialist Services,Non-Schools,DERBYSHIRE HEALTHCARE NHS FOUNDATION TRUST,N/A,107468,N/A,N/A,10-JAN-17,2694878,41959.08,0.00,The Light House Residential,Healthcare Services
Derby City Council,People Services - Children & Young People,Specialist Services,Non-Schools,DERBYSHIRE HEALTHCARE NHS FOUNDATION TRUST,N/A,107468,N/A,N/A,10-JAN-17,2694880,6148.22,0.00,The Light House Residential,Healthcare Services
Derby City Council,People Services - Adults and Health,Physical Support,Community Support,DERBYSHIRE HOME CARE LTD,N/A,388460,N/A,N/A,10-JAN-17,2697889,2136.96,0.00,Central Adults (under 65) Physical - DP/Mgd,N/A
Derby City Council,People Services - Adults and Health,Physical Support,Community Support,DERBYSHIRE HOME CARE LTD,N/A,388460,N/A,N/A,10-JAN-17,2697889,4582.56,0.00,Central Adults (under 65) Physical - DP/Mgd,N/A
Derby City Council,People Services - Adults and Health,Physical Support,Community Support,DERBYSHIRE HOME CARE LTD,N/A,388460,N/A,N/A,10-JAN-17,2697657,937.20,0.00,West OP (over 65) Physical - DP/Mgd,N/A
Derby City Council,Communities & Place,Property Design & Maintenance,"Regeneration, Property & Housing",DERWENT FENCING LTD,N/A,280405,N/A,N/A,10-JAN-17,2699907,3605.00,0.00,Rechargeable Work,Structures and Building and Construction
Derby City Council,Communities & Place,Property Design & Maintenance,"Regeneration, Property & Housing",DERWENT FENCING LTD,N/A,280405,N/A,N/A,10-JAN-17,2699997,1545.00,0.00,Rechargeable Work,Structures and Building and Construction
Derby City Council,People Services - Children & Young People,Non Delegated Schools Budget,Schools Block,DERWENT STEPPING STONES NURSERY,N/A,1071,N/A,N/A,10-JAN-17,2700114,23571.00,0.00,Nursery Education Grant,Education and Training Services
Derby City Council,People Services - Children & Young People,Non Delegated Schools Budget,Schools Block,DERWENT STEPPING STONES NURSERY,N/A,1071,N/A,N/A,10-JAN-17,2700115,15015.60,0.00,Nursery Education Grant,Education and Training Services
Derby City Council,People Services - Children & Young People,Non Delegated Schools Budget,Schools Block,DERWENT STEPPING STONES NURSERY,N/A,1071,N/A,N/A,10-JAN-17,2700117,10476.00,0.00,Nursery Education Grant,Education and Training Services
Derby City Council,People Services - Children & Young People,Non Delegated Schools Budget,Schools Block,DERWENT STEPPING STONES NURSERY,N/A,1071,N/A,N/A,10-JAN-17,2700119,6111.00,0.00,Nursery Education Grant,Education and Training Services
Derby City Council,People Services - Adults and Health,Physical Support,Community Support,DIMENSIONS UK LTD,N/A,388489,N/A,N/A,10-JAN-17,2697530,3754.12,0.00,Central Adults (under 65) Physical - DP/Mgd,Healthcare Services
Derby City Council,People Services - Adults and Health,Physical Support,Community Support,DIMENSIONS UK LTD,N/A,388489,N/A,N/A,10-JAN-17,2697721,944.32,0.00,Central Adults (under 65) Physical - DP/Mgd,Healthcare Services
Derby City Council,People Services - Adults and Health,Physical Support,Community Support,DIMENSIONS UK LTD,N/A,388489,N/A,N/A,10-JAN-17,2697955,915.12,0.00,Central Adults (under 65) Physical - DP/Mgd,Healthcare Services
Derby City Council,People Services - Adults and Health,Learning Disability Support,Community Support,DIMENSIONS UK LTD,N/A,388489,N/A,N/A,10-JAN-17,2697661,2853.76,0.00,Central Adults (under 65) LD - DP/Mgd,Healthcare Services
Derby City Council,People Services - Adults and Health,Learning Disability Support,Transitions and Ordinary Lives,DIMENSIONS UK LTD,N/A,388489,N/A,N/A,10-JAN-17,2697587,6120.00,0.00,Ordinary Lives LD - DP/Mgd,Healthcare Services
Derby City Council,People Services - Adults and Health,Physical Support,Community Support,DISABILITY DIRECT,N/A,388493,N/A,N/A,10-JAN-17,2697662,934.32,0.00,West Adults (under 65) Physical - DP/Mgd,Education and Training Services
Derby City Council,People Services - Adults and Health,Physical Support,Community Support,DISABILITY DIRECT,N/A,388493,N/A,N/A,10-JAN-17,2697662,934.32,0.00,West Adults (under 65) Physical - DP/Mgd,Education and Training Services
Derby City Council,People Services - Adults and Health,Physical Support,Community Support,DISABILITY DIRECT,N/A,388493,N/A,N/A,10-JAN-17,2697662,140.08,0.00,West Adults (under 65) Physical - DP/Mgd,Education and Training Services
Derby City Council,People Services - Adults and Health,Physical Support,Community Support,DISABILITY DIRECT,N/A,388493,N/A,N/A,10-JAN-17,2697589,329.76,0.00,East Adults (under 65) Physical - DP/Mgd,Education and Training Services
Derby City Council,People Services - Adults and Health,Physical Support,Community Support,DISABILITY DIRECT,N/A,388493,N/A,N/A,10-JAN-17,2697589,769.44,0.00,East Adults (under 65) Physical - DP/Mgd,Education and Training Services
Derby City Council,People Services - Adults and Health,Physical Support,Community Support,DISABILITY DIRECT,N/A,388493,N/A,N/A,10-JAN-17,2697589,49.44,0.00,East Adults (under 65) Physical - DP/Mgd,Education and Training Services
Derby City Council,People Services - Adults and Health,Physical Support,Community Support,DISABILITY DIRECT,N/A,388493,N/A,N/A,10-JAN-17,2697532,109.92,0.00,East OP (over 65) Physical - DP/Mgd,Education and Training Services
Derby City Council,People Services - Adults and Health,Physical Support,Community Support,DISABILITY DIRECT,N/A,388493,N/A,N/A,10-JAN-17,2697532,384.72,0.00,East OP (over 65) Physical - DP/Mgd,Education and Training Services
Derby City Council,People Services - Adults and Health,Physical Support,Community Support,DISABILITY DIRECT,N/A,388493,N/A,N/A,10-JAN-17,2697532,16.48,0.00,East OP (over 65) Physical - DP/Mgd,Education and Training Services
Derby City Council,People Services - Adults and Health,Public Health,Public Health,DR GOULD & PARTNERS,N/A,406407,N/A,N/A,10-JAN-17,2695580,959.25,0.00,Healthcare Services - Contraceptive Implants,Healthcare Services
Derby City Council,People Services - Adults and Health,Public Health,Public Health,DR GOULD & PARTNERS,N/A,406407,N/A,N/A,10-JAN-17,2695580,191.85,0.00,Healthcare Services - Contraceptive Implants,Healthcare Services
Derby City Council,People Services - Adults and Health,Public Health,Public Health,DR GOULD & PARTNERS,N/A,406407,N/A,N/A,10-JAN-17,2695580,246.30,0.00,Healthcare Services - Contraceptive Implants,Healthcare Services
Derby City Council,People Services - Adults and Health,Public Health,Public Health,DR PA WOOD AND PARTNERS,N/A,408398,N/A,N/A,10-JAN-17,2695561,191.85,0.00,Healthcare Services - Contraceptive Implants,N/A
Derby City Council,People Services - Adults and Health,Public Health,Public Health,DR PA WOOD AND PARTNERS,N/A,408398,N/A,N/A,10-JAN-17,2695561,127.90,0.00,Healthcare Services - Contraceptive Implants,N/A
Derby City Council,People Services - Adults and Health,Public Health,Public Health,DR PA WOOD AND PARTNERS,N/A,408398,N/A,N/A,10-JAN-17,2695561,41.05,0.00,Healthcare Services - Contraceptive Implants,N/A
Derby City Council,People Services - Adults and Health,Public Health,Public Health,DR PA WOOD AND PARTNERS,N/A,408398,N/A,N/A,10-JAN-17,2695561,487.80,0.00,Healthcare Services - Intra-uterine Contraception Devices and Intra-uterine Syst,N/A
Derby City Council,Communities & Place,Economic Regeneration,"Regeneration, Property & Housing",EMB,N/A,184370,N/A,N/A,10-JAN-17,2699719,575.00,0.00,Economic Regeneration,N/A
Derby City Council,Communities & Place,Traffic & Transportation,"Strategic Partnerships, Planning & Streetpride",EQUITA LTD,N/A,11254,N/A,N/A,10-JAN-17,2695129,-5758.59,0.00,Parking Services,N/A
Derby City Council,Communities & Place,Traffic & Transportation,"Strategic Partnerships, Planning & Streetpride",EQUITA LTD,N/A,11254,N/A,N/A,10-JAN-17,2695129,5758.59,0.00,Parking Services,N/A
Derby City Council,Communities & Place,Traffic & Transportation,"Strategic Partnerships, Planning & Streetpride",EREWASH COMMUNITY TRANSPORT,N/A,118449,N/A,N/A,10-JAN-17,2695939,1240.56,0.00,Passenger Transport Procurement & Operations,N/A
Derby City Council,People Services - Children & Young People,Learning & Inclusion,Non-Schools,ESPO,N/A,123428,N/A,N/A,10-JAN-17,2631873,1350.00,0.00,Programme Delivery,Domestic Appliances and Supplies and Con
Derby City Council,People Services - Children & Young People,CYP Obsolete,CYP Obsolete,EVERSHEDS LLP,N/A,1510,N/A,N/A,10-JAN-17,2694092,2073.00,0.00,General Central Premises Budget,N/A
Derby City Council,People Services - Children & Young People,CYP Obsolete,CYP Obsolete,EVERSHEDS LLP,N/A,18333,N/A,N/A,10-JAN-17,2694094,3282.00,0.00,General Central Premises Budget,N/A
Derby City Council,Communities & Place,Libraries,"Leisure, Culture and Tourism",EXPERIAN LTD,N/A,92738,N/A,N/A,10-JAN-17,2694618,719.28,0.00,City Book Fund,Published Products
Derby City Council,Communities & Place,Libraries,"Leisure, Culture and Tourism",EXPERIAN LTD,N/A,92738,N/A,N/A,10-JAN-17,2694618,-719.28,0.00,City Book Fund,Published Products
Derby City Council,Communities & Place,Libraries,"Leisure, Culture and Tourism",EXPERIAN LTD,N/A,92738,N/A,N/A,10-JAN-17,2694618,666.00,0.00,City Book Fund,Published Products
Derby City Council,Communities & Place,Libraries,"Leisure, Culture and Tourism",EXPERIAN LTD,N/A,92738,N/A,N/A,10-JAN-17,2694618,53.28,0.00,City Book Fund,Published Products
Derby City Council,People Services - Adults and Health,Public Health,Public Health,EXPERIAN LTD,N/A,92738,N/A,N/A,10-JAN-17,2693598,5000.00,0.00,Staff costs & overheads,Published Products
Derby City Council,Organisation & Governance,Business Support,Strategic Services and Organisational Development,FINANCIAL DATA MANAGEMENT LTD,N/A,1559,N/A,N/A,10-JAN-17,2695296,1791.00,0.00,DMC - Document Management Centre,N/A
Derby City Council,Communities & Place,Culture & Business Development,"Leisure, Culture and Tourism",FOURBLOKES,N/A,1443,N/A,N/A,10-JAN-17,2696275,10680.00,0.00,Assembly Rooms - Ticket Agency Holding A/c,N/A
Derby City Council,Communities & Place,Culture & Business Development,"Leisure, Culture and Tourism",FOURBLOKES,N/A,1443,N/A,N/A,10-JAN-17,2696275,-80.00,0.00,Derby Live - Head Quarters,N/A
Derby City Council,Communities & Place,Culture & Business Development,"Leisure, Culture and Tourism",FOURBLOKES,N/A,1443,N/A,N/A,10-JAN-17,2696275,-3633.58,0.00,Derby Live - Presented,N/A
Derby City Council,Communities & Place,Building Consultancy and Emergency Planning,"Communities, Environment & Regulatory Services",GTM GO TRAFFIC MANAGEMENT,N/A,200402,N/A,N/A,10-JAN-17,2644436,838.00,0.00,Building Control,Defense and Law Enforcement and Security
Derby City Council,People Services - Children & Young People,Non Delegated Schools Budget,Schools Block,HALSTEAD RICHARD DE CLARE,N/A,470896,N/A,N/A,10-JAN-17,2695550,810.00,0.00,Pupil Premium Grant,N/A
Derby City Council,People Services - Adults and Health,Public Health,Public Health,HAVEN MEDICAL CENTRE,N/A,408400,N/A,N/A,10-JAN-17,2695491,752.00,0.00,Healthcare Services - Health Checks,N/A
Derby City Council,Communities & Place,Strategic Asset Management and Estates,"Regeneration, Property & Housing",HAYS SPECIALIST RECRUITMENT LTD,N/A,1852,N/A,N/A,10-JAN-17,2679621,913.50,0.00,Valuation,N/A
Derby City Council,Communities & Place,Strategic Asset Management and Estates,"Regeneration, Property & Housing",HAYS SPECIALIST RECRUITMENT LTD,N/A,1852,N/A,N/A,10-JAN-17,2679623,1557.00,0.00,Valuation,N/A
Derby City Council,Communities & Place,Strategic Asset Management and Estates,"Regeneration, Property & Housing",HAYS SPECIALIST RECRUITMENT LTD,N/A,1852,N/A,N/A,10-JAN-17,2695086,682.49,0.00,Valuation,N/A
Derby City Council,Communities & Place,Strategic Asset Management and Estates,"Regeneration, Property & Housing",HAYS SPECIALIST RECRUITMENT LTD,N/A,1852,N/A,N/A,10-JAN-17,2695087,1087.70,0.00,Valuation,N/A
Derby City Council,Communities & Place,Property Design & Maintenance,"Regeneration, Property & Housing",HAYS SPECIALIST RECRUITMENT LTD,N/A,188508,N/A,N/A,10-JAN-17,2699855,1440.70,0.00,Property Maintenance,N/A
Derby City Council,Communities & Place,Property Design & Maintenance,"Regeneration, Property & Housing",HAYS SPECIALIST RECRUITMENT LTD,N/A,188508,N/A,N/A,10-JAN-17,2699856,1438.90,0.00,Property Maintenance,N/A
Derby City Council,Communities & Place,Property Design & Maintenance,"Regeneration, Property & Housing",HAYS SPECIALIST RECRUITMENT LTD,N/A,188508,N/A,N/A,10-JAN-17,2699868,5982.90,0.00,Property Maintenance,N/A
Derby City Council,Communities & Place,Property Design & Maintenance,"Regeneration, Property & Housing",HAYS SPECIALIST RECRUITMENT LTD,N/A,188508,N/A,N/A,10-JAN-17,2699873,1438.90,0.00,Property Maintenance,N/A
Derby City Council,Communities & Place,Property Design & Maintenance,"Regeneration, Property & Housing",HAYS SPECIALIST RECRUITMENT LTD,N/A,188508,N/A,N/A,10-JAN-17,2699890,863.34,0.00,Property Maintenance,N/A
Derby City Council,Communities & Place,Property Design & Maintenance,"Regeneration, Property & Housing",HAYS SPECIALIST RECRUITMENT LTD,N/A,188508,N/A,N/A,10-JAN-17,2699891,1438.90,0.00,Property Maintenance,N/A
Derby City Council,Communities & Place,Property Design & Maintenance,"Regeneration, Property & Housing",HAYS SPECIALIST RECRUITMENT LTD,N/A,188508,N/A,N/A,10-JAN-17,2699894,1394.24,0.00,Property Maintenance,N/A
Derby City Council,Communities & Place,Property Design & Maintenance,"Regeneration, Property & Housing",HAYS SPECIALIST RECRUITMENT LTD,N/A,188508,N/A,N/A,10-JAN-17,2699912,1442.50,0.00,Property Maintenance,N/A
Derby City Council,Communities & Place,Property Design & Maintenance,"Regeneration, Property & Housing",HAYS SPECIALIST RECRUITMENT LTD,N/A,188508,N/A,N/A,10-JAN-17,2699931,1438.90,0.00,Property Maintenance,N/A
Derby City Council,Communities & Place,Property Design & Maintenance,"Regeneration, Property & Housing",HAYS SPECIALIST RECRUITMENT LTD,N/A,188508,N/A,N/A,10-JAN-17,2699932,1376.78,0.00,Property Maintenance,N/A
Derby City Council,Communities & Place,Property Design & Maintenance,"Regeneration, Property & Housing",HAYS SPECIALIST RECRUITMENT LTD,N/A,188508,N/A,N/A,10-JAN-17,2699946,1222.80,0.00,Property Maintenance,N/A
Derby City Council,Communities & Place,Property Design & Maintenance,"Regeneration, Property & Housing",HAYS SPECIALIST RECRUITMENT LTD,N/A,188508,N/A,N/A,10-JAN-17,2699948,1204.37,0.00,Property Maintenance,N/A
Derby City Council,Communities & Place,Property Design & Maintenance,"Regeneration, Property & Housing",HAYS SPECIALIST RECRUITMENT LTD,N/A,188508,N/A,N/A,10-JAN-17,2699949,781.20,0.00,Property Maintenance,N/A
Derby City Council,Communities & Place,Property Design & Maintenance,"Regeneration, Property & Housing",HAYS SPECIALIST RECRUITMENT LTD,N/A,188508,N/A,N/A,10-JAN-17,2699966,1204.35,0.00,Property Maintenance,N/A
Derby City Council,Communities & Place,Property Design & Maintenance,"Regeneration, Property & Housing",HAYS SPECIALIST RECRUITMENT LTD,N/A,188508,N/A,N/A,10-JAN-17,2699967,1376.78,0.00,Property Maintenance,N/A
Derby City Council,Communities & Place,Property Design & Maintenance,"Regeneration, Property & Housing",HAYS SPECIALIST RECRUITMENT LTD,N/A,188508,N/A,N/A,10-JAN-17,2699968,1204.37,0.00,Property Maintenance,N/A
Derby City Council,Communities & Place,Property Design & Maintenance,"Regeneration, Property & Housing",HAYS SPECIALIST RECRUITMENT LTD,N/A,188508,N/A,N/A,10-JAN-17,2699986,1221.45,0.00,Property Maintenance,N/A
Derby City Council,Communities & Place,Property Design & Maintenance,"Regeneration, Property & Housing",HIGHFIELD JOINERY AND BUILD SERVS LTD,N/A,215391,N/A,N/A,10-JAN-17,2699869,960.00,0.00,Repair & Maintenance Works,Building and Construction Machinery and
Derby City Council,Communities & Place,Property Design & Maintenance,"Regeneration, Property & Housing",HIGHFIELD JOINERY AND BUILD SERVS LTD,N/A,215391,N/A,N/A,10-JAN-17,2699909,1602.00,0.00,Rechargeable Work,Building and Construction Machinery and
Derby City Council,People Services - Adults and Health,Physical Support,Direct Services,HOLDSWORTH FOOD SERVICE,N/A,1913,N/A,N/A,10-JAN-17,2695284,451.86,0.00,Arboretum House,Food Beverage and Tobacco Products
Derby City Council,People Services - Adults and Health,Physical Support,Direct Services,HOLDSWORTH FOOD SERVICE,N/A,1913,N/A,N/A,10-JAN-17,2695284,163.11,0.00,Arboretum House,Food Beverage and Tobacco Products
Derby City Council,People Services - Adults and Health,Social Care Activities,Direct Services,HOLDSWORTH FOOD SERVICE,N/A,1913,N/A,N/A,10-JAN-17,2695288,413.36,0.00,Bramblebrook House,Food Beverage and Tobacco Products
Derby City Council,People Services - Adults and Health,Social Care Activities,Direct Services,HOLDSWORTH FOOD SERVICE,N/A,1913,N/A,N/A,10-JAN-17,2695288,121.86,0.00,Bramblebrook House,Food Beverage and Tobacco Products
Derby City Council,People Services - Adults and Health,Social Care Activities,Direct Services,HOLDSWORTH FOOD SERVICE,N/A,1913,N/A,N/A,10-JAN-17,2695294,721.93,0.00,Bramblebrook House,Food Beverage and Tobacco Products
Derby City Council,People Services - Adults and Health,Social Care Activities,Direct Services,HOLDSWORTH FOOD SERVICE,N/A,1913,N/A,N/A,10-JAN-17,2695294,229.42,0.00,Bramblebrook House,Food Beverage and Tobacco Products
Derby City Council,People Services - Adults and Health,Social Care Activities,Direct Services,HOLDSWORTH FOOD SERVICE,N/A,1913,N/A,N/A,10-JAN-17,2695301,878.41,0.00,Coleridge House,Food Beverage and Tobacco Products
Derby City Council,People Services - Adults and Health,Social Care Activities,Direct Services,HOLDSWORTH FOOD SERVICE,N/A,1913,N/A,N/A,10-JAN-17,2695301,233.30,0.00,Coleridge House,Food Beverage and Tobacco Products
Derby City Council,People Services - Adults and Health,Social Care Activities,Direct Services,HOLDSWORTH FOOD SERVICE,N/A,1913,N/A,N/A,10-JAN-17,2695290,468.00,0.00,Raynesway View,Food Beverage and Tobacco Products
Derby City Council,People Services - Adults and Health,Social Care Activities,Direct Services,HOLDSWORTH FOOD SERVICE,N/A,1913,N/A,N/A,10-JAN-17,2695290,85.02,0.00,Raynesway View,Food Beverage and Tobacco Products
Derby City Council,People Services - Adults and Health,Social Care Activities,Direct Services,HOLDSWORTH FOOD SERVICE,N/A,1913,N/A,N/A,10-JAN-17,2695295,709.40,0.00,Raynesway View,Food Beverage and Tobacco Products
Derby City Council,People Services - Adults and Health,Social Care Activities,Direct Services,HOLDSWORTH FOOD SERVICE,N/A,1913,N/A,N/A,10-JAN-17,2695295,225.11,0.00,Raynesway View,Food Beverage and Tobacco Products
Derby City Council,People Services - Adults and Health,Social Care Activities,Home First,HOLDSWORTH FOOD SERVICE,N/A,1913,N/A,N/A,10-JAN-17,2694920,558.20,0.00,Home First: Perth House,Food Beverage and Tobacco Products
Derby City Council,People Services - Adults and Health,Social Care Activities,Home First,HOLDSWORTH FOOD SERVICE,N/A,1913,N/A,N/A,10-JAN-17,2694920,115.91,0.00,Home First: Perth House,Food Beverage and Tobacco Products
Derby City Council,People Services - Adults and Health,Social Care Activities,Home First,HOLDSWORTH FOOD SERVICE,N/A,1913,N/A,N/A,10-JAN-17,2694920,30.00,0.00,Home First: Perth House,Food Beverage and Tobacco Products
Derby City Council,People Services - Adults and Health,Public Health,Public Health,HOLLYBROOK MEDICAL CENTRE,N/A,406409,N/A,N/A,10-JAN-17,2695575,255.80,0.00,Healthcare Services - Contraceptive Implants,N/A
Derby City Council,People Services - Adults and Health,Public Health,Public Health,HOLLYBROOK MEDICAL CENTRE,N/A,406409,N/A,N/A,10-JAN-17,2695575,246.30,0.00,Healthcare Services - Contraceptive Implants,N/A
Derby City Council,People Services - Adults and Health,Public Health,Public Health,HOLLYBROOK MEDICAL CENTRE,N/A,406409,N/A,N/A,10-JAN-17,2695575,191.85,0.00,Healthcare Services - Contraceptive Implants,N/A
Derby City Council,People Services - Adults and Health,Public Health,Public Health,HOLLYBROOK MEDICAL CENTRE,N/A,406409,N/A,N/A,10-JAN-17,2695575,127.90,0.00,Healthcare Services - Contraceptive Implants,N/A
Derby City Council,People Services - Adults and Health,Public Health,Public Health,HOLLYBROOK MEDICAL CENTRE,N/A,406409,N/A,N/A,10-JAN-17,2695575,164.20,0.00,Healthcare Services - Contraceptive Implants,N/A
Derby City Council,People Services - Adults and Health,Public Health,Public Health,HOLLYBROOK MEDICAL CENTRE,N/A,406409,N/A,N/A,10-JAN-17,2695575,511.60,0.00,Healthcare Services - Contraceptive Implants,N/A
Derby City Council,People Services - Adults and Health,Public Health,Public Health,HOLLYBROOK MEDICAL CENTRE,N/A,406409,N/A,N/A,10-JAN-17,2695575,81.30,0.00,Healthcare Services - Intra-uterine Contraception Devices and Intra-uterine Syst,N/A
Derby City Council,People Services - Adults and Health,Public Health,Public Health,HOLLYBROOK MEDICAL CENTRE,N/A,406409,N/A,N/A,10-JAN-17,2695575,487.80,0.00,Healthcare Services - Intra-uterine Contraception Devices and Intra-uterine Syst,N/A
Derby City Council,People Services - Adults and Health,Public Health,Public Health,HOLLYBROOK MEDICAL CENTRE,N/A,406409,N/A,N/A,10-JAN-17,2695575,162.60,0.00,Healthcare Services - Intra-uterine Contraception Devices and Intra-uterine Syst,N/A
Derby City Council,People Services - Adults and Health,Public Health,Public Health,HOLLYBROOK MEDICAL CENTRE,N/A,406409,N/A,N/A,10-JAN-17,2695575,569.10,0.00,Healthcare Services - Intra-uterine Contraception Devices and Intra-uterine Syst,N/A
Derby City Council,People Services - Adults and Health,Physical Support,Community Support,HOME FROM HOME CARE SERVICES,N/A,388466,N/A,N/A,10-JAN-17,2697868,632.36,0.00,West Adults (under 65) Physical - DP/Mgd,N/A
Derby City Council,People Services - Adults and Health,Physical Support,Community Support,HOME FROM HOME CARE SERVICES,N/A,388466,N/A,N/A,10-JAN-17,2697869,1780.80,0.00,South Adults (under 65) Physical - DP/Mgd,N/A
Derby City Council,People Services - Adults and Health,Physical Support,Community Support,HOME FROM HOME CARE SERVICES,N/A,388466,N/A,N/A,10-JAN-17,2697869,2744.32,0.00,South Adults (under 65) Physical - DP/Mgd,N/A
Derby City Council,People Services - Adults and Health,Physical Support,Community Support,HOME FROM HOME CARE SERVICES,N/A,388466,N/A,N/A,10-JAN-17,2697565,511.80,0.00,Central OP (over 65) Physical - DP/Mgd,N/A
Derby City Council,People Services - Adults and Health,Physical Support,Community Support,HOME FROM HOME CARE SERVICES,N/A,388466,N/A,N/A,10-JAN-17,2697870,864.08,0.00,Central OP (over 65) Physical - DP/Mgd,N/A
Derby City Council,People Services - Adults and Health,Physical Support,Community Support,HOME FROM HOME CARE SERVICES,N/A,388466,N/A,N/A,10-JAN-17,2697937,1000.76,0.00,Central OP (over 65) Physical - DP/Mgd,N/A
Derby City Council,People Services - Adults and Health,Physical Support,Community Support,HOME FROM HOME CARE SERVICES,N/A,388466,N/A,N/A,10-JAN-17,2697569,511.12,0.00,West OP (over 65) Physical - DP/Mgd,N/A
Derby City Council,People Services - Adults and Health,Physical Support,Community Support,HOME FROM HOME CARE SERVICES,N/A,388466,N/A,N/A,10-JAN-17,2697570,543.40,0.00,West OP (over 65) Physical - DP/Mgd,N/A
Derby City Council,People Services - Adults and Health,Physical Support,Community Support,HOME FROM HOME CARE SERVICES,N/A,388466,N/A,N/A,10-JAN-17,2697571,648.05,0.00,West OP (over 65) Physical - DP/Mgd,N/A
Derby City Council,People Services - Adults and Health,Physical Support,Community Support,HOME FROM HOME CARE SERVICES,N/A,388466,N/A,N/A,10-JAN-17,2697572,1054.20,0.00,West OP (over 65) Physical - DP/Mgd,N/A
Derby City Council,People Services - Adults and Health,Physical Support,Community Support,HOME FROM HOME CARE SERVICES,N/A,388466,N/A,N/A,10-JAN-17,2697574,915.08,0.00,West OP (over 65) Physical - DP/Mgd,N/A
Derby City Council,People Services - Adults and Health,Physical Support,Community Support,HOME FROM HOME CARE SERVICES,N/A,388466,N/A,N/A,10-JAN-17,2697707,555.52,0.00,West OP (over 65) Physical - DP/Mgd,N/A
Derby City Council,People Services - Adults and Health,Physical Support,Community Support,HOME FROM HOME CARE SERVICES,N/A,388466,N/A,N/A,10-JAN-17,2697708,570.12,0.00,West OP (over 65) Physical - DP/Mgd,N/A
Derby City Council,People Services - Adults and Health,Physical Support,Community Support,HOME FROM HOME CARE SERVICES,N/A,388466,N/A,N/A,10-JAN-17,2697765,1087.80,0.00,West OP (over 65) Physical - DP/Mgd,N/A
Derby City Council,People Services - Adults and Health,Physical Support,Community Support,HOME FROM HOME CARE SERVICES,N/A,388466,N/A,N/A,10-JAN-17,2697765,662.36,0.00,West OP (over 65) Physical - DP/Mgd,N/A
Derby City Council,People Services - Adults and Health,Physical Support,Community Support,HOME FROM HOME CARE SERVICES,N/A,388466,N/A,N/A,10-JAN-17,2697767,720.00,0.00,West OP (over 65) Physical - DP/Mgd,N/A
Derby City Council,People Services - Adults and Health,Physical Support,Community Support,HOME FROM HOME CARE SERVICES,N/A,388466,N/A,N/A,10-JAN-17,2697821,655.80,0.00,West OP (over 65) Physical - DP/Mgd,N/A
Derby City Council,People Services - Adults and Health,Physical Support,Community Support,HOME FROM HOME CARE SERVICES,N/A,388466,N/A,N/A,10-JAN-17,2697821,709.24,0.00,West OP (over 65) Physical - DP/Mgd,N/A
Derby City Council,People Services - Adults and Health,Physical Support,Community Support,HOME FROM HOME CARE SERVICES,N/A,388466,N/A,N/A,10-JAN-17,2697874,998.80,0.00,West OP (over 65) Physical - DP/Mgd,N/A
Derby City Council,People Services - Adults and Health,Physical Support,Community Support,HOME FROM HOME CARE SERVICES,N/A,388466,N/A,N/A,10-JAN-17,2697942,583.48,0.00,West OP (over 65) Physical - DP/Mgd,N/A
Derby City Council,People Services - Adults and Health,Physical Support,Community Support,HOME FROM HOME CARE SERVICES,N/A,388466,N/A,N/A,10-JAN-17,2697946,831.76,0.00,West OP (over 65) Physical - DP/Mgd,N/A
Derby City Council,People Services - Adults and Health,Physical Support,Community Support,HOME FROM HOME CARE SERVICES,N/A,388466,N/A,N/A,10-JAN-17,2698001,560.16,0.00,West OP (over 65) Physical - DP/Mgd,N/A
Derby City Council,People Services - Adults and Health,Physical Support,Community Support,I CARE GB LTD,N/A,471255,N/A,N/A,10-JAN-17,2697656,431.28,0.00,Central Adults (under 65) Physical - DP/Mgd,N/A
Derby City Council,People Services - Adults and Health,Physical Support,Community Support,I CARE GB LTD,N/A,471255,N/A,N/A,10-JAN-17,2697656,551.52,0.00,Central Adults (under 65) Physical - DP/Mgd,N/A
Derby City Council,People Services - Adults and Health,Physical Support,Community Support,I CARE GB LTD,N/A,471255,N/A,N/A,10-JAN-17,2697656,-0.03,0.00,Central Adults (under 65) Physical - DP/Mgd,N/A
Derby City Council,People Services - Adults and Health,Physical Support,Community Support,I CARE GB LTD,N/A,471255,N/A,N/A,10-JAN-17,2697777,538.04,0.00,Central Adults (under 65) Physical - DP/Mgd,N/A
Derby City Council,People Services - Adults and Health,Physical Support,Community Support,I CARE GB LTD,N/A,471255,N/A,N/A,10-JAN-17,2697777,538.04,0.00,Central Adults (under 65) Physical - DP/Mgd,N/A
Derby City Council,People Services - Adults and Health,Physical Support,Community Support,I CARE GB LTD,N/A,471255,N/A,N/A,10-JAN-17,2697529,915.08,0.00,Central OP (over 65) Physical - DP/Mgd,N/A
Derby City Council,People Services - Adults and Health,Physical Support,Community Support,I CARE GB LTD,N/A,471255,N/A,N/A,10-JAN-17,2697529,915.08,0.00,Central OP (over 65) Physical - DP/Mgd,N/A
Derby City Council,People Services - Adults and Health,Physical Support,Community Support,I CARE GB LTD,N/A,471255,N/A,N/A,10-JAN-17,2697655,628.76,0.00,Central OP (over 65) Physical - DP/Mgd,N/A
Derby City Council,People Services - Adults and Health,Physical Support,Community Support,I CARE GB LTD,N/A,471255,N/A,N/A,10-JAN-17,2697781,863.00,0.00,Central OP (over 65) Physical - DP/Mgd,N/A
Derby City Council,People Services - Adults and Health,Physical Support,Community Support,I CARE GB LTD,N/A,471255,N/A,N/A,10-JAN-17,2697781,972.80,0.00,Central OP (over 65) Physical - DP/Mgd,N/A
Derby City Council,People Services - Adults and Health,Physical Support,Community Support,I CARE GB LTD,N/A,471255,N/A,N/A,10-JAN-17,2697832,614.72,0.00,Central OP (over 65) Physical - DP/Mgd,N/A
Derby City Council,People Services - Adults and Health,Physical Support,Community Support,I CARE GB LTD,N/A,471255,N/A,N/A,10-JAN-17,2697887,895.04,0.00,Central OP (over 65) Physical - DP/Mgd,N/A
Derby City Council,People Services - Adults and Health,Physical Support,Community Support,I CARE GB LTD,N/A,471255,N/A,N/A,10-JAN-17,2697887,895.04,0.00,Central OP (over 65) Physical - DP/Mgd,N/A
Derby City Council,People Services - Adults and Health,Physical Support,Community Support,I CARE GB LTD,N/A,471255,N/A,N/A,10-JAN-17,2697953,915.08,0.00,Central OP (over 65) Physical - DP/Mgd,N/A
Derby City Council,People Services - Adults and Health,Mental Health Support,Mental Health,I CARE GB LTD,N/A,471255,N/A,N/A,10-JAN-17,2697654,641.44,0.00,Central/East MH Support OP (over 65) - DP/Mgd,N/A
Derby City Council,Communities & Place,Highways & Engineering,"Strategic Partnerships, Planning & Streetpride",INSTARMAC GROUP PLC,N/A,2326,N/A,N/A,10-JAN-17,2694372,1120.00,0.00,Highways Maintenance Works,Electrical systems and Lighting and comp
Derby City Council,Communities & Place,Property Design & Maintenance,"Regeneration, Property & Housing",J TOMLINSON LTD,N/A,188082,N/A,N/A,10-JAN-17,2699876,1931.50,0.00,Repair & Maintenance Works,Building and Construction and Maintenanc
Derby City Council,Organisation & Governance,Facilities Management,Strategic Services and Organisational Development,K H PACKAGING AND DISPOSABLES LTD,N/A,2247,N/A,N/A,10-JAN-17,2669962,578.75,0.00,Cleaning Operating Account,Cleaning Equipment and Supplies
Derby City Council,People Services - Children & Young People,Commissioning,Non-Schools,KATE YOUNG EYC CONSULTANCY,N/A,119707,N/A,N/A,10-JAN-17,2695407,1000.00,0.00,2Yr Old Funding,N/A
Derby City Council,Communities & Place,Property Design & Maintenance,"Regeneration, Property & Housing",KEY ENGINEERING CHESTERFIELD LTD,N/A,480405,N/A,N/A,10-JAN-17,2699947,3931.20,0.00,Repair & Maintenance Works,N/A
Derby City Council,People Services - Children & Young People,Learning & Inclusion,Non-Schools,KIDS,N/A,396403,N/A,N/A,10-JAN-17,2645350,895.00,0.00,SEN Reform Grant,Published Products
Derby City Council,Communities & Place,"Environmental Protection, Licensing, Housing","Communities, Environment & Regulatory Services",KILLGERM CHEMICALS LTD,N/A,113047,N/A,N/A,10-JAN-17,2694855,136.00,0.00,Pest Control,Building and Construction and Maintenanc
Derby City Council,Communities & Place,"Environmental Protection, Licensing, Housing","Communities, Environment & Regulatory Services",KILLGERM CHEMICALS LTD,N/A,113047,N/A,N/A,10-JAN-17,2694855,259.00,0.00,Pest Control,Building and Construction and Maintenanc
Derby City Council,Communities & Place,"Environmental Protection, Licensing, Housing","Communities, Environment & Regulatory Services",KILLGERM CHEMICALS LTD,N/A,113047,N/A,N/A,10-JAN-17,2694855,47.80,0.00,Pest Control,Building and Construction and Maintenanc
Derby City Council,Communities & Place,"Environmental Protection, Licensing, Housing","Communities, Environment & Regulatory Services",KILLGERM CHEMICALS LTD,N/A,113047,N/A,N/A,10-JAN-17,2694855,92.30,0.00,Pest Control,Building and Construction and Maintenanc
Derby City Council,Communities & Place,"Environmental Protection, Licensing, Housing","Communities, Environment & Regulatory Services",KILLGERM CHEMICALS LTD,N/A,113047,N/A,N/A,10-JAN-17,2694855,51.68,0.00,Pest Control,Building and Construction and Maintenanc
Derby City Council,Communities & Place,"Environmental Protection, Licensing, Housing","Communities, Environment & Regulatory Services",KILLGERM CHEMICALS LTD,N/A,113047,N/A,N/A,10-JAN-17,2694855,-88.01,0.00,Pest Control,Building and Construction and Maintenanc
Derby City Council,People Services - Children & Young People,Specialist Services,Non-Schools,LEICESTER CITY COUNCIL,N/A,82799,N/A,N/A,10-JAN-17,2694711,10072.09,0.00,Step Up to Social Work - Lead Authority,Public Utilities and Public Sector Relat
Derby City Council,Organisation & Governance,Legal Services,Governance and Assurance,LEXIS NEXIS UK,N/A,2385,N/A,N/A,10-JAN-17,2694084,637.00,0.00,Corporate Services - Legal,Published Products
Derby City Council,Organisation & Governance,Business Support,Strategic Services and Organisational Development,LIBERTY PRINTERS,N/A,2392,N/A,N/A,10-JAN-17,2695524,1130.00,0.00,DMC - Document Management Centre,Editorial and Design and Graphic and Fin
Derby City Council,Communities & Place,Property Design & Maintenance,"Regeneration, Property & Housing",LIFT AND ENGINEERING SERVICES LIMITED,N/A,215432,N/A,N/A,10-JAN-17,2699859,1585.90,0.00,Repair & Maintenance Works,N/A
Derby City Council,Communities & Place,Property Design & Maintenance,"Regeneration, Property & Housing",LIFT AND ENGINEERING SERVICES LIMITED,N/A,215432,N/A,N/A,10-JAN-17,2699917,587.52,0.00,Repair & Maintenance Works,N/A
Derby City Council,Communities & Place,Property Design & Maintenance,"Regeneration, Property & Housing",LIFT AND ENGINEERING SERVICES LIMITED,N/A,215432,N/A,N/A,10-JAN-17,2699933,600.00,0.00,Repair & Maintenance Works,N/A
Derby City Council,Communities & Place,Property Design & Maintenance,"Regeneration, Property & Housing",LIFT AND ENGINEERING SERVICES LIMITED,N/A,215432,N/A,N/A,10-JAN-17,2699989,970.00,0.00,Repair & Maintenance Works,N/A
Derby City Council,Communities & Place,Property Design & Maintenance,"Regeneration, Property & Housing",LIFT AND ENGINEERING SERVICES LIMITED,N/A,215432,N/A,N/A,10-JAN-17,2699887,550.00,0.00,Leesbrook Academy,N/A
Derby City Council,Communities & Place,Leisure,"Leisure, Culture and Tourism",MAGFERN RECYCLING LTD,N/A,2558,N/A,N/A,10-JAN-17,2694971,420.00,0.00,Derby Multi Use Sports Arena,Environmental Services
Derby City Council,Communities & Place,Leisure,"Leisure, Culture and Tourism",MAGFERN RECYCLING LTD,N/A,2558,N/A,N/A,10-JAN-17,2695133,420.00,0.00,Derby Multi Use Sports Arena,Environmental Services
Derby City Council,Communities & Place,Property Design & Maintenance,"Regeneration, Property & Housing",MAKERS CONTRUCTION LTD,N/A,188114,N/A,N/A,10-JAN-17,2699911,750.00,0.00,Repair & Maintenance Works,Building and Construction Machinery and
Derby City Council,Communities & Place,Property Design & Maintenance,"Regeneration, Property & Housing",MANOR ELECTRICAL SERVICES,N/A,188116,N/A,N/A,10-JAN-17,2699899,468.60,0.00,Repair & Maintenance Works,Laboratory and Measuring and Observing a
Derby City Council,Communities & Place,Leisure,"Leisure, Culture and Tourism",MARKETING DERBY,N/A,7896,N/A,N/A,10-JAN-17,2694979,600.00,0.00,Derby Multi Use Sports Arena,Printing and Photographic and Audio and
Derby City Council,Communities & Place,Leisure,"Leisure, Culture and Tourism",MARKETING DERBY,N/A,7896,N/A,N/A,10-JAN-17,2694979,-100.00,0.00,Derby Multi Use Sports Arena,Printing and Photographic and Audio and
Derby City Council,People Services - Children & Young People,Commissioning - Schools Block,Schools Block,MARY HARE SCHOOL,N/A,2435,N/A,N/A,10-JAN-17,2694080,10278.00,0.00,Out of Authority Education Placements,Education and Training Services
Derby City Council,Organisation & Governance,Finance,Finance,MATRIX SCM LTD,N/A,123688,N/A,N/A,10-JAN-17,2692936,142968.68,0.00,Temporary Workers Control A/C,N/A
Derby City Council,Organisation & Governance,Finance,Finance,MATRIX SCM LTD,N/A,123688,N/A,N/A,10-JAN-17,2692224,116109.95,0.00,Temporary Workers Control A/C,N/A
Derby City Council,Organisation & Governance,Finance,Finance,MATRIX SCM LTD,N/A,123688,N/A,N/A,10-JAN-17,2696277,47880.59,0.00,Temporary Workers Control A/C,N/A
Derby City Council,People Services - Adults and Health,Integrated Commissioning,Commissioning,MEDEQUIP ASSISTIVE TECH LTD,N/A,117887,N/A,N/A,10-JAN-17,2694596,110075.92,0.00,DICES,Medical Equipment and Accessories and Su
Derby City Council,People Services - Adults and Health,Integrated Commissioning,Commissioning,MEDEQUIP ASSISTIVE TECH LTD,N/A,117887,N/A,N/A,10-JAN-17,2694596,23125.97,0.00,DICES,Medical Equipment and Accessories and Su
Derby City Council,People Services - Adults and Health,Social Care Activities,Mental Health,MEDEQUIP ASSISTIVE TECH LTD,N/A,117887,N/A,N/A,10-JAN-17,2694596,33.00,0.00,Adult Workforce Learning and Development,Medical Equipment and Accessories and Su
Derby City Council,People Services - Children & Young People,Specialist Services,Non-Schools,MEDEQUIP ASSISTIVE TECH LTD,N/A,117887,N/A,N/A,10-JAN-17,2694596,-3384.06,0.00,Disabled Children Equipment,Medical Equipment and Accessories and Su
Derby City Council,People Services - Children & Young People,Learning & Inclusion - Schools Block,Schools Block,MEDEQUIP ASSISTIVE TECH LTD,N/A,117887,N/A,N/A,10-JAN-17,2694596,4576.20,0.00,Specialiast Support Teaching Services (SSTS),Medical Equipment and Accessories and Su
Derby City Council,People Services - Adults and Health,Sensory Support,Transitions and Ordinary Lives,MEDEQUIP ASSISTIVE TECH LTD,N/A,117887,N/A,N/A,10-JAN-17,2694596,869.54,0.00,Technical Aids,Medical Equipment and Accessories and Su
Derby City Council,Communities & Place,Property Design & Maintenance,"Regeneration, Property & Housing",MIDLAND COUNTIES HEATING SERVICES,N/A,188123,N/A,N/A,10-JAN-17,2699930,1041.00,0.00,Repair & Maintenance Works,Building and Construction Machinery and
Derby City Council,Communities & Place,Property Design & Maintenance,"Regeneration, Property & Housing",MIDLAND COUNTIES HEATING SERVICES,N/A,188123,N/A,N/A,10-JAN-17,2699963,589.48,0.00,Repair & Maintenance Works,Building and Construction Machinery and
Derby City Council,Communities & Place,Property Design & Maintenance,"Regeneration, Property & Housing",MIDLAND COUNTIES HEATING SERVICES,N/A,188123,N/A,N/A,10-JAN-17,2699942,610.48,0.00,Whitecross Nursery,Building and Construction Machinery and
Derby City Council,Communities & Place,Property Design & Maintenance,"Regeneration, Property & Housing",MIDLAND COUNTIES HEATING SERVICES,N/A,188123,N/A,N/A,10-JAN-17,2699961,1311.47,0.00,St Andrews School,Building and Construction Machinery and
Derby City Council,People Services - Children & Young People,Non Delegated Schools Budget,Schools Block,MINSTHORPE ACADEMY TRUST,N/A,482399,N/A,N/A,10-JAN-17,2695548,2100.00,0.00,Pupil Premium Grant,N/A
Derby City Council,Communities & Place,Property Design & Maintenance,"Regeneration, Property & Housing",MITIE TECHNICAL FACILITIES MANAGEMENT LTD,N/A,188130,N/A,N/A,10-JAN-17,2699903,681.35,0.00,Repair & Maintenance Works,Building and Construction Machinery and
Derby City Council,Communities & Place,Property Design & Maintenance,"Regeneration, Property & Housing",MITIE TECHNICAL FACILITIES MANAGEMENT LTD,N/A,188130,N/A,N/A,10-JAN-17,2699908,3161.41,0.00,Repair & Maintenance Works,Building and Construction Machinery and
Derby City Council,Communities & Place,Property Design & Maintenance,"Regeneration, Property & Housing",MITIE TECHNICAL FACILITIES MANAGEMENT LTD,N/A,188130,N/A,N/A,10-JAN-17,2699927,541.78,0.00,Repair & Maintenance Works,Building and Construction Machinery and
Derby City Council,Communities & Place,Property Design & Maintenance,"Regeneration, Property & Housing",MITIE TECHNICAL FACILITIES MANAGEMENT LTD,N/A,188130,N/A,N/A,10-JAN-17,2699957,632.40,0.00,Repair & Maintenance Works,Building and Construction Machinery and
Derby City Council,Communities & Place,Property Design & Maintenance,"Regeneration, Property & Housing",MITIE TECHNICAL FACILITIES MANAGEMENT LTD,N/A,188130,N/A,N/A,10-JAN-17,2699983,1122.13,0.00,Repair & Maintenance Works,Building and Construction Machinery and
Derby City Council,Communities & Place,"Occupational Health, Safety, Markets & Bereavement Services","Communities, Environment & Regulatory Services",MUSGRAVE GENERATORS LTD,N/A,66192,N/A,N/A,10-JAN-17,2628259,725.30,0.00,Crematorium,Power Generation and Distribution Machin
Derby City Council,Communities & Place,Culture & Business Development,"Leisure, Culture and Tourism",NATIONAL EXPRESS LTD,N/A,3493,N/A,N/A,10-JAN-17,2695536,711.36,0.00,Derby Live - Sales and Information Centre,N/A
Derby City Council,People Services - Adults and Health,Physical Support,Community Support,NATIONWIDE CARE SERVICES,N/A,471122,N/A,N/A,10-JAN-17,2697526,798.46,0.00,Central OP (over 65) Physical - DP/Mgd,Healthcare Services
Derby City Council,People Services - Adults and Health,Physical Support,Community Support,NATIONWIDE CARE SERVICES,N/A,471122,N/A,N/A,10-JAN-17,2697526,798.46,0.00,Central OP (over 65) Physical - DP/Mgd,Healthcare Services
Derby City Council,People Services - Adults and Health,Physical Support,Community Support,NATIONWIDE CARE SERVICES,N/A,471122,N/A,N/A,10-JAN-17,2697526,-3.34,0.00,Central OP (over 65) Physical - DP/Mgd,Healthcare Services
Derby City Council,People Services - Adults and Health,Physical Support,Community Support,NATIONWIDE CARE SERVICES,N/A,471122,N/A,N/A,10-JAN-17,2697526,-3.34,0.00,Central OP (over 65) Physical - DP/Mgd,Healthcare Services
Derby City Council,People Services - Adults and Health,Physical Support,Community Support,NATIONWIDE CARE SERVICES,N/A,471122,N/A,N/A,10-JAN-17,2697578,861.51,0.00,Central OP (over 65) Physical - DP/Mgd,Healthcare Services
Derby City Council,People Services - Adults and Health,Physical Support,Community Support,NATIONWIDE CARE SERVICES,N/A,471122,N/A,N/A,10-JAN-17,2697578,861.51,0.00,Central OP (over 65) Physical - DP/Mgd,Healthcare Services
Derby City Council,People Services - Adults and Health,Physical Support,Community Support,NATIONWIDE CARE SERVICES,N/A,471122,N/A,N/A,10-JAN-17,2697580,326.70,0.00,Central OP (over 65) Physical - DP/Mgd,Healthcare Services
Derby City Council,People Services - Adults and Health,Physical Support,Community Support,NATIONWIDE CARE SERVICES,N/A,471122,N/A,N/A,10-JAN-17,2697580,326.70,0.00,Central OP (over 65) Physical - DP/Mgd,Healthcare Services
Derby City Council,People Services - Adults and Health,Physical Support,Community Support,NATIONWIDE CARE SERVICES,N/A,471122,N/A,N/A,10-JAN-17,2697582,707.98,0.00,Central OP (over 65) Physical - DP/Mgd,Healthcare Services
Derby City Council,People Services - Adults and Health,Physical Support,Community Support,NATIONWIDE CARE SERVICES,N/A,471122,N/A,N/A,10-JAN-17,2697582,707.98,0.00,Central OP (over 65) Physical - DP/Mgd,Healthcare Services
Derby City Council,People Services - Adults and Health,Physical Support,Community Support,NATIONWIDE CARE SERVICES,N/A,471122,N/A,N/A,10-JAN-17,2697583,915.31,0.00,Central OP (over 65) Physical - DP/Mgd,Healthcare Services
Derby City Council,People Services - Adults and Health,Physical Support,Community Support,NATIONWIDE CARE SERVICES,N/A,471122,N/A,N/A,10-JAN-17,2697583,915.31,0.00,Central OP (over 65) Physical - DP/Mgd,Healthcare Services
Derby City Council,People Services - Adults and Health,Physical Support,Community Support,NATIONWIDE CARE SERVICES,N/A,471122,N/A,N/A,10-JAN-17,2697649,782.43,0.00,Central OP (over 65) Physical - DP/Mgd,Healthcare Services
Derby City Council,People Services - Adults and Health,Physical Support,Community Support,NATIONWIDE CARE SERVICES,N/A,471122,N/A,N/A,10-JAN-17,2697649,782.43,0.00,Central OP (over 65) Physical - DP/Mgd,Healthcare Services
Derby City Council,People Services - Adults and Health,Physical Support,Community Support,NATIONWIDE CARE SERVICES,N/A,471122,N/A,N/A,10-JAN-17,2697649,1.96,0.00,Central OP (over 65) Physical - DP/Mgd,Healthcare Services
Derby City Council,People Services - Adults and Health,Physical Support,Community Support,NATIONWIDE CARE SERVICES,N/A,471122,N/A,N/A,10-JAN-17,2697650,969.92,0.00,Central OP (over 65) Physical - DP/Mgd,Healthcare Services
Derby City Council,People Services - Adults and Health,Physical Support,Community Support,NATIONWIDE CARE SERVICES,N/A,471122,N/A,N/A,10-JAN-17,2697652,872.69,0.00,Central OP (over 65) Physical - DP/Mgd,Healthcare Services
Derby City Council,People Services - Adults and Health,Physical Support,Community Support,NATIONWIDE CARE SERVICES,N/A,471122,N/A,N/A,10-JAN-17,2697652,872.69,0.00,Central OP (over 65) Physical - DP/Mgd,Healthcare Services
Derby City Council,People Services - Adults and Health,Physical Support,Community Support,NATIONWIDE CARE SERVICES,N/A,471122,N/A,N/A,10-JAN-17,2697715,503.27,0.00,Central OP (over 65) Physical - DP/Mgd,Healthcare Services
Derby City Council,People Services - Adults and Health,Physical Support,Community Support,NATIONWIDE CARE SERVICES,N/A,471122,N/A,N/A,10-JAN-17,2697716,796.12,0.00,Central OP (over 65) Physical - DP/Mgd,Healthcare Services
Derby City Council,People Services - Adults and Health,Physical Support,Community Support,NATIONWIDE CARE SERVICES,N/A,471122,N/A,N/A,10-JAN-17,2697716,796.12,0.00,Central OP (over 65) Physical - DP/Mgd,Healthcare Services
Derby City Council,People Services - Adults and Health,Physical Support,Community Support,NATIONWIDE CARE SERVICES,N/A,471122,N/A,N/A,10-JAN-17,2697716,-0.42,0.00,Central OP (over 65) Physical - DP/Mgd,Healthcare Services
Derby City Council,People Services - Adults and Health,Physical Support,Community Support,NATIONWIDE CARE SERVICES,N/A,471122,N/A,N/A,10-JAN-17,2697772,-6.68,0.00,Central OP (over 65) Physical - DP/Mgd,Healthcare Services
Derby City Council,People Services - Adults and Health,Physical Support,Community Support,NATIONWIDE CARE SERVICES,N/A,471122,N/A,N/A,10-JAN-17,2697772,742.18,0.00,Central OP (over 65) Physical - DP/Mgd,Healthcare Services
Derby City Council,People Services - Adults and Health,Physical Support,Community Support,NATIONWIDE CARE SERVICES,N/A,471122,N/A,N/A,10-JAN-17,2697775,721.07,0.00,Central OP (over 65) Physical - DP/Mgd,Healthcare Services
Derby City Council,People Services - Adults and Health,Physical Support,Community Support,NATIONWIDE CARE SERVICES,N/A,471122,N/A,N/A,10-JAN-17,2697775,721.07,0.00,Central OP (over 65) Physical - DP/Mgd,Healthcare Services
Derby City Council,People Services - Adults and Health,Physical Support,Community Support,NATIONWIDE CARE SERVICES,N/A,471122,N/A,N/A,10-JAN-17,2697828,316.62,0.00,Central OP (over 65) Physical - DP/Mgd,Healthcare Services
Derby City Council,People Services - Adults and Health,Physical Support,Community Support,NATIONWIDE CARE SERVICES,N/A,471122,N/A,N/A,10-JAN-17,2697828,316.62,0.00,Central OP (over 65) Physical - DP/Mgd,Healthcare Services
Derby City Council,People Services - Children & Young People,Non Delegated Schools Budget,Schools Block,NCC OAK TREE PRIMARY SCHOOL LMS AC,N/A,142330,N/A,N/A,10-JAN-17,2695544,1900.00,0.00,Pupil Premium Grant,N/A
Derby City Council,People Services - Children & Young People,Non Delegated Schools Budget,Schools Block,NOTTS CNTY CNCL DERRYMOUNT SCHOOL,N/A,124779,N/A,N/A,10-JAN-17,2695543,7200.00,0.00,Pupil Premium Grant,N/A
Derby City Council,People Services - Children & Young People,Early Intervention & Integrated Safeguarding,Non-Schools,OFFICE CARE LTD,N/A,4044,N/A,N/A,10-JAN-17,2694696,970.08,0.00,Connexions,Industrial Cleaning Services
Derby City Council,Communities & Place,Property Design & Maintenance,"Regeneration, Property & Housing",OLEARY CONSTRUCTION LTD,N/A,188150,N/A,N/A,10-JAN-17,2699872,1545.00,0.00,Repair & Maintenance Works,Building and Construction and Maintenanc
Derby City Council,Organisation & Governance,Information Systems Support,Digital Services,OPEN TEXT UK LTD,N/A,127033,N/A,N/A,10-JAN-17,2694882,13533.79,0.00,Business Applications,Education and Training Services
Derby City Council,Communities & Place,Regeneration Projects,"Regeneration, Property & Housing",POWERGEN A COMPANY OF E.ON,N/A,4011,N/A,N/A,10-JAN-17,2695216,454.84,0.00,Estates - Kings Chambers,N/A
Derby City Council,Communities & Place,Regeneration Projects,"Regeneration, Property & Housing",POWERGEN A COMPANY OF E.ON,N/A,4011,N/A,N/A,10-JAN-17,2695763,1182.19,0.00,Marble Hall,N/A
Derby City Council,Communities & Place,Traffic & Transportation,"Strategic Partnerships, Planning & Streetpride",PREMIER PRIVATE HIRE TAXIS,N/A,113026,N/A,N/A,10-JAN-17,2695957,1097.25,0.00,Passenger Transport Procurement & Operations,N/A
Derby City Council,Communities & Place,Traffic & Transportation,"Strategic Partnerships, Planning & Streetpride",PREMIER PRIVATE HIRE TAXIS,N/A,113026,N/A,N/A,10-JAN-17,2695971,1046.10,0.00,Passenger Transport Procurement & Operations,N/A
Derby City Council,Communities & Place,Traffic & Transportation,"Strategic Partnerships, Planning & Streetpride",PREMIER PRIVATE HIRE TAXIS,N/A,113026,N/A,N/A,10-JAN-17,2695972,945.00,0.00,Passenger Transport Procurement & Operations,N/A
Derby City Council,People Services - Adults and Health,Support with Memory and Cognition,Community Support,QUALITY CARE SERVICES,N/A,388475,N/A,N/A,10-JAN-17,2697786,131.22,0.00,East OP (over 65) Memory - R/N,N/A
Derby City Council,People Services - Adults and Health,Support with Memory and Cognition,Community Support,QUALITY CARE SERVICES,N/A,388475,N/A,N/A,10-JAN-17,2697786,396.84,0.00,East OP (over 65) Memory - R/N,N/A
Derby City Council,People Services - Adults and Health,Support with Memory and Cognition,Community Support,QUALITY CARE SERVICES,N/A,388475,N/A,N/A,10-JAN-17,2697786,-528.06,0.00,East OP (over 65) Memory - R/N,N/A
Derby City Council,People Services - Adults and Health,Physical Support,Community Support,QUALITY CARE SERVICES,N/A,388475,N/A,N/A,10-JAN-17,2697666,-434.80,0.00,East Adults (under 65) Physical - DP/Mgd,N/A
Derby City Council,People Services - Adults and Health,Physical Support,Community Support,QUALITY CARE SERVICES,N/A,388475,N/A,N/A,10-JAN-17,2697666,402.38,0.00,East Adults (under 65) Physical - DP/Mgd,N/A
Derby City Council,People Services - Adults and Health,Physical Support,Community Support,QUALITY CARE SERVICES,N/A,388475,N/A,N/A,10-JAN-17,2697666,434.80,0.00,East Adults (under 65) Physical - DP/Mgd,N/A
Derby City Council,People Services - Adults and Health,Physical Support,Community Support,QUALITY CARE SERVICES,N/A,388475,N/A,N/A,10-JAN-17,2697666,474.56,0.00,East Adults (under 65) Physical - DP/Mgd,N/A
Derby City Council,People Services - Adults and Health,Physical Support,Community Support,QUALITY CARE SERVICES,N/A,388475,N/A,N/A,10-JAN-17,2697666,-4.31,0.00,East Adults (under 65) Physical - DP/Mgd,N/A
Derby City Council,People Services - Adults and Health,Physical Support,Community Support,QUALITY CARE SERVICES,N/A,388475,N/A,N/A,10-JAN-17,2697676,571.53,0.00,East Adults (under 65) Physical - DP/Mgd,N/A
Derby City Council,People Services - Adults and Health,Physical Support,Community Support,QUALITY CARE SERVICES,N/A,388475,N/A,N/A,10-JAN-17,2697681,803.20,0.00,East Adults (under 65) Physical - DP/Mgd,N/A
Derby City Council,People Services - Adults and Health,Physical Support,Community Support,QUALITY CARE SERVICES,N/A,388475,N/A,N/A,10-JAN-17,2697681,803.20,0.00,East Adults (under 65) Physical - DP/Mgd,N/A
Derby City Council,People Services - Adults and Health,Physical Support,Community Support,QUALITY CARE SERVICES,N/A,388475,N/A,N/A,10-JAN-17,2697681,-14.78,0.00,East Adults (under 65) Physical - DP/Mgd,N/A
Derby City Council,People Services - Adults and Health,Physical Support,Community Support,QUALITY CARE SERVICES,N/A,388475,N/A,N/A,10-JAN-17,2697747,700.40,0.00,East Adults (under 65) Physical - DP/Mgd,N/A
Derby City Council,People Services - Adults and Health,Physical Support,Community Support,QUALITY CARE SERVICES,N/A,388475,N/A,N/A,10-JAN-17,2697798,700.40,0.00,East Adults (under 65) Physical - DP/Mgd,N/A
Derby City Council,People Services - Adults and Health,Physical Support,Community Support,QUALITY CARE SERVICES,N/A,388475,N/A,N/A,10-JAN-17,2697975,700.40,0.00,East Adults (under 65) Physical - DP/Mgd,N/A
Derby City Council,People Services - Adults and Health,Physical Support,Community Support,QUALITY CARE SERVICES,N/A,388475,N/A,N/A,10-JAN-17,2697985,670.73,0.00,East Adults (under 65) Physical - DP/Mgd,N/A
Derby City Council,People Services - Adults and Health,Physical Support,Community Support,QUALITY CARE SERVICES,N/A,388475,N/A,N/A,10-JAN-17,2697682,628.27,0.00,West OP (over 65) Physical - DP/Mgd,N/A
Derby City Council,People Services - Adults and Health,Physical Support,Community Support,QUALITY CARE SERVICES,N/A,388475,N/A,N/A,10-JAN-17,2697533,507.38,0.00,East OP (over 65) Physical - DP/Mgd,N/A
Derby City Council,People Services - Adults and Health,Physical Support,Community Support,QUALITY CARE SERVICES,N/A,388475,N/A,N/A,10-JAN-17,2697536,613.70,0.00,East OP (over 65) Physical - DP/Mgd,N/A
Derby City Council,People Services - Adults and Health,Physical Support,Community Support,QUALITY CARE SERVICES,N/A,388475,N/A,N/A,10-JAN-17,2697536,0.48,0.00,East OP (over 65) Physical - DP/Mgd,N/A
Derby City Council,People Services - Adults and Health,Physical Support,Community Support,QUALITY CARE SERVICES,N/A,388475,N/A,N/A,10-JAN-17,2697539,69.14,0.00,East OP (over 65) Physical - DP/Mgd,N/A
Derby City Council,People Services - Adults and Health,Physical Support,Community Support,QUALITY CARE SERVICES,N/A,388475,N/A,N/A,10-JAN-17,2697539,69.14,0.00,East OP (over 65) Physical - DP/Mgd,N/A
Derby City Council,People Services - Adults and Health,Physical Support,Community Support,QUALITY CARE SERVICES,N/A,388475,N/A,N/A,10-JAN-17,2697539,916.38,0.00,East OP (over 65) Physical - DP/Mgd,N/A
Derby City Council,People Services - Adults and Health,Physical Support,Community Support,QUALITY CARE SERVICES,N/A,388475,N/A,N/A,10-JAN-17,2697539,916.38,0.00,East OP (over 65) Physical - DP/Mgd,N/A
Derby City Council,People Services - Adults and Health,Physical Support,Community Support,QUALITY CARE SERVICES,N/A,388475,N/A,N/A,10-JAN-17,2697539,-69.14,0.00,East OP (over 65) Physical - DP/Mgd,N/A
Derby City Council,People Services - Adults and Health,Physical Support,Community Support,QUALITY CARE SERVICES,N/A,388475,N/A,N/A,10-JAN-17,2697539,69.14,0.00,East OP (over 65) Physical - DP/Mgd,N/A
Derby City Council,People Services - Adults and Health,Physical Support,Community Support,QUALITY CARE SERVICES,N/A,388475,N/A,N/A,10-JAN-17,2697542,-1224.72,0.00,East OP (over 65) Physical - DP/Mgd,N/A
Derby City Council,People Services - Adults and Health,Physical Support,Community Support,QUALITY CARE SERVICES,N/A,388475,N/A,N/A,10-JAN-17,2697542,-1172.16,0.00,East OP (over 65) Physical - DP/Mgd,N/A
Derby City Council,People Services - Adults and Health,Physical Support,Community Support,QUALITY CARE SERVICES,N/A,388475,N/A,N/A,10-JAN-17,2697542,-1118.72,0.00,East OP (over 65) Physical - DP/Mgd,N/A
Derby City Council,People Services - Adults and Health,Physical Support,Community Support,QUALITY CARE SERVICES,N/A,388475,N/A,N/A,10-JAN-17,2697542,1052.00,0.00,East OP (over 65) Physical - DP/Mgd,N/A
Derby City Council,People Services - Adults and Health,Physical Support,Community Support,QUALITY CARE SERVICES,N/A,388475,N/A,N/A,10-JAN-17,2697542,1118.72,0.00,East OP (over 65) Physical - DP/Mgd,N/A
Derby City Council,People Services - Adults and Health,Physical Support,Community Support,QUALITY CARE SERVICES,N/A,388475,N/A,N/A,10-JAN-17,2697542,1158.88,0.00,East OP (over 65) Physical - DP/Mgd,N/A
Derby City Council,People Services - Adults and Health,Physical Support,Community Support,QUALITY CARE SERVICES,N/A,388475,N/A,N/A,10-JAN-17,2697542,1172.16,0.00,East OP (over 65) Physical - DP/Mgd,N/A
Derby City Council,People Services - Adults and Health,Physical Support,Community Support,QUALITY CARE SERVICES,N/A,388475,N/A,N/A,10-JAN-17,2697542,1224.72,0.00,East OP (over 65) Physical - DP/Mgd,N/A
Derby City Council,People Services - Adults and Health,Physical Support,Community Support,QUALITY CARE SERVICES,N/A,388475,N/A,N/A,10-JAN-17,2697555,1061.89,0.00,East OP (over 65) Physical - DP/Mgd,N/A
Derby City Council,People Services - Adults and Health,Physical Support,Community Support,QUALITY CARE SERVICES,N/A,388475,N/A,N/A,10-JAN-17,2697555,1168.77,0.00,East OP (over 65) Physical - DP/Mgd,N/A
Derby City Council,People Services - Adults and Health,Physical Support,Community Support,QUALITY CARE SERVICES,N/A,388475,N/A,N/A,10-JAN-17,2697555,-19.78,0.00,East OP (over 65) Physical - DP/Mgd,N/A
Derby City Council,People Services - Adults and Health,Physical Support,Community Support,QUALITY CARE SERVICES,N/A,388475,N/A,N/A,10-JAN-17,2697591,-15.90,0.00,East OP (over 65) Physical - DP/Mgd,N/A
Derby City Council,People Services - Adults and Health,Physical Support,Community Support,QUALITY CARE SERVICES,N/A,388475,N/A,N/A,10-JAN-17,2697591,937.14,0.00,East OP (over 65) Physical - DP/Mgd,N/A
Derby City Council,People Services - Adults and Health,Physical Support,Community Support,QUALITY CARE SERVICES,N/A,388475,N/A,N/A,10-JAN-17,2697591,953.04,0.00,East OP (over 65) Physical - DP/Mgd,N/A
Derby City Council,People Services - Adults and Health,Physical Support,Community Support,QUALITY CARE SERVICES,N/A,388475,N/A,N/A,10-JAN-17,2697591,3.18,0.00,East OP (over 65) Physical - DP/Mgd,N/A
Derby City Council,People Services - Adults and Health,Physical Support,Community Support,QUALITY CARE SERVICES,N/A,388475,N/A,N/A,10-JAN-17,2697591,3.18,0.00,East OP (over 65) Physical - DP/Mgd,N/A
Derby City Council,People Services - Adults and Health,Physical Support,Community Support,QUALITY CARE SERVICES,N/A,388475,N/A,N/A,10-JAN-17,2697592,-179.94,0.00,East OP (over 65) Physical - DP/Mgd,N/A
Derby City Council,People Services - Adults and Health,Physical Support,Community Support,QUALITY CARE SERVICES,N/A,388475,N/A,N/A,10-JAN-17,2697592,38.16,0.00,East OP (over 65) Physical - DP/Mgd,N/A
Derby City Council,People Services - Adults and Health,Physical Support,Community Support,QUALITY CARE SERVICES,N/A,388475,N/A,N/A,10-JAN-17,2697592,189.36,0.00,East OP (over 65) Physical - DP/Mgd,N/A
Derby City Council,People Services - Adults and Health,Physical Support,Community Support,QUALITY CARE SERVICES,N/A,388475,N/A,N/A,10-JAN-17,2697592,512.28,0.00,East OP (over 65) Physical - DP/Mgd,N/A
Derby City Council,People Services - Adults and Health,Physical Support,Community Support,QUALITY CARE SERVICES,N/A,388475,N/A,N/A,10-JAN-17,2697592,-38.16,0.00,East OP (over 65) Physical - DP/Mgd,N/A
Derby City Council,People Services - Adults and Health,Physical Support,Community Support,QUALITY CARE SERVICES,N/A,388475,N/A,N/A,10-JAN-17,2697592,53.46,0.00,East OP (over 65) Physical - DP/Mgd,N/A
Derby City Council,People Services - Adults and Health,Physical Support,Community Support,QUALITY CARE SERVICES,N/A,388475,N/A,N/A,10-JAN-17,2697595,-306.18,0.00,East OP (over 65) Physical - DP/Mgd,N/A
Derby City Council,People Services - Adults and Health,Physical Support,Community Support,QUALITY CARE SERVICES,N/A,388475,N/A,N/A,10-JAN-17,2697595,-293.04,0.00,East OP (over 65) Physical - DP/Mgd,N/A
Derby City Council,People Services - Adults and Health,Physical Support,Community Support,QUALITY CARE SERVICES,N/A,388475,N/A,N/A,10-JAN-17,2697595,-279.68,0.00,East OP (over 65) Physical - DP/Mgd,N/A
Derby City Council,People Services - Adults and Health,Physical Support,Community Support,QUALITY CARE SERVICES,N/A,388475,N/A,N/A,10-JAN-17,2697595,-279.06,0.00,East OP (over 65) Physical - DP/Mgd,N/A
Derby City Council,People Services - Adults and Health,Physical Support,Community Support,QUALITY CARE SERVICES,N/A,388475,N/A,N/A,10-JAN-17,2697595,-266.34,0.00,East OP (over 65) Physical - DP/Mgd,N/A
Derby City Council,People Services - Adults and Health,Physical Support,Community Support,QUALITY CARE SERVICES,N/A,388475,N/A,N/A,10-JAN-17,2697595,-212.56,0.00,East OP (over 65) Physical - DP/Mgd,N/A
Derby City Council,People Services - Adults and Health,Physical Support,Community Support,QUALITY CARE SERVICES,N/A,388475,N/A,N/A,10-JAN-17,2697595,76.48,0.00,East OP (over 65) Physical - DP/Mgd,N/A
Derby City Council,People Services - Adults and Health,Physical Support,Community Support,QUALITY CARE SERVICES,N/A,388475,N/A,N/A,10-JAN-17,2697595,89.20,0.00,East OP (over 65) Physical - DP/Mgd,N/A
Derby City Council,People Services - Adults and Health,Physical Support,Community Support,QUALITY CARE SERVICES,N/A,388475,N/A,N/A,10-JAN-17,2697595,184.16,0.00,East OP (over 65) Physical - DP/Mgd,N/A
Derby City Council,People Services - Adults and Health,Physical Support,Community Support,QUALITY CARE SERVICES,N/A,388475,N/A,N/A,10-JAN-17,2697595,184.16,0.00,East OP (over 65) Physical - DP/Mgd,N/A
Derby City Council,People Services - Adults and Health,Physical Support,Community Support,QUALITY CARE SERVICES,N/A,388475,N/A,N/A,10-JAN-17,2697595,212.56,0.00,East OP (over 65) Physical - DP/Mgd,N/A
Derby City Council,People Services - Adults and Health,Physical Support,Community Support,QUALITY CARE SERVICES,N/A,388475,N/A,N/A,10-JAN-17,2697595,263.00,0.00,East OP (over 65) Physical - DP/Mgd,N/A
Derby City Council,People Services - Adults and Health,Physical Support,Community Support,QUALITY CARE SERVICES,N/A,388475,N/A,N/A,10-JAN-17,2697595,279.68,0.00,East OP (over 65) Physical - DP/Mgd,N/A
Derby City Council,People Services - Adults and Health,Physical Support,Community Support,QUALITY CARE SERVICES,N/A,388475,N/A,N/A,10-JAN-17,2697595,289.72,0.00,East OP (over 65) Physical - DP/Mgd,N/A
Derby City Council,People Services - Adults and Health,Physical Support,Community Support,QUALITY CARE SERVICES,N/A,388475,N/A,N/A,10-JAN-17,2697595,293.04,0.00,East OP (over 65) Physical - DP/Mgd,N/A
Derby City Council,People Services - Adults and Health,Physical Support,Community Support,QUALITY CARE SERVICES,N/A,388475,N/A,N/A,10-JAN-17,2697595,306.18,0.00,East OP (over 65) Physical - DP/Mgd,N/A
Derby City Council,People Services - Adults and Health,Physical Support,Community Support,QUALITY CARE SERVICES,N/A,388475,N/A,N/A,10-JAN-17,2697595,386.08,0.00,East OP (over 65) Physical - DP/Mgd,N/A
Derby City Council,People Services - Adults and Health,Physical Support,Community Support,QUALITY CARE SERVICES,N/A,388475,N/A,N/A,10-JAN-17,2697595,398.80,0.00,East OP (over 65) Physical - DP/Mgd,N/A
Derby City Council,People Services - Adults and Health,Physical Support,Community Support,QUALITY CARE SERVICES,N/A,388475,N/A,N/A,10-JAN-17,2697595,412.94,0.00,East OP (over 65) Physical - DP/Mgd,N/A
Derby City Council,People Services - Adults and Health,Physical Support,Community Support,QUALITY CARE SERVICES,N/A,388475,N/A,N/A,10-JAN-17,2697595,438.38,0.00,East OP (over 65) Physical - DP/Mgd,N/A
Derby City Council,People Services - Adults and Health,Physical Support,Community Support,QUALITY CARE SERVICES,N/A,388475,N/A,N/A,10-JAN-17,2697595,-36.06,0.00,East OP (over 65) Physical - DP/Mgd,N/A
Derby City Council,People Services - Adults and Health,Physical Support,Community Support,QUALITY CARE SERVICES,N/A,388475,N/A,N/A,10-JAN-17,2697595,3.18,0.00,East OP (over 65) Physical - DP/Mgd,N/A
Derby City Council,People Services - Adults and Health,Physical Support,Community Support,QUALITY CARE SERVICES,N/A,388475,N/A,N/A,10-JAN-17,2697595,3.18,0.00,East OP (over 65) Physical - DP/Mgd,N/A
Derby City Council,People Services - Adults and Health,Physical Support,Community Support,QUALITY CARE SERVICES,N/A,388475,N/A,N/A,10-JAN-17,2697595,-26.10,0.00,East OP (over 65) Physical - DP/Mgd,N/A
Derby City Council,People Services - Adults and Health,Physical Support,Community Support,QUALITY CARE SERVICES,N/A,388475,N/A,N/A,10-JAN-17,2697597,-1224.72,0.00,East OP (over 65) Physical - DP/Mgd,N/A
Derby City Council,People Services - Adults and Health,Physical Support,Community Support,QUALITY CARE SERVICES,N/A,388475,N/A,N/A,10-JAN-17,2697597,-1172.16,0.00,East OP (over 65) Physical - DP/Mgd,N/A
Derby City Council,People Services - Adults and Health,Physical Support,Community Support,QUALITY CARE SERVICES,N/A,388475,N/A,N/A,10-JAN-17,2697597,-1118.72,0.00,East OP (over 65) Physical - DP/Mgd,N/A
Derby City Council,People Services - Adults and Health,Physical Support,Community Support,QUALITY CARE SERVICES,N/A,388475,N/A,N/A,10-JAN-17,2697597,1052.00,0.00,East OP (over 65) Physical - DP/Mgd,N/A
Derby City Council,People Services - Adults and Health,Physical Support,Community Support,QUALITY CARE SERVICES,N/A,388475,N/A,N/A,10-JAN-17,2697597,1118.72,0.00,East OP (over 65) Physical - DP/Mgd,N/A
Derby City Council,People Services - Adults and Health,Physical Support,Community Support,QUALITY CARE SERVICES,N/A,388475,N/A,N/A,10-JAN-17,2697597,1158.88,0.00,East OP (over 65) Physical - DP/Mgd,N/A
Derby City Council,People Services - Adults and Health,Physical Support,Community Support,QUALITY CARE SERVICES,N/A,388475,N/A,N/A,10-JAN-17,2697597,1172.16,0.00,East OP (over 65) Physical - DP/Mgd,N/A
Derby City Council,People Services - Adults and Health,Physical Support,Community Support,QUALITY CARE SERVICES,N/A,388475,N/A,N/A,10-JAN-17,2697597,1224.72,0.00,East OP (over 65) Physical - DP/Mgd,N/A
Derby City Council,People Services - Adults and Health,Physical Support,Community Support,QUALITY CARE SERVICES,N/A,388475,N/A,N/A,10-JAN-17,2697607,-1224.72,0.00,East OP (over 65) Physical - DP/Mgd,N/A
